date,department/service,beneficiary,amount,summary of purpose,category,transaction number,SAP vendor number
01.07.2021,ADULT SOCIAL CARE,LUKE CLEMENTS TRAINING,"1,250.00",ASW - PROFESSIONAL DEVELOPMENT,TRAINING,5902475160,1000082524
01.07.2021,ADULT SOCIAL CARE,SAFFRONLAND HOMES,"5,000.00",DIR OF ASC,EXTERNAL AGENCIES AND BODIES,5902475136,11172608
01.07.2021,ADULT SOCIAL CARE,SAFFRONLAND HOMES,"15,000.00",DIR OF ASC,EXTERNAL AGENCIES AND BODIES,5902475133,11172608
01.07.2021,ASSET MANAGEMENT HGF,EMS EVENTS LTD,"6,035.00",TSFM CONTINGENCY,INTEGRATED FACILITIES MANAGEMENT CONTRACT,5902475166,1000057494
01.07.2021,CUSTOMER EXPERIENCE HGF,TUNSTALL HEALTHCARE (UK) LTD,"1,100.00",SMART MOBILE RESPONSE TEAM,EQUIPMENT PURCHASE & REPAIR,5902475251,1012297
01.07.2021,CUSTOMER EXPERIENCE HGF,TUNSTALL HEALTHCARE (UK) LTD,"2,011.00",SMART MOBILE RESPONSE TEAM,EQUIPMENT PURCHASE & REPAIR,5902475252,1012297
01.07.2021,EMPLOYEE EXPERIENCE,HALFORDS LTD,429.17,BIKE SCHEME,OTHER EMPLOYEE EXPENSES,5902475153,1000041969
01.07.2021,ENVIRONMENT AND LEISURE,PREMIER SURVEYS,950,CAPITAL PS (LEISURE),CONSTR'N SUB CONTRACT - NON CERTIFICATED,5902475083,1000075479
01.07.2021,ENVIRONMENT AND LEISURE,PREMIER SURVEYS,"2,650.00",CAPITAL PS (LEISURE),CONSTR'N SUB CONTRACT - NON CERTIFICATED,5902475084,1000075479
01.07.2021,ENVIRONMENT AND LEISURE,WSP UK LTD,"7,360.00",CAPITAL PS (LEISURE),"PLANT, MACHINERY & EQUIPMENT ACQUISITION",5902475132,1000054214
01.07.2021,ENVIRONMENT AND LEISURE,GO PRO CHEMICALS LTD,"2,230.16",MANAGEMENT TEAM,MATERIALS,5902475138,1000079528
01.07.2021,ENVIRONMENT DIRECTORATE,F R JONES & SON LTD,517.58,NON HOUSING GROUNDS,EQUIPMENT PURCHASE & REPAIR,5902474991,1000037178
01.07.2021,F & C S EXCLUDING CORPORATE BUDGETS,REDACTED PERSONAL DATA,500,SESS,OTHER PAYMENTS FOR CLIENTS,REDACTED,REDACTED
01.07.2021,F & C S EXCLUDING CORPORATE BUDGETS,REDACTED PERSONAL DATA,500,SESS,OTHER PAYMENTS FOR CLIENTS,REDACTED,REDACTED
01.07.2021,F & C S EXCLUDING CORPORATE BUDGETS,REDACTED PERSONAL DATA,500,SESS,OTHER PAYMENTS FOR CLIENTS,REDACTED,REDACTED
01.07.2021,F & C S EXCLUDING CORPORATE BUDGETS,REDACTED PERSONAL DATA,500,SESS,OTHER PAYMENTS FOR CLIENTS,REDACTED,REDACTED
01.07.2021,F & C S EXCLUDING CORPORATE BUDGETS,REDACTED PERSONAL DATA,500,SESS,OTHER PAYMENTS FOR CLIENTS,REDACTED,REDACTED
01.07.2021,HOUSING HRA,GREEN SHOOTS ECOLOGY LTD,840,CAPITAL PS (HRA),CONSTRUCTION FEES  - EXTERNAL,5902475948,1000085118
01.07.2021,HOUSING HRA,FAITHFUL & GOULD,"8,129.00",CAPITAL PS (REGEN),CONSTRUCTION FEES - EMPLOYERS AGENT,5902475142,1000061390
01.07.2021,HOUSING HRA,FAITHFUL & GOULD,"8,129.00",CAPITAL PS (REGEN),CONSTRUCTION FEES - EMPLOYERS AGENT,5902475142,1000061390
01.07.2021,NEW BUILD,HCUK GROUP LIMITED,392.81,DEVELOPMENT DELIVERY,CONSULTANTS SERVICES,5902475332,1000086607
01.07.2021,NEW BUILD,HCUK GROUP LIMITED,523.75,DEVELOPMENT DELIVERY,CONSULTANTS SERVICES,5902475118,1000086607
01.07.2021,NEW BUILD,HATC LTD,745,DEVELOPMENT DELIVERY,TRAINING,5902475021,1000052676
01.07.2021,PUBLIC HEALTH,REDACTED PERSONAL DATA,500,COVID-19 CONTROL OUTBREAK MGMNT.FUND,OTHER PAYMENTS FOR CLIENTS,REDACTED,REDACTED
01.07.2021,PUBLIC HEALTH,REDACTED PERSONAL DATA,500,COVID-19 CONTROL OUTBREAK MGMNT.FUND,OTHER PAYMENTS FOR CLIENTS,REDACTED,REDACTED
01.07.2021,RESIDENT SERVICES,INTO SERVICES LONDON LTD,276.7,GREAT ESTATES,OTHER R&M,5902475043,1000059328
01.07.2021,RESIDENT SERVICES,PINNACLE POWER LTD,"3,154.92",PRIVATE SERVICE CHARGES,SERVICE CHARGES,5902475123,1000081494
01.07.2021,SBS SUPPORT,LOWER MEAD LTD,"3,050.00",REORGANISATION COSTS,PROFESSIONAL FEES,5902475065,1000082508
01.07.2021,SBS SUPPORT,LOWER MEAD LTD,"3,050.00",REORGANISATION COSTS,PROFESSIONAL FEES,5902475066,1000082508
01.07.2021,SBS SUPPORT,LOWER MEAD LTD,"3,355.00",REORGANISATION COSTS,PROFESSIONAL FEES,5902475063,1000082508
01.07.2021,SBS SUPPORT,LOWER MEAD LTD,"3,355.00",REORGANISATION COSTS,PROFESSIONAL FEES,5902475064,1000082508
02.07.2021,ADULT SOCIAL CARE,SUMMERCARE LIMITED,350,APPOINTEESHIPS,OTHER PAYMENTS FOR CLIENTS,2103284596,1000086519
02.07.2021,ADULT SOCIAL CARE,SUMMERCARE LIMITED,600,APPOINTEESHIPS,OTHER PAYMENTS FOR CLIENTS,2103284595,1000086519
02.07.2021,ADULT SOCIAL CARE,TEAM TEACH LTD,"1,978.80",ASW - PROFESSIONAL DEVELOPMENT,TRAINING,5902475241,11257026
02.07.2021,ADULT SOCIAL CARE,DENISE TURNER,850,ASW - PROFESSIONAL DEVELOPMENT,TRAINING,5902476132,1000086293
02.07.2021,ADULT SOCIAL CARE,BY THE BRIDGE LTD,"5,571.30",DISABILITIES LAC,EXTERNAL AGENCIES AND BODIES,2103284860,1000043961
02.07.2021,ADULT SOCIAL CARE,BY THE BRIDGE LTD,"6,030.00",DISABILITIES LAC,EXTERNAL AGENCIES AND BODIES,2103284879,1000043961
02.07.2021,ADULT SOCIAL CARE,KISIMUL GROUP LTD,440.39,DISABILITIES LAC,OTHER PAYMENTS FOR CLIENTS,2103284883,1000079657
02.07.2021,ADULT SOCIAL CARE,PEOPLEPLUS ILS,"1,064.83",DISCHARGE TO ACCESS,PAYMENTS TO CLIENTS (DIRECT PAYMENTS),2103285135,1000061886
02.07.2021,ADULT SOCIAL CARE,PEOPLEPLUS ILS,"2,266.72",DISCHARGE TO ACCESS,PAYMENTS TO CLIENTS (DIRECT PAYMENTS),2103285289,1000061886
02.07.2021,ADULT SOCIAL CARE,PEOPLEPLUS ILS,"3,015.60",DISCHARGE TO ACCESS,PAYMENTS TO CLIENTS (DIRECT PAYMENTS),2103286059,1000061886
02.07.2021,ADULT SOCIAL CARE,REDACTED PERSONAL DATA,"1,040.30",DISCHARGE TO ACCESS,PAYMENTS TO CLIENTS (DIRECT PAYMENTS),REDACTED,REDACTED
02.07.2021,ADULT SOCIAL CARE,REDACTED PERSONAL DATA,296.96,DISCHARGE TO ACCESS,PAYMENTS TO CLIENTS (DIRECT PAYMENTS),REDACTED,REDACTED
02.07.2021,ADULT SOCIAL CARE,REDACTED PERSONAL DATA,"-3,049.50",DISCHARGE TO ACCESS,PAYMENTS TO CLIENTS (DIRECT PAYMENTS),REDACTED,REDACTED
02.07.2021,ADULT SOCIAL CARE,REDACTED PERSONAL DATA,"3,993.11",DISCHARGE TO ACCESS,PAYMENTS TO CLIENTS (DIRECT PAYMENTS),REDACTED,REDACTED
02.07.2021,ADULT SOCIAL CARE,REDACTED PERSONAL DATA,"-2,714.64",DISCHARGE TO ACCESS,PAYMENTS TO CLIENTS (DIRECT PAYMENTS),REDACTED,REDACTED
02.07.2021,ADULT SOCIAL CARE,REDACTED PERSONAL DATA,"3,793.50",DISCHARGE TO ACCESS,PAYMENTS TO CLIENTS (DIRECT PAYMENTS),REDACTED,REDACTED
02.07.2021,ADULT SOCIAL CARE,PEOPLEPLUS ILS,"-1,887.30",LD LTS 18-64,DISCRETIONARY FLEXIBLE FEES & INCOME,2103285575,1000061886
02.07.2021,ADULT SOCIAL CARE,PEOPLEPLUS ILS,-769.8,LD LTS 18-64,DISCRETIONARY FLEXIBLE FEES & INCOME,2103285565,1000061886
02.07.2021,ADULT SOCIAL CARE,PEOPLEPLUS ILS,-344.72,LD LTS 18-64,DISCRETIONARY FLEXIBLE FEES & INCOME,2103285772,1000061886
02.07.2021,ADULT SOCIAL CARE,PEOPLEPLUS ILS,-287.28,LD LTS 18-64,DISCRETIONARY FLEXIBLE FEES & INCOME,2103285673,1000061886
02.07.2021,ADULT SOCIAL CARE,PEOPLEPLUS ILS,-273.56,LD LTS 18-64,DISCRETIONARY FLEXIBLE FEES & INCOME,2103285935,1000061886
02.07.2021,ADULT SOCIAL CARE,PEOPLEPLUS ILS,-273.4,LD LTS 18-64,DISCRETIONARY FLEXIBLE FEES & INCOME,2103286024,1000061886
02.07.2021,ADULT SOCIAL CARE,REDACTED PERSONAL DATA,-371.82,LD LTS 18-64,DISCRETIONARY FLEXIBLE FEES & INCOME,REDACTED,REDACTED
02.07.2021,ADULT SOCIAL CARE,REDACTED PERSONAL DATA,-347.2,LD LTS 18-64,DISCRETIONARY FLEXIBLE FEES & INCOME,REDACTED,REDACTED
02.07.2021,ADULT SOCIAL CARE,PEOPLEPLUS ILS,"-15,352.00",LD LTS 18-64,PAYMENTS TO CLIENTS (DIRECT PAYMENTS),2103285962,1000061886
02.07.2021,ADULT SOCIAL CARE,PEOPLEPLUS ILS,"-14,392.50",LD LTS 18-64,PAYMENTS TO CLIENTS (DIRECT PAYMENTS),2103286148,1000061886
02.07.2021,ADULT SOCIAL CARE,PEOPLEPLUS ILS,"-7,081.50",LD LTS 18-64,PAYMENTS TO CLIENTS (DIRECT PAYMENTS),2103286130,1000061886
02.07.2021,ADULT SOCIAL CARE,PEOPLEPLUS ILS,"-6,015.87",LD LTS 18-64,PAYMENTS TO CLIENTS (DIRECT PAYMENTS),2103285602,1000061886
02.07.2021,ADULT SOCIAL CARE,PEOPLEPLUS ILS,"-5,723.00",LD LTS 18-64,PAYMENTS TO CLIENTS (DIRECT PAYMENTS),2103285836,1000061886
02.07.2021,ADULT SOCIAL CARE,PEOPLEPLUS ILS,"-3,289.24",LD LTS 18-64,PAYMENTS TO CLIENTS (DIRECT PAYMENTS),2103285523,1000061886
02.07.2021,ADULT SOCIAL CARE,PEOPLEPLUS ILS,"-3,022.49",LD LTS 18-64,PAYMENTS TO CLIENTS (DIRECT PAYMENTS),2103285396,1000061886
02.07.2021,ADULT SOCIAL CARE,PEOPLEPLUS ILS,"-2,893.36",LD LTS 18-64,PAYMENTS TO CLIENTS (DIRECT PAYMENTS),2103285855,1000061886
02.07.2021,ADULT SOCIAL CARE,PEOPLEPLUS ILS,"-2,672.00",LD LTS 18-64,PAYMENTS TO CLIENTS (DIRECT PAYMENTS),2103285780,1000061886
02.07.2021,ADULT SOCIAL CARE,PEOPLEPLUS ILS,"-2,510.91",LD LTS 18-64,PAYMENTS TO CLIENTS (DIRECT PAYMENTS),2103285628,1000061886
02.07.2021,ADULT SOCIAL CARE,PEOPLEPLUS ILS,"-2,436.95",LD LTS 18-64,PAYMENTS TO CLIENTS (DIRECT PAYMENTS),2103285319,1000061886
02.07.2021,ADULT SOCIAL CARE,PEOPLEPLUS ILS,"-2,405.60",LD LTS 18-64,PAYMENTS TO CLIENTS (DIRECT PAYMENTS),2103286165,1000061886
02.07.2021,ADULT SOCIAL CARE,PEOPLEPLUS ILS,"-2,307.89",LD LTS 18-64,PAYMENTS TO CLIENTS (DIRECT PAYMENTS),2103286065,1000061886
02.07.2021,ADULT SOCIAL CARE,PEOPLEPLUS ILS,"-1,999.00",LD LTS 18-64,PAYMENTS TO CLIENTS (DIRECT PAYMENTS),2103285333,1000061886
02.07.2021,ADULT SOCIAL CARE,PEOPLEPLUS ILS,"-1,612.40",LD LTS 18-64,PAYMENTS TO CLIENTS (DIRECT PAYMENTS),2103285831,1000061886
02.07.2021,ADULT SOCIAL CARE,PEOPLEPLUS ILS,"-1,592.40",LD LTS 18-64,PAYMENTS TO CLIENTS (DIRECT PAYMENTS),2103285652,1000061886
02.07.2021,ADULT SOCIAL CARE,PEOPLEPLUS ILS,"-1,535.20",LD LTS 18-64,PAYMENTS TO CLIENTS (DIRECT PAYMENTS),2103285750,1000061886
02.07.2021,ADULT SOCIAL CARE,PEOPLEPLUS ILS,"-1,493.40",LD LTS 18-64,PAYMENTS TO CLIENTS (DIRECT PAYMENTS),2103286132,1000061886
02.07.2021,ADULT SOCIAL CARE,PEOPLEPLUS ILS,"-1,423.10",LD LTS 18-64,PAYMENTS TO CLIENTS (DIRECT PAYMENTS),2103286071,1000061886
02.07.2021,ADULT SOCIAL CARE,PEOPLEPLUS ILS,"-1,185.80",LD LTS 18-64,PAYMENTS TO CLIENTS (DIRECT PAYMENTS),2103285775,1000061886
02.07.2021,ADULT SOCIAL CARE,PEOPLEPLUS ILS,"-1,016.50",LD LTS 18-64,PAYMENTS TO CLIENTS (DIRECT PAYMENTS),2103285723,1000061886
02.07.2021,ADULT SOCIAL CARE,PEOPLEPLUS ILS,-936.42,LD LTS 18-64,PAYMENTS TO CLIENTS (DIRECT PAYMENTS),2103285323,1000061886
02.07.2021,ADULT SOCIAL CARE,PEOPLEPLUS ILS,-698.18,LD LTS 18-64,PAYMENTS TO CLIENTS (DIRECT PAYMENTS),2103286112,1000061886
02.07.2021,ADULT SOCIAL CARE,PEOPLEPLUS ILS,260,LD LTS 18-64,PAYMENTS TO CLIENTS (DIRECT PAYMENTS),2103285940,1000061886
02.07.2021,ADULT SOCIAL CARE,PEOPLEPLUS ILS,266,LD LTS 18-64,PAYMENTS TO CLIENTS (DIRECT PAYMENTS),2103285834,1000061886
02.07.2021,ADULT SOCIAL CARE,PEOPLEPLUS ILS,329.32,LD LTS 18-64,PAYMENTS TO CLIENTS (DIRECT PAYMENTS),2103285766,1000061886
02.07.2021,ADULT SOCIAL CARE,PEOPLEPLUS ILS,329.8,LD LTS 18-64,PAYMENTS TO CLIENTS (DIRECT PAYMENTS),2103285499,1000061886
02.07.2021,ADULT SOCIAL CARE,PEOPLEPLUS ILS,334,LD LTS 18-64,PAYMENTS TO CLIENTS (DIRECT PAYMENTS),2103286124,1000061886
02.07.2021,ADULT SOCIAL CARE,PEOPLEPLUS ILS,342,LD LTS 18-64,PAYMENTS TO CLIENTS (DIRECT PAYMENTS),2103285454,1000061886
02.07.2021,ADULT SOCIAL CARE,PEOPLEPLUS ILS,352,LD LTS 18-64,PAYMENTS TO CLIENTS (DIRECT PAYMENTS),2103286138,1000061886
02.07.2021,ADULT SOCIAL CARE,PEOPLEPLUS ILS,374,LD LTS 18-64,PAYMENTS TO CLIENTS (DIRECT PAYMENTS),2103285753,1000061886
02.07.2021,ADULT SOCIAL CARE,PEOPLEPLUS ILS,385.6,LD LTS 18-64,PAYMENTS TO CLIENTS (DIRECT PAYMENTS),2103285958,1000061886
02.07.2021,ADULT SOCIAL CARE,PEOPLEPLUS ILS,405.54,LD LTS 18-64,PAYMENTS TO CLIENTS (DIRECT PAYMENTS),2103286169,1000061886
02.07.2021,ADULT SOCIAL CARE,PEOPLEPLUS ILS,411.44,LD LTS 18-64,PAYMENTS TO CLIENTS (DIRECT PAYMENTS),2103285784,1000061886
02.07.2021,ADULT SOCIAL CARE,PEOPLEPLUS ILS,430.8,LD LTS 18-64,PAYMENTS TO CLIENTS (DIRECT PAYMENTS),2103285419,1000061886
02.07.2021,ADULT SOCIAL CARE,PEOPLEPLUS ILS,437.6,LD LTS 18-64,PAYMENTS TO CLIENTS (DIRECT PAYMENTS),2103286019,1000061886
02.07.2021,ADULT SOCIAL CARE,PEOPLEPLUS ILS,440,LD LTS 18-64,PAYMENTS TO CLIENTS (DIRECT PAYMENTS),2103285482,1000061886
02.07.2021,ADULT SOCIAL CARE,PEOPLEPLUS ILS,458.08,LD LTS 18-64,PAYMENTS TO CLIENTS (DIRECT PAYMENTS),2103286168,1000061886
02.07.2021,ADULT SOCIAL CARE,PEOPLEPLUS ILS,464.8,LD LTS 18-64,PAYMENTS TO CLIENTS (DIRECT PAYMENTS),2103285954,1000061886
02.07.2021,ADULT SOCIAL CARE,PEOPLEPLUS ILS,558.72,LD LTS 18-64,PAYMENTS TO CLIENTS (DIRECT PAYMENTS),2103285339,1000061886
02.07.2021,ADULT SOCIAL CARE,PEOPLEPLUS ILS,628.46,LD LTS 18-64,PAYMENTS TO CLIENTS (DIRECT PAYMENTS),2103285827,1000061886
02.07.2021,ADULT SOCIAL CARE,PEOPLEPLUS ILS,632.4,LD LTS 18-64,PAYMENTS TO CLIENTS (DIRECT PAYMENTS),2103285298,1000061886
02.07.2021,ADULT SOCIAL CARE,PEOPLEPLUS ILS,663.07,LD LTS 18-64,PAYMENTS TO CLIENTS (DIRECT PAYMENTS),2103285304,1000061886
02.07.2021,ADULT SOCIAL CARE,PEOPLEPLUS ILS,672.28,LD LTS 18-64,PAYMENTS TO CLIENTS (DIRECT PAYMENTS),2103285794,1000061886
02.07.2021,ADULT SOCIAL CARE,PEOPLEPLUS ILS,675.26,LD LTS 18-64,PAYMENTS TO CLIENTS (DIRECT PAYMENTS),2103285679,1000061886
02.07.2021,ADULT SOCIAL CARE,PEOPLEPLUS ILS,685.72,LD LTS 18-64,PAYMENTS TO CLIENTS (DIRECT PAYMENTS),2103286128,1000061886
02.07.2021,ADULT SOCIAL CARE,PEOPLEPLUS ILS,694,LD LTS 18-64,PAYMENTS TO CLIENTS (DIRECT PAYMENTS),2103285337,1000061886
02.07.2021,ADULT SOCIAL CARE,PEOPLEPLUS ILS,718,LD LTS 18-64,PAYMENTS TO CLIENTS (DIRECT PAYMENTS),2103285956,1000061886
02.07.2021,ADULT SOCIAL CARE,PEOPLEPLUS ILS,780,LD LTS 18-64,PAYMENTS TO CLIENTS (DIRECT PAYMENTS),2103285731,1000061886
02.07.2021,ADULT SOCIAL CARE,PEOPLEPLUS ILS,788.89,LD LTS 18-64,PAYMENTS TO CLIENTS (DIRECT PAYMENTS),2103285719,1000061886
02.07.2021,ADULT SOCIAL CARE,PEOPLEPLUS ILS,789.6,LD LTS 18-64,PAYMENTS TO CLIENTS (DIRECT PAYMENTS),2103286070,1000061886
02.07.2021,ADULT SOCIAL CARE,PEOPLEPLUS ILS,794,LD LTS 18-64,PAYMENTS TO CLIENTS (DIRECT PAYMENTS),2103285597,1000061886
02.07.2021,ADULT SOCIAL CARE,PEOPLEPLUS ILS,800,LD LTS 18-64,PAYMENTS TO CLIENTS (DIRECT PAYMENTS),2103285336,1000061886
02.07.2021,ADULT SOCIAL CARE,PEOPLEPLUS ILS,805,LD LTS 18-64,PAYMENTS TO CLIENTS (DIRECT PAYMENTS),2103285729,1000061886
02.07.2021,ADULT SOCIAL CARE,PEOPLEPLUS ILS,860,LD LTS 18-64,PAYMENTS TO CLIENTS (DIRECT PAYMENTS),2103285609,1000061886
02.07.2021,ADULT SOCIAL CARE,PEOPLEPLUS ILS,970.2,LD LTS 18-64,PAYMENTS TO CLIENTS (DIRECT PAYMENTS),2103285311,1000061886
02.07.2021,ADULT SOCIAL CARE,PEOPLEPLUS ILS,977.61,LD LTS 18-64,PAYMENTS TO CLIENTS (DIRECT PAYMENTS),2103285519,1000061886
02.07.2021,ADULT SOCIAL CARE,PEOPLEPLUS ILS,988,LD LTS 18-64,PAYMENTS TO CLIENTS (DIRECT PAYMENTS),2103285442,1000061886
02.07.2021,ADULT SOCIAL CARE,PEOPLEPLUS ILS,997.2,LD LTS 18-64,PAYMENTS TO CLIENTS (DIRECT PAYMENTS),2103286066,1000061886
02.07.2021,ADULT SOCIAL CARE,PEOPLEPLUS ILS,"1,000.00",LD LTS 18-64,PAYMENTS TO CLIENTS (DIRECT PAYMENTS),2103285760,1000061886
02.07.2021,ADULT SOCIAL CARE,PEOPLEPLUS ILS,"1,000.00",LD LTS 18-64,PAYMENTS TO CLIENTS (DIRECT PAYMENTS),2103286172,1000061886
02.07.2021,ADULT SOCIAL CARE,PEOPLEPLUS ILS,"1,009.00",LD LTS 18-64,PAYMENTS TO CLIENTS (DIRECT PAYMENTS),2103286188,1000061886
02.07.2021,ADULT SOCIAL CARE,PEOPLEPLUS ILS,"1,128.96",LD LTS 18-64,PAYMENTS TO CLIENTS (DIRECT PAYMENTS),2103286012,1000061886
02.07.2021,ADULT SOCIAL CARE,PEOPLEPLUS ILS,"1,166.33",LD LTS 18-64,PAYMENTS TO CLIENTS (DIRECT PAYMENTS),2103285785,1000061886
02.07.2021,ADULT SOCIAL CARE,PEOPLEPLUS ILS,"1,170.00",LD LTS 18-64,PAYMENTS TO CLIENTS (DIRECT PAYMENTS),2103286026,1000061886
02.07.2021,ADULT SOCIAL CARE,PEOPLEPLUS ILS,"1,182.80",LD LTS 18-64,PAYMENTS TO CLIENTS (DIRECT PAYMENTS),2103285351,1000061886
02.07.2021,ADULT SOCIAL CARE,PEOPLEPLUS ILS,"1,182.80",LD LTS 18-64,PAYMENTS TO CLIENTS (DIRECT PAYMENTS),2103285895,1000061886
02.07.2021,ADULT SOCIAL CARE,PEOPLEPLUS ILS,"1,188.91",LD LTS 18-64,PAYMENTS TO CLIENTS (DIRECT PAYMENTS),2103285467,1000061886
02.07.2021,ADULT SOCIAL CARE,PEOPLEPLUS ILS,"1,229.24",LD LTS 18-64,PAYMENTS TO CLIENTS (DIRECT PAYMENTS),2103285509,1000061886
02.07.2021,ADULT SOCIAL CARE,PEOPLEPLUS ILS,"1,242.40",LD LTS 18-64,PAYMENTS TO CLIENTS (DIRECT PAYMENTS),2103285952,1000061886
02.07.2021,ADULT SOCIAL CARE,PEOPLEPLUS ILS,"1,244.00",LD LTS 18-64,PAYMENTS TO CLIENTS (DIRECT PAYMENTS),2103285343,1000061886
02.07.2021,ADULT SOCIAL CARE,PEOPLEPLUS ILS,"1,277.46",LD LTS 18-64,PAYMENTS TO CLIENTS (DIRECT PAYMENTS),2103285603,1000061886
02.07.2021,ADULT SOCIAL CARE,PEOPLEPLUS ILS,"1,326.40",LD LTS 18-64,PAYMENTS TO CLIENTS (DIRECT PAYMENTS),2103285894,1000061886
02.07.2021,ADULT SOCIAL CARE,PEOPLEPLUS ILS,"1,331.04",LD LTS 18-64,PAYMENTS TO CLIENTS (DIRECT PAYMENTS),2103285814,1000061886
02.07.2021,ADULT SOCIAL CARE,PEOPLEPLUS ILS,"1,331.04",LD LTS 18-64,PAYMENTS TO CLIENTS (DIRECT PAYMENTS),2103286039,1000061886
02.07.2021,ADULT SOCIAL CARE,PEOPLEPLUS ILS,"1,360.24",LD LTS 18-64,PAYMENTS TO CLIENTS (DIRECT PAYMENTS),2103285563,1000061886
02.07.2021,ADULT SOCIAL CARE,PEOPLEPLUS ILS,"1,433.20",LD LTS 18-64,PAYMENTS TO CLIENTS (DIRECT PAYMENTS),2103285860,1000061886
02.07.2021,ADULT SOCIAL CARE,PEOPLEPLUS ILS,"1,460.96",LD LTS 18-64,PAYMENTS TO CLIENTS (DIRECT PAYMENTS),2103285404,1000061886
02.07.2021,ADULT SOCIAL CARE,PEOPLEPLUS ILS,"1,597.24",LD LTS 18-64,PAYMENTS TO CLIENTS (DIRECT PAYMENTS),2103285806,1000061886
02.07.2021,ADULT SOCIAL CARE,PEOPLEPLUS ILS,"1,606.57",LD LTS 18-64,PAYMENTS TO CLIENTS (DIRECT PAYMENTS),2103285900,1000061886
02.07.2021,ADULT SOCIAL CARE,PEOPLEPLUS ILS,"1,652.16",LD LTS 18-64,PAYMENTS TO CLIENTS (DIRECT PAYMENTS),2103286145,1000061886
02.07.2021,ADULT SOCIAL CARE,PEOPLEPLUS ILS,"1,674.96",LD LTS 18-64,PAYMENTS TO CLIENTS (DIRECT PAYMENTS),2103285730,1000061886
02.07.2021,ADULT SOCIAL CARE,PEOPLEPLUS ILS,"1,684.13",LD LTS 18-64,PAYMENTS TO CLIENTS (DIRECT PAYMENTS),2103285849,1000061886
02.07.2021,ADULT SOCIAL CARE,PEOPLEPLUS ILS,"1,689.00",LD LTS 18-64,PAYMENTS TO CLIENTS (DIRECT PAYMENTS),2103286067,1000061886
02.07.2021,ADULT SOCIAL CARE,PEOPLEPLUS ILS,"1,799.84",LD LTS 18-64,PAYMENTS TO CLIENTS (DIRECT PAYMENTS),2103285645,1000061886
02.07.2021,ADULT SOCIAL CARE,PEOPLEPLUS ILS,"1,809.57",LD LTS 18-64,PAYMENTS TO CLIENTS (DIRECT PAYMENTS),2103285517,1000061886
02.07.2021,ADULT SOCIAL CARE,PEOPLEPLUS ILS,"1,823.48",LD LTS 18-64,PAYMENTS TO CLIENTS (DIRECT PAYMENTS),2103285612,1000061886
02.07.2021,ADULT SOCIAL CARE,PEOPLEPLUS ILS,"1,829.60",LD LTS 18-64,PAYMENTS TO CLIENTS (DIRECT PAYMENTS),2103285624,1000061886
02.07.2021,ADULT SOCIAL CARE,PEOPLEPLUS ILS,"1,832.64",LD LTS 18-64,PAYMENTS TO CLIENTS (DIRECT PAYMENTS),2103285546,1000061886
02.07.2021,ADULT SOCIAL CARE,PEOPLEPLUS ILS,"1,863.45",LD LTS 18-64,PAYMENTS TO CLIENTS (DIRECT PAYMENTS),2103286084,1000061886
02.07.2021,ADULT SOCIAL CARE,PEOPLEPLUS ILS,"1,888.28",LD LTS 18-64,PAYMENTS TO CLIENTS (DIRECT PAYMENTS),2103286114,1000061886
02.07.2021,ADULT SOCIAL CARE,PEOPLEPLUS ILS,"2,090.00",LD LTS 18-64,PAYMENTS TO CLIENTS (DIRECT PAYMENTS),2103285934,1000061886
02.07.2021,ADULT SOCIAL CARE,PEOPLEPLUS ILS,"2,097.56",LD LTS 18-64,PAYMENTS TO CLIENTS (DIRECT PAYMENTS),2103285464,1000061886
02.07.2021,ADULT SOCIAL CARE,PEOPLEPLUS ILS,"2,129.66",LD LTS 18-64,PAYMENTS TO CLIENTS (DIRECT PAYMENTS),2103285682,1000061886
02.07.2021,ADULT SOCIAL CARE,PEOPLEPLUS ILS,"2,129.66",LD LTS 18-64,PAYMENTS TO CLIENTS (DIRECT PAYMENTS),2103285687,1000061886
02.07.2021,ADULT SOCIAL CARE,PEOPLEPLUS ILS,"2,129.66",LD LTS 18-64,PAYMENTS TO CLIENTS (DIRECT PAYMENTS),2103285688,1000061886
02.07.2021,ADULT SOCIAL CARE,PEOPLEPLUS ILS,"2,129.66",LD LTS 18-64,PAYMENTS TO CLIENTS (DIRECT PAYMENTS),2103286091,1000061886
02.07.2021,ADULT SOCIAL CARE,PEOPLEPLUS ILS,"2,194.88",LD LTS 18-64,PAYMENTS TO CLIENTS (DIRECT PAYMENTS),2103285408,1000061886
02.07.2021,ADULT SOCIAL CARE,PEOPLEPLUS ILS,"2,229.21",LD LTS 18-64,PAYMENTS TO CLIENTS (DIRECT PAYMENTS),2103285754,1000061886
02.07.2021,ADULT SOCIAL CARE,PEOPLEPLUS ILS,"2,289.28",LD LTS 18-64,PAYMENTS TO CLIENTS (DIRECT PAYMENTS),2103285865,1000061886
02.07.2021,ADULT SOCIAL CARE,PEOPLEPLUS ILS,"2,550.80",LD LTS 18-64,PAYMENTS TO CLIENTS (DIRECT PAYMENTS),2103285847,1000061886
02.07.2021,ADULT SOCIAL CARE,PEOPLEPLUS ILS,"2,662.07",LD LTS 18-64,PAYMENTS TO CLIENTS (DIRECT PAYMENTS),2103285685,1000061886
02.07.2021,ADULT SOCIAL CARE,PEOPLEPLUS ILS,"2,865.00",LD LTS 18-64,PAYMENTS TO CLIENTS (DIRECT PAYMENTS),2103285320,1000061886
02.07.2021,ADULT SOCIAL CARE,PEOPLEPLUS ILS,"2,889.40",LD LTS 18-64,PAYMENTS TO CLIENTS (DIRECT PAYMENTS),2103285906,1000061886
02.07.2021,ADULT SOCIAL CARE,PEOPLEPLUS ILS,"2,906.00",LD LTS 18-64,PAYMENTS TO CLIENTS (DIRECT PAYMENTS),2103285510,1000061886
02.07.2021,ADULT SOCIAL CARE,PEOPLEPLUS ILS,"2,918.00",LD LTS 18-64,PAYMENTS TO CLIENTS (DIRECT PAYMENTS),2103286111,1000061886
02.07.2021,ADULT SOCIAL CARE,PEOPLEPLUS ILS,"3,106.52",LD LTS 18-64,PAYMENTS TO CLIENTS (DIRECT PAYMENTS),2103285950,1000061886
02.07.2021,ADULT SOCIAL CARE,PEOPLEPLUS ILS,"3,194.49",LD LTS 18-64,PAYMENTS TO CLIENTS (DIRECT PAYMENTS),2103285494,1000061886
02.07.2021,ADULT SOCIAL CARE,PEOPLEPLUS ILS,"3,194.49",LD LTS 18-64,PAYMENTS TO CLIENTS (DIRECT PAYMENTS),2103285819,1000061886
02.07.2021,ADULT SOCIAL CARE,PEOPLEPLUS ILS,"3,235.61",LD LTS 18-64,PAYMENTS TO CLIENTS (DIRECT PAYMENTS),2103285493,1000061886
02.07.2021,ADULT SOCIAL CARE,PEOPLEPLUS ILS,"3,311.61",LD LTS 18-64,PAYMENTS TO CLIENTS (DIRECT PAYMENTS),2103285604,1000061886
02.07.2021,ADULT SOCIAL CARE,PEOPLEPLUS ILS,"3,349.11",LD LTS 18-64,PAYMENTS TO CLIENTS (DIRECT PAYMENTS),2103285975,1000061886
02.07.2021,ADULT SOCIAL CARE,PEOPLEPLUS ILS,"3,795.20",LD LTS 18-64,PAYMENTS TO CLIENTS (DIRECT PAYMENTS),2103285446,1000061886
02.07.2021,ADULT SOCIAL CARE,PEOPLEPLUS ILS,"3,913.00",LD LTS 18-64,PAYMENTS TO CLIENTS (DIRECT PAYMENTS),2103285757,1000061886
02.07.2021,ADULT SOCIAL CARE,PEOPLEPLUS ILS,"3,993.11",LD LTS 18-64,PAYMENTS TO CLIENTS (DIRECT PAYMENTS),2103286090,1000061886
02.07.2021,ADULT SOCIAL CARE,PEOPLEPLUS ILS,"4,192.72",LD LTS 18-64,PAYMENTS TO CLIENTS (DIRECT PAYMENTS),2103285585,1000061886
02.07.2021,ADULT SOCIAL CARE,PEOPLEPLUS ILS,"4,351.56",LD LTS 18-64,PAYMENTS TO CLIENTS (DIRECT PAYMENTS),2103286095,1000061886
02.07.2021,ADULT SOCIAL CARE,PEOPLEPLUS ILS,"4,629.20",LD LTS 18-64,PAYMENTS TO CLIENTS (DIRECT PAYMENTS),2103285468,1000061886
02.07.2021,ADULT SOCIAL CARE,PEOPLEPLUS ILS,"5,590.35",LD LTS 18-64,PAYMENTS TO CLIENTS (DIRECT PAYMENTS),2103286101,1000061886
02.07.2021,ADULT SOCIAL CARE,PEOPLEPLUS ILS,"7,986.21",LD LTS 18-64,PAYMENTS TO CLIENTS (DIRECT PAYMENTS),2103285389,1000061886
02.07.2021,ADULT SOCIAL CARE,PEOPLEPLUS ILS,"8,252.42",LD LTS 18-64,PAYMENTS TO CLIENTS (DIRECT PAYMENTS),2103285439,1000061886
02.07.2021,ADULT SOCIAL CARE,PEOPLEPLUS ILS,"9,126.80",LD LTS 18-64,PAYMENTS TO CLIENTS (DIRECT PAYMENTS),2103286058,1000061886
02.07.2021,ADULT SOCIAL CARE,PEOPLEPLUS ILS,"9,317.25",LD LTS 18-64,PAYMENTS TO CLIENTS (DIRECT PAYMENTS),2103285430,1000061886
02.07.2021,ADULT SOCIAL CARE,PEOPLEPLUS ILS,"9,317.25",LD LTS 18-64,PAYMENTS TO CLIENTS (DIRECT PAYMENTS),2103285432,1000061886
02.07.2021,ADULT SOCIAL CARE,PEOPLEPLUS ILS,"11,809.20",LD LTS 18-64,PAYMENTS TO CLIENTS (DIRECT PAYMENTS),2103286062,1000061886
02.07.2021,ADULT SOCIAL CARE,PEOPLEPLUS ILS,"12,619.20",LD LTS 18-64,PAYMENTS TO CLIENTS (DIRECT PAYMENTS),2103285879,1000061886
02.07.2021,ADULT SOCIAL CARE,PEOPLEPLUS ILS,"12,619.20",LD LTS 18-64,PAYMENTS TO CLIENTS (DIRECT PAYMENTS),2103285881,1000061886
02.07.2021,ADULT SOCIAL CARE,PEOPLEPLUS ILS,"19,965.54",LD LTS 18-64,PAYMENTS TO CLIENTS (DIRECT PAYMENTS),2103285992,1000061886
02.07.2021,ADULT SOCIAL CARE,PEOPLEPLUS ILS,"21,296.57",LD LTS 18-64,PAYMENTS TO CLIENTS (DIRECT PAYMENTS),2103285974,1000061886
02.07.2021,ADULT SOCIAL CARE,PEOPLEPLUS ILS,"27,028.20",LD LTS 18-64,PAYMENTS TO CLIENTS (DIRECT PAYMENTS),2103285848,1000061886
02.07.2021,ADULT SOCIAL CARE,FRESH IDEAS & SOLUTIONS SERVICES CIC,"-2,686.60",LD LTS 18-64,PAYMENTS TO CLIENTS (DIRECT PAYMENTS),2103285470,1000070832
02.07.2021,ADULT SOCIAL CARE,FRESH IDEAS & SOLUTIONS SERVICES CIC,465.64,LD LTS 18-64,PAYMENTS TO CLIENTS (DIRECT PAYMENTS),2103285407,1000070832
02.07.2021,ADULT SOCIAL CARE,FRESH IDEAS & SOLUTIONS SERVICES CIC,740,LD LTS 18-64,PAYMENTS TO CLIENTS (DIRECT PAYMENTS),2103285406,1000070832
02.07.2021,ADULT SOCIAL CARE,FRESH IDEAS & SOLUTIONS SERVICES CIC,875.6,LD LTS 18-64,PAYMENTS TO CLIENTS (DIRECT PAYMENTS),2103285930,1000070832
02.07.2021,ADULT SOCIAL CARE,FRESH IDEAS & SOLUTIONS SERVICES CIC,900,LD LTS 18-64,PAYMENTS TO CLIENTS (DIRECT PAYMENTS),2103285911,1000070832
02.07.2021,ADULT SOCIAL CARE,FRESH IDEAS & SOLUTIONS SERVICES CIC,"1,047.52",LD LTS 18-64,PAYMENTS TO CLIENTS (DIRECT PAYMENTS),2103286074,1000070832
02.07.2021,ADULT SOCIAL CARE,FRESH IDEAS & SOLUTIONS SERVICES CIC,"1,848.00",LD LTS 18-64,PAYMENTS TO CLIENTS (DIRECT PAYMENTS),2103286041,1000070832
02.07.2021,ADULT SOCIAL CARE,FRESH IDEAS & SOLUTIONS SERVICES CIC,"2,618.80",LD LTS 18-64,PAYMENTS TO CLIENTS (DIRECT PAYMENTS),2103285837,1000070832
02.07.2021,ADULT SOCIAL CARE,FRESH IDEAS & SOLUTIONS SERVICES CIC,"3,726.90",LD LTS 18-64,PAYMENTS TO CLIENTS (DIRECT PAYMENTS),2103285801,1000070832
02.07.2021,ADULT SOCIAL CARE,REDACTED PERSONAL DATA,"-7,676.00",LD LTS 18-64,PAYMENTS TO CLIENTS (DIRECT PAYMENTS),REDACTED,REDACTED
02.07.2021,ADULT SOCIAL CARE,REDACTED PERSONAL DATA,"10,648.29",LD LTS 18-64,PAYMENTS TO CLIENTS (DIRECT PAYMENTS),REDACTED,REDACTED
02.07.2021,ADULT SOCIAL CARE,REDACTED PERSONAL DATA,"17,397.99",LD LTS 18-64,PAYMENTS TO CLIENTS (DIRECT PAYMENTS),REDACTED,REDACTED
02.07.2021,ADULT SOCIAL CARE,REDACTED PERSONAL DATA,"-2,282.80",LD LTS 18-64,PAYMENTS TO CLIENTS (DIRECT PAYMENTS),REDACTED,REDACTED
02.07.2021,ADULT SOCIAL CARE,REDACTED PERSONAL DATA,"3,194.49",LD LTS 18-64,PAYMENTS TO CLIENTS (DIRECT PAYMENTS),REDACTED,REDACTED
02.07.2021,ADULT SOCIAL CARE,REDACTED PERSONAL DATA,"6,287.92",LD LTS 18-64,PAYMENTS TO CLIENTS (DIRECT PAYMENTS),REDACTED,REDACTED
02.07.2021,ADULT SOCIAL CARE,REDACTED PERSONAL DATA,"2,309.97",LD LTS 18-64,PAYMENTS TO CLIENTS (DIRECT PAYMENTS),REDACTED,REDACTED
02.07.2021,ADULT SOCIAL CARE,REDACTED PERSONAL DATA,"-6,716.50",LD LTS 18-64,PAYMENTS TO CLIENTS (DIRECT PAYMENTS),REDACTED,REDACTED
02.07.2021,ADULT SOCIAL CARE,REDACTED PERSONAL DATA,"9,317.25",LD LTS 18-64,PAYMENTS TO CLIENTS (DIRECT PAYMENTS),REDACTED,REDACTED
02.07.2021,ADULT SOCIAL CARE,REDACTED PERSONAL DATA,"8,484.60",LD LTS 18-64,PAYMENTS TO CLIENTS (DIRECT PAYMENTS),REDACTED,REDACTED
02.07.2021,ADULT SOCIAL CARE,REDACTED PERSONAL DATA,"1,534.00",LD LTS 18-64,PAYMENTS TO CLIENTS (DIRECT PAYMENTS),REDACTED,REDACTED
02.07.2021,ADULT SOCIAL CARE,REDACTED PERSONAL DATA,"2,158.60",LD LTS 18-64,PAYMENTS TO CLIENTS (DIRECT PAYMENTS),REDACTED,REDACTED
02.07.2021,ADULT SOCIAL CARE,REDACTED PERSONAL DATA,"3,864.64",LD LTS 18-64,PAYMENTS TO CLIENTS (DIRECT PAYMENTS),REDACTED,REDACTED
02.07.2021,ADULT SOCIAL CARE,REDACTED PERSONAL DATA,"1,420.12",LD LTS 18-64,PAYMENTS TO CLIENTS (DIRECT PAYMENTS),REDACTED,REDACTED
02.07.2021,ADULT SOCIAL CARE,REDACTED PERSONAL DATA,594.4,LD LTS 18-64,PAYMENTS TO CLIENTS (DIRECT PAYMENTS),REDACTED,REDACTED
02.07.2021,ADULT SOCIAL CARE,REDACTED PERSONAL DATA,414.8,LD LTS 18-64,PAYMENTS TO CLIENTS (DIRECT PAYMENTS),REDACTED,REDACTED
02.07.2021,ADULT SOCIAL CARE,REDACTED PERSONAL DATA,522.6,LD LTS 18-64,PAYMENTS TO CLIENTS (DIRECT PAYMENTS),REDACTED,REDACTED
02.07.2021,ADULT SOCIAL CARE,REDACTED PERSONAL DATA,-959.5,LD LTS 18-64,PAYMENTS TO CLIENTS (DIRECT PAYMENTS),REDACTED,REDACTED
02.07.2021,ADULT SOCIAL CARE,REDACTED PERSONAL DATA,"1,331.04",LD LTS 18-64,PAYMENTS TO CLIENTS (DIRECT PAYMENTS),REDACTED,REDACTED
02.07.2021,ADULT SOCIAL CARE,REDACTED PERSONAL DATA,"1,368.32",LD LTS 18-64,PAYMENTS TO CLIENTS (DIRECT PAYMENTS),REDACTED,REDACTED
02.07.2021,ADULT SOCIAL CARE,REDACTED PERSONAL DATA,"2,317.60",LD LTS 18-64,PAYMENTS TO CLIENTS (DIRECT PAYMENTS),REDACTED,REDACTED
02.07.2021,ADULT SOCIAL CARE,REDACTED PERSONAL DATA,"-6,717.86",LD LTS 18-64,PAYMENTS TO CLIENTS (DIRECT PAYMENTS),REDACTED,REDACTED
02.07.2021,ADULT SOCIAL CARE,REDACTED PERSONAL DATA,"8,784.84",LD LTS 18-64,PAYMENTS TO CLIENTS (DIRECT PAYMENTS),REDACTED,REDACTED
02.07.2021,ADULT SOCIAL CARE,REDACTED PERSONAL DATA,522.6,LD LTS 18-64,PAYMENTS TO CLIENTS (DIRECT PAYMENTS),REDACTED,REDACTED
02.07.2021,ADULT SOCIAL CARE,REDACTED PERSONAL DATA,"6,644.40",LD LTS 18-64,PAYMENTS TO CLIENTS (DIRECT PAYMENTS),REDACTED,REDACTED
02.07.2021,ADULT SOCIAL CARE,REDACTED PERSONAL DATA,"1,025.20",LD LTS 18-64,PAYMENTS TO CLIENTS (DIRECT PAYMENTS),REDACTED,REDACTED
02.07.2021,ADULT SOCIAL CARE,REDACTED PERSONAL DATA,327.2,LD LTS 18-64,PAYMENTS TO CLIENTS (DIRECT PAYMENTS),REDACTED,REDACTED
02.07.2021,ADULT SOCIAL CARE,REDACTED PERSONAL DATA,809.8,LD LTS 18-64,PAYMENTS TO CLIENTS (DIRECT PAYMENTS),REDACTED,REDACTED
02.07.2021,ADULT SOCIAL CARE,REDACTED PERSONAL DATA,300,LD LTS 18-64,PAYMENTS TO CLIENTS (DIRECT PAYMENTS),REDACTED,REDACTED
02.07.2021,ADULT SOCIAL CARE,REDACTED PERSONAL DATA,"-4,605.60",LD LTS 18-64,PAYMENTS TO CLIENTS (DIRECT PAYMENTS),REDACTED,REDACTED
02.07.2021,ADULT SOCIAL CARE,REDACTED PERSONAL DATA,584,LD LTS 18-64,PAYMENTS TO CLIENTS (DIRECT PAYMENTS),REDACTED,REDACTED
02.07.2021,ADULT SOCIAL CARE,REDACTED PERSONAL DATA,"6,388.97",LD LTS 18-64,PAYMENTS TO CLIENTS (DIRECT PAYMENTS),REDACTED,REDACTED
02.07.2021,ADULT SOCIAL CARE,REDACTED PERSONAL DATA,-959.5,LD LTS 18-64,PAYMENTS TO CLIENTS (DIRECT PAYMENTS),REDACTED,REDACTED
02.07.2021,ADULT SOCIAL CARE,REDACTED PERSONAL DATA,"1,331.04",LD LTS 18-64,PAYMENTS TO CLIENTS (DIRECT PAYMENTS),REDACTED,REDACTED
02.07.2021,ADULT SOCIAL CARE,REDACTED PERSONAL DATA,320,LD LTS 18-64,PAYMENTS TO CLIENTS (DIRECT PAYMENTS),REDACTED,REDACTED
02.07.2021,ADULT SOCIAL CARE,REDACTED PERSONAL DATA,"-1,472.82",LD LTS 18-64,PAYMENTS TO CLIENTS (DIRECT PAYMENTS),REDACTED,REDACTED
02.07.2021,ADULT SOCIAL CARE,REDACTED PERSONAL DATA,"2,025.77",LD LTS 18-64,PAYMENTS TO CLIENTS (DIRECT PAYMENTS),REDACTED,REDACTED
02.07.2021,ADULT SOCIAL CARE,REDACTED PERSONAL DATA,"2,116.00",LD LTS 18-64,PAYMENTS TO CLIENTS (DIRECT PAYMENTS),REDACTED,REDACTED
02.07.2021,ADULT SOCIAL CARE,REDACTED PERSONAL DATA,"-1,945.86",LD LTS 18-64,PAYMENTS TO CLIENTS (DIRECT PAYMENTS),REDACTED,REDACTED
02.07.2021,ADULT SOCIAL CARE,REDACTED PERSONAL DATA,"3,194.49",LD LTS 18-64,PAYMENTS TO CLIENTS (DIRECT PAYMENTS),REDACTED,REDACTED
02.07.2021,ADULT SOCIAL CARE,REDACTED PERSONAL DATA,"-2,927.85",LD LTS 18-64,PAYMENTS TO CLIENTS (DIRECT PAYMENTS),REDACTED,REDACTED
02.07.2021,ADULT SOCIAL CARE,REDACTED PERSONAL DATA,"3,860.09",LD LTS 18-64,PAYMENTS TO CLIENTS (DIRECT PAYMENTS),REDACTED,REDACTED
02.07.2021,ADULT SOCIAL CARE,REDACTED PERSONAL DATA,376,LD LTS 18-64,PAYMENTS TO CLIENTS (DIRECT PAYMENTS),REDACTED,REDACTED
02.07.2021,ADULT SOCIAL CARE,REDACTED PERSONAL DATA,"4,710.78",LD LTS 18-64,PAYMENTS TO CLIENTS (DIRECT PAYMENTS),REDACTED,REDACTED
02.07.2021,ADULT SOCIAL CARE,REDACTED PERSONAL DATA,718,LD LTS 18-64,PAYMENTS TO CLIENTS (DIRECT PAYMENTS),REDACTED,REDACTED
02.07.2021,ADULT SOCIAL CARE,REDACTED PERSONAL DATA,"1,815.00",LD LTS 18-64,PAYMENTS TO CLIENTS (DIRECT PAYMENTS),REDACTED,REDACTED
02.07.2021,ADULT SOCIAL CARE,REDACTED PERSONAL DATA,"1,532.68",LD LTS 18-64,PAYMENTS TO CLIENTS (DIRECT PAYMENTS),REDACTED,REDACTED
02.07.2021,ADULT SOCIAL CARE,REDACTED PERSONAL DATA,"1,532.92",LD LTS 18-64,PAYMENTS TO CLIENTS (DIRECT PAYMENTS),REDACTED,REDACTED
02.07.2021,ADULT SOCIAL CARE,REDACTED PERSONAL DATA,"5,026.00",LD LTS 18-64,PAYMENTS TO CLIENTS (DIRECT PAYMENTS),REDACTED,REDACTED
02.07.2021,ADULT SOCIAL CARE,REDACTED PERSONAL DATA,"6,286.08",LD LTS 18-64,PAYMENTS TO CLIENTS (DIRECT PAYMENTS),REDACTED,REDACTED
02.07.2021,ADULT SOCIAL CARE,REDACTED PERSONAL DATA,"-3,243.69",LD LTS 18-64,PAYMENTS TO CLIENTS (DIRECT PAYMENTS),REDACTED,REDACTED
02.07.2021,ADULT SOCIAL CARE,REDACTED PERSONAL DATA,"4,325.91",LD LTS 18-64,PAYMENTS TO CLIENTS (DIRECT PAYMENTS),REDACTED,REDACTED
02.07.2021,ADULT SOCIAL CARE,REDACTED PERSONAL DATA,"-7,963.85",LD LTS 18-64,PAYMENTS TO CLIENTS (DIRECT PAYMENTS),REDACTED,REDACTED
02.07.2021,ADULT SOCIAL CARE,REDACTED PERSONAL DATA,"11,047.68",LD LTS 18-64,PAYMENTS TO CLIENTS (DIRECT PAYMENTS),REDACTED,REDACTED
02.07.2021,ADULT SOCIAL CARE,REDACTED PERSONAL DATA,-332.23,LD LTS 18-64,PAYMENTS TO CLIENTS (DIRECT PAYMENTS),REDACTED,REDACTED
02.07.2021,ADULT SOCIAL CARE,REDACTED PERSONAL DATA,460.72,LD LTS 18-64,PAYMENTS TO CLIENTS (DIRECT PAYMENTS),REDACTED,REDACTED
02.07.2021,ADULT SOCIAL CARE,REDACTED PERSONAL DATA,"1,931.26",LD LTS 18-64,PAYMENTS TO CLIENTS (DIRECT PAYMENTS),REDACTED,REDACTED
02.07.2021,ADULT SOCIAL CARE,REDACTED PERSONAL DATA,"2,660.20",LD LTS 18-64,PAYMENTS TO CLIENTS (DIRECT PAYMENTS),REDACTED,REDACTED
02.07.2021,ADULT SOCIAL CARE,REDACTED PERSONAL DATA,540.6,LD LTS 18-64,PAYMENTS TO CLIENTS (DIRECT PAYMENTS),REDACTED,REDACTED
02.07.2021,ADULT SOCIAL CARE,REDACTED PERSONAL DATA,"1,293.44",LD LTS 18-64,PAYMENTS TO CLIENTS (DIRECT PAYMENTS),REDACTED,REDACTED
02.07.2021,ADULT SOCIAL CARE,REDACTED PERSONAL DATA,"-3,266.51",LD LTS 18-64,PAYMENTS TO CLIENTS (DIRECT PAYMENTS),REDACTED,REDACTED
02.07.2021,ADULT SOCIAL CARE,REDACTED PERSONAL DATA,"4,387.94",LD LTS 18-64,PAYMENTS TO CLIENTS (DIRECT PAYMENTS),REDACTED,REDACTED
02.07.2021,ADULT SOCIAL CARE,REDACTED PERSONAL DATA,465.3,LD LTS 18-64,PAYMENTS TO CLIENTS (DIRECT PAYMENTS),REDACTED,REDACTED
02.07.2021,ADULT SOCIAL CARE,REDACTED PERSONAL DATA,"12,580.00",LD LTS 18-64,PAYMENTS TO CLIENTS (DIRECT PAYMENTS),REDACTED,REDACTED
02.07.2021,ADULT SOCIAL CARE,REDACTED PERSONAL DATA,260,LD LTS 18-64,PAYMENTS TO CLIENTS (DIRECT PAYMENTS),REDACTED,REDACTED
02.07.2021,ADULT SOCIAL CARE,REDACTED PERSONAL DATA,502.6,LD LTS 18-64,PAYMENTS TO CLIENTS (DIRECT PAYMENTS),REDACTED,REDACTED
02.07.2021,ADULT SOCIAL CARE,REDACTED PERSONAL DATA,"1,566.06",LD LTS 18-64,PAYMENTS TO CLIENTS (DIRECT PAYMENTS),REDACTED,REDACTED
02.07.2021,ADULT SOCIAL CARE,REDACTED PERSONAL DATA,"1,400.00",LD LTS 18-64,PAYMENTS TO CLIENTS (DIRECT PAYMENTS),REDACTED,REDACTED
02.07.2021,ADULT SOCIAL CARE,REDACTED PERSONAL DATA,"2,736.00",LD LTS 18-64,PAYMENTS TO CLIENTS (DIRECT PAYMENTS),REDACTED,REDACTED
02.07.2021,ADULT SOCIAL CARE,REDACTED PERSONAL DATA,"-1,131.40",LD LTS 18-64,PAYMENTS TO CLIENTS (DIRECT PAYMENTS),REDACTED,REDACTED
02.07.2021,ADULT SOCIAL CARE,REDACTED PERSONAL DATA,"1,597.24",LD LTS 18-64,PAYMENTS TO CLIENTS (DIRECT PAYMENTS),REDACTED,REDACTED
02.07.2021,ADULT SOCIAL CARE,REDACTED PERSONAL DATA,982.98,LD LTS 18-64,PAYMENTS TO CLIENTS (DIRECT PAYMENTS),REDACTED,REDACTED
02.07.2021,ADULT SOCIAL CARE,REDACTED PERSONAL DATA,460.04,LD LTS 18-64,PAYMENTS TO CLIENTS (DIRECT PAYMENTS),REDACTED,REDACTED
02.07.2021,ADULT SOCIAL CARE,REDACTED PERSONAL DATA,574.4,LD LTS 18-64,PAYMENTS TO CLIENTS (DIRECT PAYMENTS),REDACTED,REDACTED
02.07.2021,ADULT SOCIAL CARE,REDACTED PERSONAL DATA,"-2,826.20",LD LTS 18-64,PAYMENTS TO CLIENTS (DIRECT PAYMENTS),REDACTED,REDACTED
02.07.2021,ADULT SOCIAL CARE,REDACTED PERSONAL DATA,"3,726.90",LD LTS 18-64,PAYMENTS TO CLIENTS (DIRECT PAYMENTS),REDACTED,REDACTED
02.07.2021,ADULT SOCIAL CARE,REDACTED PERSONAL DATA,"-2,846.20",LD LTS 18-64,PAYMENTS TO CLIENTS (DIRECT PAYMENTS),REDACTED,REDACTED
02.07.2021,ADULT SOCIAL CARE,REDACTED PERSONAL DATA,"3,726.90",LD LTS 18-64,PAYMENTS TO CLIENTS (DIRECT PAYMENTS),REDACTED,REDACTED
02.07.2021,ADULT SOCIAL CARE,GRANGE FARM COMPLEX,"1,778.36",LD LTS 18-64,SUPPORTED LIVING,2103285993,11086081
02.07.2021,ADULT SOCIAL CARE,REDACTED PERSONAL DATA,"1,032.16",LD LTS 18-64,SUPPORTED LIVING,REDACTED,REDACTED
02.07.2021,ADULT SOCIAL CARE,PEOPLEPLUS ILS,-445.6,LD LTS 65+,DISCRETIONARY FLEXIBLE FEES & INCOME,2103285776,1000061886
02.07.2021,ADULT SOCIAL CARE,PEOPLEPLUS ILS,798.62,LD LTS 65+,PAYMENTS TO CLIENTS (DIRECT PAYMENTS),2103285988,1000061886
02.07.2021,ADULT SOCIAL CARE,PEOPLEPLUS ILS,631.7,MEM LTS 18-64,PAYMENTS TO CLIENTS (DIRECT PAYMENTS),2103285331,1000061886
02.07.2021,ADULT SOCIAL CARE,PEOPLEPLUS ILS,"2,683.71",MEM LTS 18-64,PAYMENTS TO CLIENTS (DIRECT PAYMENTS),2103286171,1000061886
02.07.2021,ADULT SOCIAL CARE,PEOPLEPLUS ILS,"2,699.54",MEM LTS 18-64,PAYMENTS TO CLIENTS (DIRECT PAYMENTS),2103285303,1000061886
02.07.2021,ADULT SOCIAL CARE,REDACTED PERSONAL DATA,256,MEM LTS 18-64,SUPPORTED LIVING,REDACTED,REDACTED
02.07.2021,ADULT SOCIAL CARE,PEOPLEPLUS ILS,-274.48,MEM LTS 65+,DISCRETIONARY FLEXIBLE FEES & INCOME,2103285720,1000061886
02.07.2021,ADULT SOCIAL CARE,REDACTED PERSONAL DATA,-309.64,MEM LTS 65+,DISCRETIONARY FLEXIBLE FEES & INCOME,REDACTED,REDACTED
02.07.2021,ADULT SOCIAL CARE,REDACTED PERSONAL DATA,"-1,219.00",MEM LTS 65+,DISCRETIONARY FLEXIBLE FEES & INCOME,REDACTED,REDACTED
02.07.2021,ADULT SOCIAL CARE,PROFAD CARE AGENCY,855.36,MEM LTS 65+,HOMECARE - SPOT,2103284955,1000079032
02.07.2021,ADULT SOCIAL CARE,PROFAD CARE AGENCY,"1,380.24",MEM LTS 65+,HOMECARE - SPOT,2103284958,1000079032
02.07.2021,ADULT SOCIAL CARE,PEOPLEPLUS ILS,"1,300.46",MEM LTS 65+,PAYMENTS TO CLIENTS (DIRECT PAYMENTS),2103285721,1000061886
02.07.2021,ADULT SOCIAL CARE,PEOPLEPLUS ILS,"2,874.91",MEM LTS 65+,PAYMENTS TO CLIENTS (DIRECT PAYMENTS),2103285299,1000061886
02.07.2021,ADULT SOCIAL CARE,REDACTED PERSONAL DATA,"-4,477.03",MEM LTS 65+,PAYMENTS TO CLIENTS (DIRECT PAYMENTS),REDACTED,REDACTED
02.07.2021,ADULT SOCIAL CARE,REDACTED PERSONAL DATA,"6,235.05",MEM LTS 65+,PAYMENTS TO CLIENTS (DIRECT PAYMENTS),REDACTED,REDACTED
02.07.2021,ADULT SOCIAL CARE,REDACTED PERSONAL DATA,"-8,999.30",MEM LTS 65+,PAYMENTS TO CLIENTS (DIRECT PAYMENTS),REDACTED,REDACTED
02.07.2021,ADULT SOCIAL CARE,REDACTED PERSONAL DATA,"12,511.74",MEM LTS 65+,PAYMENTS TO CLIENTS (DIRECT PAYMENTS),REDACTED,REDACTED
02.07.2021,ADULT SOCIAL CARE,PEOPLEPLUS ILS,-318,MH LTS 18-64,DISCRETIONARY FLEXIBLE FEES & INCOME,2103285421,1000061886
02.07.2021,ADULT SOCIAL CARE,PEOPLEPLUS ILS,"1,384.24",MH LTS 18-64,DISCRETIONARY FLEXIBLE FEES & INCOME,2103285473,1000061886
02.07.2021,ADULT SOCIAL CARE,LONDON CARE LTD,420.09,MH LTS 18-64,HOMECARE - C&V,2103284976,1000003398
02.07.2021,ADULT SOCIAL CARE,PROFAD CARE AGENCY,311.04,MH LTS 18-64,HOMECARE - SPOT,2103284964,1000079032
02.07.2021,ADULT SOCIAL CARE,PROFAD CARE AGENCY,"1,323.54",MH LTS 18-64,HOMECARE - SPOT,2103284898,1000079032
02.07.2021,ADULT SOCIAL CARE,PEOPLEPLUS ILS,"-3,732.07",MH LTS 18-64,PAYMENTS TO CLIENTS (DIRECT PAYMENTS),2103286069,1000061886
02.07.2021,ADULT SOCIAL CARE,PEOPLEPLUS ILS,"-1,825.00",MH LTS 18-64,PAYMENTS TO CLIENTS (DIRECT PAYMENTS),2103285605,1000061886
02.07.2021,ADULT SOCIAL CARE,PEOPLEPLUS ILS,"-1,501.20",MH LTS 18-64,PAYMENTS TO CLIENTS (DIRECT PAYMENTS),2103285458,1000061886
02.07.2021,ADULT SOCIAL CARE,PEOPLEPLUS ILS,"-1,391.00",MH LTS 18-64,PAYMENTS TO CLIENTS (DIRECT PAYMENTS),2103285738,1000061886
02.07.2021,ADULT SOCIAL CARE,PEOPLEPLUS ILS,"-1,187.43",MH LTS 18-64,PAYMENTS TO CLIENTS (DIRECT PAYMENTS),2103285412,1000061886
02.07.2021,ADULT SOCIAL CARE,PEOPLEPLUS ILS,"-1,117.40",MH LTS 18-64,PAYMENTS TO CLIENTS (DIRECT PAYMENTS),2103285726,1000061886
02.07.2021,ADULT SOCIAL CARE,PEOPLEPLUS ILS,"-1,085.64",MH LTS 18-64,PAYMENTS TO CLIENTS (DIRECT PAYMENTS),2103285631,1000061886
02.07.2021,ADULT SOCIAL CARE,PEOPLEPLUS ILS,-925.5,MH LTS 18-64,PAYMENTS TO CLIENTS (DIRECT PAYMENTS),2103285883,1000061886
02.07.2021,ADULT SOCIAL CARE,PEOPLEPLUS ILS,-767.6,MH LTS 18-64,PAYMENTS TO CLIENTS (DIRECT PAYMENTS),2103285317,1000061886
02.07.2021,ADULT SOCIAL CARE,PEOPLEPLUS ILS,-541.7,MH LTS 18-64,PAYMENTS TO CLIENTS (DIRECT PAYMENTS),2103285669,1000061886
02.07.2021,ADULT SOCIAL CARE,PEOPLEPLUS ILS,-251.72,MH LTS 18-64,PAYMENTS TO CLIENTS (DIRECT PAYMENTS),2103286014,1000061886
02.07.2021,ADULT SOCIAL CARE,PEOPLEPLUS ILS,258.27,MH LTS 18-64,PAYMENTS TO CLIENTS (DIRECT PAYMENTS),2103285531,1000061886
02.07.2021,ADULT SOCIAL CARE,PEOPLEPLUS ILS,269,MH LTS 18-64,PAYMENTS TO CLIENTS (DIRECT PAYMENTS),2103285852,1000061886
02.07.2021,ADULT SOCIAL CARE,PEOPLEPLUS ILS,274,MH LTS 18-64,PAYMENTS TO CLIENTS (DIRECT PAYMENTS),2103285703,1000061886
02.07.2021,ADULT SOCIAL CARE,PEOPLEPLUS ILS,287.2,MH LTS 18-64,PAYMENTS TO CLIENTS (DIRECT PAYMENTS),2103285460,1000061886
02.07.2021,ADULT SOCIAL CARE,PEOPLEPLUS ILS,293.44,MH LTS 18-64,PAYMENTS TO CLIENTS (DIRECT PAYMENTS),2103285715,1000061886
02.07.2021,ADULT SOCIAL CARE,PEOPLEPLUS ILS,308,MH LTS 18-64,PAYMENTS TO CLIENTS (DIRECT PAYMENTS),2103286018,1000061886
02.07.2021,ADULT SOCIAL CARE,PEOPLEPLUS ILS,318,MH LTS 18-64,PAYMENTS TO CLIENTS (DIRECT PAYMENTS),2103286140,1000061886
02.07.2021,ADULT SOCIAL CARE,PEOPLEPLUS ILS,327.44,MH LTS 18-64,PAYMENTS TO CLIENTS (DIRECT PAYMENTS),2103286139,1000061886
02.07.2021,ADULT SOCIAL CARE,PEOPLEPLUS ILS,334,MH LTS 18-64,PAYMENTS TO CLIENTS (DIRECT PAYMENTS),2103285657,1000061886
02.07.2021,ADULT SOCIAL CARE,PEOPLEPLUS ILS,364.12,MH LTS 18-64,PAYMENTS TO CLIENTS (DIRECT PAYMENTS),2103285474,1000061886
02.07.2021,ADULT SOCIAL CARE,PEOPLEPLUS ILS,385.76,MH LTS 18-64,PAYMENTS TO CLIENTS (DIRECT PAYMENTS),2103285939,1000061886
02.07.2021,ADULT SOCIAL CARE,PEOPLEPLUS ILS,386.96,MH LTS 18-64,PAYMENTS TO CLIENTS (DIRECT PAYMENTS),2103285964,1000061886
02.07.2021,ADULT SOCIAL CARE,PEOPLEPLUS ILS,391.83,MH LTS 18-64,PAYMENTS TO CLIENTS (DIRECT PAYMENTS),2103285671,1000061886
02.07.2021,ADULT SOCIAL CARE,PEOPLEPLUS ILS,399.4,MH LTS 18-64,PAYMENTS TO CLIENTS (DIRECT PAYMENTS),2103285480,1000061886
02.07.2021,ADULT SOCIAL CARE,PEOPLEPLUS ILS,427.92,MH LTS 18-64,PAYMENTS TO CLIENTS (DIRECT PAYMENTS),2103285596,1000061886
02.07.2021,ADULT SOCIAL CARE,PEOPLEPLUS ILS,440.16,MH LTS 18-64,PAYMENTS TO CLIENTS (DIRECT PAYMENTS),2103285456,1000061886
02.07.2021,ADULT SOCIAL CARE,PEOPLEPLUS ILS,440.5,MH LTS 18-64,PAYMENTS TO CLIENTS (DIRECT PAYMENTS),2103285562,1000061886
02.07.2021,ADULT SOCIAL CARE,PEOPLEPLUS ILS,481.6,MH LTS 18-64,PAYMENTS TO CLIENTS (DIRECT PAYMENTS),2103285610,1000061886
02.07.2021,ADULT SOCIAL CARE,PEOPLEPLUS ILS,504.4,MH LTS 18-64,PAYMENTS TO CLIENTS (DIRECT PAYMENTS),2103285313,1000061886
02.07.2021,ADULT SOCIAL CARE,PEOPLEPLUS ILS,510.84,MH LTS 18-64,PAYMENTS TO CLIENTS (DIRECT PAYMENTS),2103285453,1000061886
02.07.2021,ADULT SOCIAL CARE,PEOPLEPLUS ILS,547.52,MH LTS 18-64,PAYMENTS TO CLIENTS (DIRECT PAYMENTS),2103285889,1000061886
02.07.2021,ADULT SOCIAL CARE,PEOPLEPLUS ILS,559.84,MH LTS 18-64,PAYMENTS TO CLIENTS (DIRECT PAYMENTS),2103286155,1000061886
02.07.2021,ADULT SOCIAL CARE,PEOPLEPLUS ILS,565.6,MH LTS 18-64,PAYMENTS TO CLIENTS (DIRECT PAYMENTS),2103285541,1000061886
02.07.2021,ADULT SOCIAL CARE,PEOPLEPLUS ILS,587.84,MH LTS 18-64,PAYMENTS TO CLIENTS (DIRECT PAYMENTS),2103285558,1000061886
02.07.2021,ADULT SOCIAL CARE,PEOPLEPLUS ILS,601.84,MH LTS 18-64,PAYMENTS TO CLIENTS (DIRECT PAYMENTS),2103285513,1000061886
02.07.2021,ADULT SOCIAL CARE,PEOPLEPLUS ILS,694.24,MH LTS 18-64,PAYMENTS TO CLIENTS (DIRECT PAYMENTS),2103285465,1000061886
02.07.2021,ADULT SOCIAL CARE,PEOPLEPLUS ILS,798.62,MH LTS 18-64,PAYMENTS TO CLIENTS (DIRECT PAYMENTS),2103285379,1000061886
02.07.2021,ADULT SOCIAL CARE,PEOPLEPLUS ILS,893.59,MH LTS 18-64,PAYMENTS TO CLIENTS (DIRECT PAYMENTS),2103285844,1000061886
02.07.2021,ADULT SOCIAL CARE,PEOPLEPLUS ILS,979.07,MH LTS 18-64,PAYMENTS TO CLIENTS (DIRECT PAYMENTS),2103286144,1000061886
02.07.2021,ADULT SOCIAL CARE,PEOPLEPLUS ILS,"1,064.83",MH LTS 18-64,PAYMENTS TO CLIENTS (DIRECT PAYMENTS),2103285573,1000061886
02.07.2021,ADULT SOCIAL CARE,PEOPLEPLUS ILS,"1,331.04",MH LTS 18-64,PAYMENTS TO CLIENTS (DIRECT PAYMENTS),2103285989,1000061886
02.07.2021,ADULT SOCIAL CARE,PEOPLEPLUS ILS,"1,464.23",MH LTS 18-64,PAYMENTS TO CLIENTS (DIRECT PAYMENTS),2103285807,1000061886
02.07.2021,ADULT SOCIAL CARE,PEOPLEPLUS ILS,"1,597.24",MH LTS 18-64,PAYMENTS TO CLIENTS (DIRECT PAYMENTS),2103285980,1000061886
02.07.2021,ADULT SOCIAL CARE,PEOPLEPLUS ILS,"1,597.24",MH LTS 18-64,PAYMENTS TO CLIENTS (DIRECT PAYMENTS),2103285986,1000061886
02.07.2021,ADULT SOCIAL CARE,PEOPLEPLUS ILS,"1,863.45",MH LTS 18-64,PAYMENTS TO CLIENTS (DIRECT PAYMENTS),2103285693,1000061886
02.07.2021,ADULT SOCIAL CARE,PEOPLEPLUS ILS,"2,024.05",MH LTS 18-64,PAYMENTS TO CLIENTS (DIRECT PAYMENTS),2103285845,1000061886
02.07.2021,ADULT SOCIAL CARE,PEOPLEPLUS ILS,"2,129.66",MH LTS 18-64,PAYMENTS TO CLIENTS (DIRECT PAYMENTS),2103285824,1000061886
02.07.2021,ADULT SOCIAL CARE,PEOPLEPLUS ILS,"2,311.60",MH LTS 18-64,PAYMENTS TO CLIENTS (DIRECT PAYMENTS),2103285630,1000061886
02.07.2021,ADULT SOCIAL CARE,PEOPLEPLUS ILS,"2,419.00",MH LTS 18-64,PAYMENTS TO CLIENTS (DIRECT PAYMENTS),2103286092,1000061886
02.07.2021,ADULT SOCIAL CARE,PEOPLEPLUS ILS,"2,662.07",MH LTS 18-64,PAYMENTS TO CLIENTS (DIRECT PAYMENTS),2103285971,1000061886
02.07.2021,ADULT SOCIAL CARE,PEOPLEPLUS ILS,"4,924.92",MH LTS 18-64,PAYMENTS TO CLIENTS (DIRECT PAYMENTS),2103285393,1000061886
02.07.2021,ADULT SOCIAL CARE,REDACTED PERSONAL DATA,"-1,391.34",MH LTS 18-64,PAYMENTS TO CLIENTS (DIRECT PAYMENTS),REDACTED,REDACTED
02.07.2021,ADULT SOCIAL CARE,REDACTED PERSONAL DATA,"1,930.05",MH LTS 18-64,PAYMENTS TO CLIENTS (DIRECT PAYMENTS),REDACTED,REDACTED
02.07.2021,ADULT SOCIAL CARE,REDACTED PERSONAL DATA,"1,158.36",MH LTS 18-64,PAYMENTS TO CLIENTS (DIRECT PAYMENTS),REDACTED,REDACTED
02.07.2021,ADULT SOCIAL CARE,REDACTED PERSONAL DATA,396,MH LTS 18-64,PAYMENTS TO CLIENTS (DIRECT PAYMENTS),REDACTED,REDACTED
02.07.2021,ADULT SOCIAL CARE,PROFAD CARE AGENCY,622.08,MH LTS 65+,HOMECARE - SPOT,2103284904,1000079032
02.07.2021,ADULT SOCIAL CARE,PROFAD CARE AGENCY,"1,010.88",MH LTS 65+,HOMECARE - SPOT,2103284917,1000079032
02.07.2021,ADULT SOCIAL CARE,PEOPLEPLUS ILS,-373.14,MH LTS 65+,PAYMENTS TO CLIENTS (DIRECT PAYMENTS),2103285933,1000061886
02.07.2021,ADULT SOCIAL CARE,PEOPLEPLUS ILS,279.72,MH LTS 65+,PAYMENTS TO CLIENTS (DIRECT PAYMENTS),2103285841,1000061886
02.07.2021,ADULT SOCIAL CARE,PEOPLEPLUS ILS,434.72,MH LTS 65+,PAYMENTS TO CLIENTS (DIRECT PAYMENTS),2103285619,1000061886
02.07.2021,ADULT SOCIAL CARE,PEOPLEPLUS ILS,532.41,MH LTS 65+,PAYMENTS TO CLIENTS (DIRECT PAYMENTS),2103285363,1000061886
02.07.2021,ADULT SOCIAL CARE,PEOPLEPLUS ILS,"1,202.60",MH LTS 65+,PAYMENTS TO CLIENTS (DIRECT PAYMENTS),2103286192,1000061886
02.07.2021,ADULT SOCIAL CARE,PEOPLEPLUS ILS,"-17,922.58",PHB- SOUTHWARK CCG,RECOVERABLE COSTS INCL. HEALTH,2103286017,1000061886
02.07.2021,ADULT SOCIAL CARE,PEOPLEPLUS ILS,"1,470.00",PHB- SOUTHWARK CCG,RECOVERABLE COSTS INCL. HEALTH,2103285524,1000061886
02.07.2021,ADULT SOCIAL CARE,PEOPLEPLUS ILS,"4,127.92",PHB- SOUTHWARK CCG,RECOVERABLE COSTS INCL. HEALTH,2103285632,1000061886
02.07.2021,ADULT SOCIAL CARE,REDACTED PERSONAL DATA,"9,079.20",PHB- SOUTHWARK CCG,RECOVERABLE COSTS INCL. HEALTH,REDACTED,REDACTED
02.07.2021,ADULT SOCIAL CARE,REDACTED PERSONAL DATA,"7,482.40",PHB- SOUTHWARK CCG,RECOVERABLE COSTS INCL. HEALTH,REDACTED,REDACTED
02.07.2021,ADULT SOCIAL CARE,REDACTED PERSONAL DATA,"2,549.52",PHB- SOUTHWARK CCG,RECOVERABLE COSTS INCL. HEALTH,REDACTED,REDACTED
02.07.2021,ADULT SOCIAL CARE,PEOPLEPLUS ILS,-454.84,PHY LTS 18-64,DISCRETIONARY FLEXIBLE FEES & INCOME,2103286035,1000061886
02.07.2021,ADULT SOCIAL CARE,PEOPLEPLUS ILS,-300.36,PHY LTS 18-64,DISCRETIONARY FLEXIBLE FEES & INCOME,2103285970,1000061886
02.07.2021,ADULT SOCIAL CARE,PEOPLEPLUS ILS,637.84,PHY LTS 18-64,DISCRETIONARY FLEXIBLE FEES & INCOME,2103285550,1000061886
02.07.2021,ADULT SOCIAL CARE,REDACTED PERSONAL DATA,-359.04,PHY LTS 18-64,DISCRETIONARY FLEXIBLE FEES & INCOME,REDACTED,REDACTED
02.07.2021,ADULT SOCIAL CARE,REDACTED PERSONAL DATA,-326.96,PHY LTS 18-64,DISCRETIONARY FLEXIBLE FEES & INCOME,REDACTED,REDACTED
02.07.2021,ADULT SOCIAL CARE,BUDDI LTD,712.8,PHY LTS 18-64,EXTERNAL AGENCIES AND BODIES,2103285360,1000067243
02.07.2021,ADULT SOCIAL CARE,LONDON CARE LTD,365.4,PHY LTS 18-64,HOMECARE - C&V,2103284973,1000003398
02.07.2021,ADULT SOCIAL CARE,PROFAD CARE AGENCY,"3,129.84",PHY LTS 18-64,HOMECARE - C&V,2103284903,1000079032
02.07.2021,ADULT SOCIAL CARE,PROFAD CARE AGENCY,272.16,PHY LTS 18-64,HOMECARE - SPOT,2103284915,1000079032
02.07.2021,ADULT SOCIAL CARE,PROFAD CARE AGENCY,364.5,PHY LTS 18-64,HOMECARE - SPOT,2103284947,1000079032
02.07.2021,ADULT SOCIAL CARE,PROFAD CARE AGENCY,408.24,PHY LTS 18-64,HOMECARE - SPOT,2103284914,1000079032
02.07.2021,ADULT SOCIAL CARE,PROFAD CARE AGENCY,544.32,PHY LTS 18-64,HOMECARE - SPOT,2103284905,1000079032
02.07.2021,ADULT SOCIAL CARE,PROFAD CARE AGENCY,738.72,PHY LTS 18-64,HOMECARE - SPOT,2103284895,1000079032
02.07.2021,ADULT SOCIAL CARE,PROFAD CARE AGENCY,"3,071.52",PHY LTS 18-64,HOMECARE - SPOT,2103284948,1000079032
02.07.2021,ADULT SOCIAL CARE,PROFAD CARE AGENCY,"3,888.00",PHY LTS 18-64,HOMECARE - SPOT,2103284946,1000079032
02.07.2021,ADULT SOCIAL CARE,PROFAD CARE AGENCY,"4,004.64",PHY LTS 18-64,HOMECARE - SPOT,2103284937,1000079032
02.07.2021,ADULT SOCIAL CARE,PEOPLEPLUS ILS,"-10,664.45",PHY LTS 18-64,PAYMENTS TO CLIENTS (DIRECT PAYMENTS),2103285295,1000061886
02.07.2021,ADULT SOCIAL CARE,PEOPLEPLUS ILS,"-6,682.50",PHY LTS 18-64,PAYMENTS TO CLIENTS (DIRECT PAYMENTS),2103285846,1000061886
02.07.2021,ADULT SOCIAL CARE,PEOPLEPLUS ILS,"-5,820.22",PHY LTS 18-64,PAYMENTS TO CLIENTS (DIRECT PAYMENTS),2103286055,1000061886
02.07.2021,ADULT SOCIAL CARE,PEOPLEPLUS ILS,"-4,591.60",PHY LTS 18-64,PAYMENTS TO CLIENTS (DIRECT PAYMENTS),2103285332,1000061886
02.07.2021,ADULT SOCIAL CARE,PEOPLEPLUS ILS,"-4,187.80",PHY LTS 18-64,PAYMENTS TO CLIENTS (DIRECT PAYMENTS),2103285618,1000061886
02.07.2021,ADULT SOCIAL CARE,PEOPLEPLUS ILS,"-4,091.85",PHY LTS 18-64,PAYMENTS TO CLIENTS (DIRECT PAYMENTS),2103285642,1000061886
02.07.2021,ADULT SOCIAL CARE,PEOPLEPLUS ILS,"-3,925.19",PHY LTS 18-64,PAYMENTS TO CLIENTS (DIRECT PAYMENTS),2103285543,1000061886
02.07.2021,ADULT SOCIAL CARE,PEOPLEPLUS ILS,"-3,804.00",PHY LTS 18-64,PAYMENTS TO CLIENTS (DIRECT PAYMENTS),2103285656,1000061886
02.07.2021,ADULT SOCIAL CARE,PEOPLEPLUS ILS,"-3,790.09",PHY LTS 18-64,PAYMENTS TO CLIENTS (DIRECT PAYMENTS),2103285521,1000061886
02.07.2021,ADULT SOCIAL CARE,PEOPLEPLUS ILS,"-3,754.19",PHY LTS 18-64,PAYMENTS TO CLIENTS (DIRECT PAYMENTS),2103285608,1000061886
02.07.2021,ADULT SOCIAL CARE,PEOPLEPLUS ILS,"-3,660.14",PHY LTS 18-64,PAYMENTS TO CLIENTS (DIRECT PAYMENTS),2103286042,1000061886
02.07.2021,ADULT SOCIAL CARE,PEOPLEPLUS ILS,"-3,422.10",PHY LTS 18-64,PAYMENTS TO CLIENTS (DIRECT PAYMENTS),2103285732,1000061886
02.07.2021,ADULT SOCIAL CARE,PEOPLEPLUS ILS,"-3,276.34",PHY LTS 18-64,PAYMENTS TO CLIENTS (DIRECT PAYMENTS),2103285653,1000061886
02.07.2021,ADULT SOCIAL CARE,PEOPLEPLUS ILS,"-3,180.39",PHY LTS 18-64,PAYMENTS TO CLIENTS (DIRECT PAYMENTS),2103285555,1000061886
02.07.2021,ADULT SOCIAL CARE,PEOPLEPLUS ILS,"-3,152.35",PHY LTS 18-64,PAYMENTS TO CLIENTS (DIRECT PAYMENTS),2103285858,1000061886
02.07.2021,ADULT SOCIAL CARE,PEOPLEPLUS ILS,"-2,937.40",PHY LTS 18-64,PAYMENTS TO CLIENTS (DIRECT PAYMENTS),2103285297,1000061886
02.07.2021,ADULT SOCIAL CARE,PEOPLEPLUS ILS,"-2,700.64",PHY LTS 18-64,PAYMENTS TO CLIENTS (DIRECT PAYMENTS),2103285310,1000061886
02.07.2021,ADULT SOCIAL CARE,PEOPLEPLUS ILS,"-2,604.69",PHY LTS 18-64,PAYMENTS TO CLIENTS (DIRECT PAYMENTS),2103286179,1000061886
02.07.2021,ADULT SOCIAL CARE,PEOPLEPLUS ILS,"-2,460.70",PHY LTS 18-64,PAYMENTS TO CLIENTS (DIRECT PAYMENTS),2103286142,1000061886
02.07.2021,ADULT SOCIAL CARE,PEOPLEPLUS ILS,"-2,364.75",PHY LTS 18-64,PAYMENTS TO CLIENTS (DIRECT PAYMENTS),2103285564,1000061886
02.07.2021,ADULT SOCIAL CARE,PEOPLEPLUS ILS,"-2,062.99",PHY LTS 18-64,PAYMENTS TO CLIENTS (DIRECT PAYMENTS),2103286164,1000061886
02.07.2021,ADULT SOCIAL CARE,PEOPLEPLUS ILS,"-2,028.99",PHY LTS 18-64,PAYMENTS TO CLIENTS (DIRECT PAYMENTS),2103285856,1000061886
02.07.2021,ADULT SOCIAL CARE,PEOPLEPLUS ILS,"-1,980.95",PHY LTS 18-64,PAYMENTS TO CLIENTS (DIRECT PAYMENTS),2103285526,1000061886
02.07.2021,ADULT SOCIAL CARE,PEOPLEPLUS ILS,"-1,933.04",PHY LTS 18-64,PAYMENTS TO CLIENTS (DIRECT PAYMENTS),2103285859,1000061886
02.07.2021,ADULT SOCIAL CARE,PEOPLEPLUS ILS,"-1,933.04",PHY LTS 18-64,PAYMENTS TO CLIENTS (DIRECT PAYMENTS),2103286117,1000061886
02.07.2021,ADULT SOCIAL CARE,PEOPLEPLUS ILS,"-1,885.00",PHY LTS 18-64,PAYMENTS TO CLIENTS (DIRECT PAYMENTS),2103285918,1000061886
02.07.2021,ADULT SOCIAL CARE,PEOPLEPLUS ILS,"-1,881.95",PHY LTS 18-64,PAYMENTS TO CLIENTS (DIRECT PAYMENTS),2103285459,1000061886
02.07.2021,ADULT SOCIAL CARE,PEOPLEPLUS ILS,"-1,837.09",PHY LTS 18-64,PAYMENTS TO CLIENTS (DIRECT PAYMENTS),2103285475,1000061886
02.07.2021,ADULT SOCIAL CARE,PEOPLEPLUS ILS,"-1,781.93",PHY LTS 18-64,PAYMENTS TO CLIENTS (DIRECT PAYMENTS),2103285842,1000061886
02.07.2021,ADULT SOCIAL CARE,PEOPLEPLUS ILS,"-1,710.00",PHY LTS 18-64,PAYMENTS TO CLIENTS (DIRECT PAYMENTS),2103285870,1000061886
02.07.2021,ADULT SOCIAL CARE,PEOPLEPLUS ILS,"-1,653.25",PHY LTS 18-64,PAYMENTS TO CLIENTS (DIRECT PAYMENTS),2103285307,1000061886
02.07.2021,ADULT SOCIAL CARE,PEOPLEPLUS ILS,"-1,456.46",PHY LTS 18-64,PAYMENTS TO CLIENTS (DIRECT PAYMENTS),2103285301,1000061886
02.07.2021,ADULT SOCIAL CARE,PEOPLEPLUS ILS,"-1,351.11",PHY LTS 18-64,PAYMENTS TO CLIENTS (DIRECT PAYMENTS),2103285615,1000061886
02.07.2021,ADULT SOCIAL CARE,PEOPLEPLUS ILS,"-1,309.30",PHY LTS 18-64,PAYMENTS TO CLIENTS (DIRECT PAYMENTS),2103285828,1000061886
02.07.2021,ADULT SOCIAL CARE,PEOPLEPLUS ILS,"-1,165.44",PHY LTS 18-64,PAYMENTS TO CLIENTS (DIRECT PAYMENTS),2103285417,1000061886
02.07.2021,ADULT SOCIAL CARE,PEOPLEPLUS ILS,-365.46,PHY LTS 18-64,PAYMENTS TO CLIENTS (DIRECT PAYMENTS),2103285512,1000061886
02.07.2021,ADULT SOCIAL CARE,PEOPLEPLUS ILS,274.16,PHY LTS 18-64,PAYMENTS TO CLIENTS (DIRECT PAYMENTS),2103285537,1000061886
02.07.2021,ADULT SOCIAL CARE,PEOPLEPLUS ILS,295.04,PHY LTS 18-64,PAYMENTS TO CLIENTS (DIRECT PAYMENTS),2103285598,1000061886
02.07.2021,ADULT SOCIAL CARE,PEOPLEPLUS ILS,420.72,PHY LTS 18-64,PAYMENTS TO CLIENTS (DIRECT PAYMENTS),2103285353,1000061886
02.07.2021,ADULT SOCIAL CARE,PEOPLEPLUS ILS,446.17,PHY LTS 18-64,PAYMENTS TO CLIENTS (DIRECT PAYMENTS),2103285620,1000061886
02.07.2021,ADULT SOCIAL CARE,PEOPLEPLUS ILS,488.52,PHY LTS 18-64,PAYMENTS TO CLIENTS (DIRECT PAYMENTS),2103286037,1000061886
02.07.2021,ADULT SOCIAL CARE,PEOPLEPLUS ILS,543.04,PHY LTS 18-64,PAYMENTS TO CLIENTS (DIRECT PAYMENTS),2103285416,1000061886
02.07.2021,ADULT SOCIAL CARE,PEOPLEPLUS ILS,609.77,PHY LTS 18-64,PAYMENTS TO CLIENTS (DIRECT PAYMENTS),2103286119,1000061886
02.07.2021,ADULT SOCIAL CARE,PEOPLEPLUS ILS,670,PHY LTS 18-64,PAYMENTS TO CLIENTS (DIRECT PAYMENTS),2103285359,1000061886
02.07.2021,ADULT SOCIAL CARE,PEOPLEPLUS ILS,678.72,PHY LTS 18-64,PAYMENTS TO CLIENTS (DIRECT PAYMENTS),2103286005,1000061886
02.07.2021,ADULT SOCIAL CARE,PEOPLEPLUS ILS,678.72,PHY LTS 18-64,PAYMENTS TO CLIENTS (DIRECT PAYMENTS),2103286158,1000061886
02.07.2021,ADULT SOCIAL CARE,PEOPLEPLUS ILS,757.07,PHY LTS 18-64,PAYMENTS TO CLIENTS (DIRECT PAYMENTS),2103286077,1000061886
02.07.2021,ADULT SOCIAL CARE,PEOPLEPLUS ILS,795.63,PHY LTS 18-64,PAYMENTS TO CLIENTS (DIRECT PAYMENTS),2103285627,1000061886
02.07.2021,ADULT SOCIAL CARE,PEOPLEPLUS ILS,819.75,PHY LTS 18-64,PAYMENTS TO CLIENTS (DIRECT PAYMENTS),2103285621,1000061886
02.07.2021,ADULT SOCIAL CARE,PEOPLEPLUS ILS,835.93,PHY LTS 18-64,PAYMENTS TO CLIENTS (DIRECT PAYMENTS),2103285868,1000061886
02.07.2021,ADULT SOCIAL CARE,PEOPLEPLUS ILS,864.88,PHY LTS 18-64,PAYMENTS TO CLIENTS (DIRECT PAYMENTS),2103286036,1000061886
02.07.2021,ADULT SOCIAL CARE,PEOPLEPLUS ILS,869.93,PHY LTS 18-64,PAYMENTS TO CLIENTS (DIRECT PAYMENTS),2103285712,1000061886
02.07.2021,ADULT SOCIAL CARE,PEOPLEPLUS ILS,873.37,PHY LTS 18-64,PAYMENTS TO CLIENTS (DIRECT PAYMENTS),2103285308,1000061886
02.07.2021,ADULT SOCIAL CARE,PEOPLEPLUS ILS,888.62,PHY LTS 18-64,PAYMENTS TO CLIENTS (DIRECT PAYMENTS),2103285634,1000061886
02.07.2021,ADULT SOCIAL CARE,PEOPLEPLUS ILS,927.17,PHY LTS 18-64,PAYMENTS TO CLIENTS (DIRECT PAYMENTS),2103286052,1000061886
02.07.2021,ADULT SOCIAL CARE,PEOPLEPLUS ILS,973.32,PHY LTS 18-64,PAYMENTS TO CLIENTS (DIRECT PAYMENTS),2103285795,1000061886
02.07.2021,ADULT SOCIAL CARE,PEOPLEPLUS ILS,978.32,PHY LTS 18-64,PAYMENTS TO CLIENTS (DIRECT PAYMENTS),2103285822,1000061886
02.07.2021,ADULT SOCIAL CARE,PEOPLEPLUS ILS,999.99,PHY LTS 18-64,PAYMENTS TO CLIENTS (DIRECT PAYMENTS),2103285503,1000061886
02.07.2021,ADULT SOCIAL CARE,PEOPLEPLUS ILS,"1,023.80",PHY LTS 18-64,PAYMENTS TO CLIENTS (DIRECT PAYMENTS),2103285461,1000061886
02.07.2021,ADULT SOCIAL CARE,PEOPLEPLUS ILS,"1,084.70",PHY LTS 18-64,PAYMENTS TO CLIENTS (DIRECT PAYMENTS),2103285728,1000061886
02.07.2021,ADULT SOCIAL CARE,PEOPLEPLUS ILS,"1,218.43",PHY LTS 18-64,PAYMENTS TO CLIENTS (DIRECT PAYMENTS),2103286056,1000061886
02.07.2021,ADULT SOCIAL CARE,PEOPLEPLUS ILS,"1,244.54",PHY LTS 18-64,PAYMENTS TO CLIENTS (DIRECT PAYMENTS),2103285921,1000061886
02.07.2021,ADULT SOCIAL CARE,PEOPLEPLUS ILS,"1,329.89",PHY LTS 18-64,PAYMENTS TO CLIENTS (DIRECT PAYMENTS),2103285945,1000061886
02.07.2021,ADULT SOCIAL CARE,PEOPLEPLUS ILS,"1,330.00",PHY LTS 18-64,PAYMENTS TO CLIENTS (DIRECT PAYMENTS),2103285941,1000061886
02.07.2021,ADULT SOCIAL CARE,PEOPLEPLUS ILS,"1,480.86",PHY LTS 18-64,PAYMENTS TO CLIENTS (DIRECT PAYMENTS),2103286063,1000061886
02.07.2021,ADULT SOCIAL CARE,PEOPLEPLUS ILS,"1,560.45",PHY LTS 18-64,PAYMENTS TO CLIENTS (DIRECT PAYMENTS),2103285745,1000061886
02.07.2021,ADULT SOCIAL CARE,PEOPLEPLUS ILS,"1,566.50",PHY LTS 18-64,PAYMENTS TO CLIENTS (DIRECT PAYMENTS),2103285633,1000061886
02.07.2021,ADULT SOCIAL CARE,PEOPLEPLUS ILS,"1,663.84",PHY LTS 18-64,PAYMENTS TO CLIENTS (DIRECT PAYMENTS),2103285433,1000061886
02.07.2021,ADULT SOCIAL CARE,PEOPLEPLUS ILS,"1,676.00",PHY LTS 18-64,PAYMENTS TO CLIENTS (DIRECT PAYMENTS),2103285623,1000061886
02.07.2021,ADULT SOCIAL CARE,PEOPLEPLUS ILS,"1,786.55",PHY LTS 18-64,PAYMENTS TO CLIENTS (DIRECT PAYMENTS),2103285525,1000061886
02.07.2021,ADULT SOCIAL CARE,PEOPLEPLUS ILS,"1,863.45",PHY LTS 18-64,PAYMENTS TO CLIENTS (DIRECT PAYMENTS),2103285491,1000061886
02.07.2021,ADULT SOCIAL CARE,PEOPLEPLUS ILS,"1,945.06",PHY LTS 18-64,PAYMENTS TO CLIENTS (DIRECT PAYMENTS),2103285727,1000061886
02.07.2021,ADULT SOCIAL CARE,PEOPLEPLUS ILS,"2,329.27",PHY LTS 18-64,PAYMENTS TO CLIENTS (DIRECT PAYMENTS),2103285580,1000061886
02.07.2021,ADULT SOCIAL CARE,PEOPLEPLUS ILS,"2,595.48",PHY LTS 18-64,PAYMENTS TO CLIENTS (DIRECT PAYMENTS),2103285434,1000061886
02.07.2021,ADULT SOCIAL CARE,PEOPLEPLUS ILS,"2,662.07",PHY LTS 18-64,PAYMENTS TO CLIENTS (DIRECT PAYMENTS),2103285571,1000061886
02.07.2021,ADULT SOCIAL CARE,PEOPLEPLUS ILS,"2,662.07",PHY LTS 18-64,PAYMENTS TO CLIENTS (DIRECT PAYMENTS),2103285584,1000061886
02.07.2021,ADULT SOCIAL CARE,PEOPLEPLUS ILS,"2,728.67",PHY LTS 18-64,PAYMENTS TO CLIENTS (DIRECT PAYMENTS),2103285383,1000061886
02.07.2021,ADULT SOCIAL CARE,PEOPLEPLUS ILS,"2,728.67",PHY LTS 18-64,PAYMENTS TO CLIENTS (DIRECT PAYMENTS),2103285821,1000061886
02.07.2021,ADULT SOCIAL CARE,PEOPLEPLUS ILS,"2,728.67",PHY LTS 18-64,PAYMENTS TO CLIENTS (DIRECT PAYMENTS),2103286080,1000061886
02.07.2021,ADULT SOCIAL CARE,PEOPLEPLUS ILS,"2,795.26",PHY LTS 18-64,PAYMENTS TO CLIENTS (DIRECT PAYMENTS),2103285589,1000061886
02.07.2021,ADULT SOCIAL CARE,PEOPLEPLUS ILS,"2,795.26",PHY LTS 18-64,PAYMENTS TO CLIENTS (DIRECT PAYMENTS),2103285800,1000061886
02.07.2021,ADULT SOCIAL CARE,PEOPLEPLUS ILS,"2,861.68",PHY LTS 18-64,PAYMENTS TO CLIENTS (DIRECT PAYMENTS),2103285691,1000061886
02.07.2021,ADULT SOCIAL CARE,PEOPLEPLUS ILS,"2,861.68",PHY LTS 18-64,PAYMENTS TO CLIENTS (DIRECT PAYMENTS),2103285983,1000061886
02.07.2021,ADULT SOCIAL CARE,PEOPLEPLUS ILS,"3,262.29",PHY LTS 18-64,PAYMENTS TO CLIENTS (DIRECT PAYMENTS),2103285570,1000061886
02.07.2021,ADULT SOCIAL CARE,PEOPLEPLUS ILS,"3,307.52",PHY LTS 18-64,PAYMENTS TO CLIENTS (DIRECT PAYMENTS),2103286046,1000061886
02.07.2021,ADULT SOCIAL CARE,PEOPLEPLUS ILS,"3,327.68",PHY LTS 18-64,PAYMENTS TO CLIENTS (DIRECT PAYMENTS),2103285375,1000061886
02.07.2021,ADULT SOCIAL CARE,PEOPLEPLUS ILS,"3,460.69",PHY LTS 18-64,PAYMENTS TO CLIENTS (DIRECT PAYMENTS),2103285388,1000061886
02.07.2021,ADULT SOCIAL CARE,PEOPLEPLUS ILS,"3,541.81",PHY LTS 18-64,PAYMENTS TO CLIENTS (DIRECT PAYMENTS),2103285912,1000061886
02.07.2021,ADULT SOCIAL CARE,PEOPLEPLUS ILS,"3,576.40",PHY LTS 18-64,PAYMENTS TO CLIENTS (DIRECT PAYMENTS),2103285606,1000061886
02.07.2021,ADULT SOCIAL CARE,PEOPLEPLUS ILS,"3,660.30",PHY LTS 18-64,PAYMENTS TO CLIENTS (DIRECT PAYMENTS),2103285583,1000061886
02.07.2021,ADULT SOCIAL CARE,PEOPLEPLUS ILS,"3,793.50",PHY LTS 18-64,PAYMENTS TO CLIENTS (DIRECT PAYMENTS),2103285978,1000061886
02.07.2021,ADULT SOCIAL CARE,PEOPLEPLUS ILS,"4,259.31",PHY LTS 18-64,PAYMENTS TO CLIENTS (DIRECT PAYMENTS),2103285435,1000061886
02.07.2021,ADULT SOCIAL CARE,PEOPLEPLUS ILS,"4,364.66",PHY LTS 18-64,PAYMENTS TO CLIENTS (DIRECT PAYMENTS),2103285850,1000061886
02.07.2021,ADULT SOCIAL CARE,PEOPLEPLUS ILS,"4,391.64",PHY LTS 18-64,PAYMENTS TO CLIENTS (DIRECT PAYMENTS),2103285516,1000061886
02.07.2021,ADULT SOCIAL CARE,PEOPLEPLUS ILS,"4,392.51",PHY LTS 18-64,PAYMENTS TO CLIENTS (DIRECT PAYMENTS),2103285977,1000061886
02.07.2021,ADULT SOCIAL CARE,PEOPLEPLUS ILS,"4,458.93",PHY LTS 18-64,PAYMENTS TO CLIENTS (DIRECT PAYMENTS),2103285489,1000061886
02.07.2021,ADULT SOCIAL CARE,PEOPLEPLUS ILS,"4,525.52",PHY LTS 18-64,PAYMENTS TO CLIENTS (DIRECT PAYMENTS),2103285699,1000061886
02.07.2021,ADULT SOCIAL CARE,PEOPLEPLUS ILS,"4,592.12",PHY LTS 18-64,PAYMENTS TO CLIENTS (DIRECT PAYMENTS),2103285681,1000061886
02.07.2021,ADULT SOCIAL CARE,PEOPLEPLUS ILS,"5,124.53",PHY LTS 18-64,PAYMENTS TO CLIENTS (DIRECT PAYMENTS),2103286085,1000061886
02.07.2021,ADULT SOCIAL CARE,PEOPLEPLUS ILS,"5,124.53",PHY LTS 18-64,PAYMENTS TO CLIENTS (DIRECT PAYMENTS),2103286086,1000061886
02.07.2021,ADULT SOCIAL CARE,PEOPLEPLUS ILS,"5,257.55",PHY LTS 18-64,PAYMENTS TO CLIENTS (DIRECT PAYMENTS),2103285387,1000061886
02.07.2021,ADULT SOCIAL CARE,PEOPLEPLUS ILS,"5,324.14",PHY LTS 18-64,PAYMENTS TO CLIENTS (DIRECT PAYMENTS),2103285816,1000061886
02.07.2021,ADULT SOCIAL CARE,PEOPLEPLUS ILS,"5,457.33",PHY LTS 18-64,PAYMENTS TO CLIENTS (DIRECT PAYMENTS),2103285803,1000061886
02.07.2021,ADULT SOCIAL CARE,PEOPLEPLUS ILS,"5,723.54",PHY LTS 18-64,PAYMENTS TO CLIENTS (DIRECT PAYMENTS),2103285361,1000061886
02.07.2021,ADULT SOCIAL CARE,PEOPLEPLUS ILS,"5,856.56",PHY LTS 18-64,PAYMENTS TO CLIENTS (DIRECT PAYMENTS),2103285485,1000061886
02.07.2021,ADULT SOCIAL CARE,PEOPLEPLUS ILS,"6,388.97",PHY LTS 18-64,PAYMENTS TO CLIENTS (DIRECT PAYMENTS),2103285384,1000061886
02.07.2021,ADULT SOCIAL CARE,PEOPLEPLUS ILS,"8,185.83",PHY LTS 18-64,PAYMENTS TO CLIENTS (DIRECT PAYMENTS),2103285990,1000061886
02.07.2021,ADULT SOCIAL CARE,PEOPLEPLUS ILS,"9,317.25",PHY LTS 18-64,PAYMENTS TO CLIENTS (DIRECT PAYMENTS),2103285579,1000061886
02.07.2021,ADULT SOCIAL CARE,PEOPLEPLUS ILS,"15,839.41",PHY LTS 18-64,PAYMENTS TO CLIENTS (DIRECT PAYMENTS),2103285365,1000061886
02.07.2021,ADULT SOCIAL CARE,FRESH IDEAS & SOLUTIONS SERVICES CIC,"-3,612.10",PHY LTS 18-64,PAYMENTS TO CLIENTS (DIRECT PAYMENTS),2103285611,1000070832
02.07.2021,ADULT SOCIAL CARE,FRESH IDEAS & SOLUTIONS SERVICES CIC,"-2,268.80",PHY LTS 18-64,PAYMENTS TO CLIENTS (DIRECT PAYMENTS),2103285718,1000070832
02.07.2021,ADULT SOCIAL CARE,FRESH IDEAS & SOLUTIONS SERVICES CIC,870,PHY LTS 18-64,PAYMENTS TO CLIENTS (DIRECT PAYMENTS),2103285938,1000070832
02.07.2021,ADULT SOCIAL CARE,FRESH IDEAS & SOLUTIONS SERVICES CIC,"1,094.52",PHY LTS 18-64,PAYMENTS TO CLIENTS (DIRECT PAYMENTS),2103285791,1000070832
02.07.2021,ADULT SOCIAL CARE,FRESH IDEAS & SOLUTIONS SERVICES CIC,"3,194.49",PHY LTS 18-64,PAYMENTS TO CLIENTS (DIRECT PAYMENTS),2103285380,1000070832
02.07.2021,ADULT SOCIAL CARE,FRESH IDEAS & SOLUTIONS SERVICES CIC,"5,057.94",PHY LTS 18-64,PAYMENTS TO CLIENTS (DIRECT PAYMENTS),2103285987,1000070832
02.07.2021,ADULT SOCIAL CARE,REDACTED PERSONAL DATA,"-5,373.20",PHY LTS 18-64,PAYMENTS TO CLIENTS (DIRECT PAYMENTS),REDACTED,REDACTED
02.07.2021,ADULT SOCIAL CARE,REDACTED PERSONAL DATA,"7,453.80",PHY LTS 18-64,PAYMENTS TO CLIENTS (DIRECT PAYMENTS),REDACTED,REDACTED
02.07.2021,ADULT SOCIAL CARE,REDACTED PERSONAL DATA,707.32,PHY LTS 18-64,PAYMENTS TO CLIENTS (DIRECT PAYMENTS),REDACTED,REDACTED
02.07.2021,ADULT SOCIAL CARE,REDACTED PERSONAL DATA,"-3,070.40",PHY LTS 18-64,PAYMENTS TO CLIENTS (DIRECT PAYMENTS),REDACTED,REDACTED
02.07.2021,ADULT SOCIAL CARE,REDACTED PERSONAL DATA,"4,259.31",PHY LTS 18-64,PAYMENTS TO CLIENTS (DIRECT PAYMENTS),REDACTED,REDACTED
02.07.2021,ADULT SOCIAL CARE,REDACTED PERSONAL DATA,"3,140.90",PHY LTS 18-64,PAYMENTS TO CLIENTS (DIRECT PAYMENTS),REDACTED,REDACTED
02.07.2021,ADULT SOCIAL CARE,REDACTED PERSONAL DATA,"1,504.70",PHY LTS 18-64,PAYMENTS TO CLIENTS (DIRECT PAYMENTS),REDACTED,REDACTED
02.07.2021,ADULT SOCIAL CARE,REDACTED PERSONAL DATA,"-2,734.64",PHY LTS 18-64,PAYMENTS TO CLIENTS (DIRECT PAYMENTS),REDACTED,REDACTED
02.07.2021,ADULT SOCIAL CARE,REDACTED PERSONAL DATA,"1,137.00",PHY LTS 18-64,PAYMENTS TO CLIENTS (DIRECT PAYMENTS),REDACTED,REDACTED
02.07.2021,ADULT SOCIAL CARE,REDACTED PERSONAL DATA,-863.55,PHY LTS 18-64,PAYMENTS TO CLIENTS (DIRECT PAYMENTS),REDACTED,REDACTED
02.07.2021,ADULT SOCIAL CARE,REDACTED PERSONAL DATA,"1,198.02",PHY LTS 18-64,PAYMENTS TO CLIENTS (DIRECT PAYMENTS),REDACTED,REDACTED
02.07.2021,ADULT SOCIAL CARE,REDACTED PERSONAL DATA,738,PHY LTS 18-64,PAYMENTS TO CLIENTS (DIRECT PAYMENTS),REDACTED,REDACTED
02.07.2021,ADULT SOCIAL CARE,REDACTED PERSONAL DATA,"-1,343.30",PHY LTS 18-64,PAYMENTS TO CLIENTS (DIRECT PAYMENTS),REDACTED,REDACTED
02.07.2021,ADULT SOCIAL CARE,REDACTED PERSONAL DATA,"1,863.45",PHY LTS 18-64,PAYMENTS TO CLIENTS (DIRECT PAYMENTS),REDACTED,REDACTED
02.07.2021,ADULT SOCIAL CARE,REDACTED PERSONAL DATA,"-3,838.00",PHY LTS 18-64,PAYMENTS TO CLIENTS (DIRECT PAYMENTS),REDACTED,REDACTED
02.07.2021,ADULT SOCIAL CARE,REDACTED PERSONAL DATA,"5,324.14",PHY LTS 18-64,PAYMENTS TO CLIENTS (DIRECT PAYMENTS),REDACTED,REDACTED
02.07.2021,ADULT SOCIAL CARE,REDACTED PERSONAL DATA,593.88,PHY LTS 18-64,PAYMENTS TO CLIENTS (DIRECT PAYMENTS),REDACTED,REDACTED
02.07.2021,ADULT SOCIAL CARE,REDACTED PERSONAL DATA,"-1,871.09",PHY LTS 18-64,PAYMENTS TO CLIENTS (DIRECT PAYMENTS),REDACTED,REDACTED
02.07.2021,ADULT SOCIAL CARE,REDACTED PERSONAL DATA,"2,595.48",PHY LTS 18-64,PAYMENTS TO CLIENTS (DIRECT PAYMENTS),REDACTED,REDACTED
02.07.2021,ADULT SOCIAL CARE,REDACTED PERSONAL DATA,"-4,653.64",PHY LTS 18-64,PAYMENTS TO CLIENTS (DIRECT PAYMENTS),REDACTED,REDACTED
02.07.2021,ADULT SOCIAL CARE,REDACTED PERSONAL DATA,"6,455.57",PHY LTS 18-64,PAYMENTS TO CLIENTS (DIRECT PAYMENTS),REDACTED,REDACTED
02.07.2021,ADULT SOCIAL CARE,REDACTED PERSONAL DATA,"1,204.16",PHY LTS 18-64,PAYMENTS TO CLIENTS (DIRECT PAYMENTS),REDACTED,REDACTED
02.07.2021,ADULT SOCIAL CARE,REDACTED PERSONAL DATA,"-4,150.84",PHY LTS 18-64,PAYMENTS TO CLIENTS (DIRECT PAYMENTS),REDACTED,REDACTED
02.07.2021,ADULT SOCIAL CARE,REDACTED PERSONAL DATA,"5,923.15",PHY LTS 18-64,PAYMENTS TO CLIENTS (DIRECT PAYMENTS),REDACTED,REDACTED
02.07.2021,ADULT SOCIAL CARE,REDACTED PERSONAL DATA,"-11,993.75",PHY LTS 18-64,PAYMENTS TO CLIENTS (DIRECT PAYMENTS),REDACTED,REDACTED
02.07.2021,ADULT SOCIAL CARE,REDACTED PERSONAL DATA,"1,481.20",PHY LTS 18-64,PAYMENTS TO CLIENTS (DIRECT PAYMENTS),REDACTED,REDACTED
02.07.2021,ADULT SOCIAL CARE,REDACTED PERSONAL DATA,"15,528.75",PHY LTS 18-64,PAYMENTS TO CLIENTS (DIRECT PAYMENTS),REDACTED,REDACTED
02.07.2021,ADULT SOCIAL CARE,REDACTED PERSONAL DATA,"-7,676.00",PHY LTS 18-64,PAYMENTS TO CLIENTS (DIRECT PAYMENTS),REDACTED,REDACTED
02.07.2021,ADULT SOCIAL CARE,REDACTED PERSONAL DATA,"10,648.29",PHY LTS 18-64,PAYMENTS TO CLIENTS (DIRECT PAYMENTS),REDACTED,REDACTED
02.07.2021,ADULT SOCIAL CARE,REDACTED PERSONAL DATA,585.6,PHY LTS 18-64,PAYMENTS TO CLIENTS (DIRECT PAYMENTS),REDACTED,REDACTED
02.07.2021,ADULT SOCIAL CARE,REDACTED PERSONAL DATA,"-1,588.35",PHY LTS 18-64,PAYMENTS TO CLIENTS (DIRECT PAYMENTS),REDACTED,REDACTED
02.07.2021,ADULT SOCIAL CARE,REDACTED PERSONAL DATA,"2,262.85",PHY LTS 18-64,PAYMENTS TO CLIENTS (DIRECT PAYMENTS),REDACTED,REDACTED
02.07.2021,ADULT SOCIAL CARE,REDACTED PERSONAL DATA,"-3,262.30",PHY LTS 18-64,PAYMENTS TO CLIENTS (DIRECT PAYMENTS),REDACTED,REDACTED
02.07.2021,ADULT SOCIAL CARE,REDACTED PERSONAL DATA,"4,525.52",PHY LTS 18-64,PAYMENTS TO CLIENTS (DIRECT PAYMENTS),REDACTED,REDACTED
02.07.2021,ADULT SOCIAL CARE,REDACTED PERSONAL DATA,-802.89,PHY LTS 18-64,PAYMENTS TO CLIENTS (DIRECT PAYMENTS),REDACTED,REDACTED
02.07.2021,ADULT SOCIAL CARE,REDACTED PERSONAL DATA,"1,064.83",PHY LTS 18-64,PAYMENTS TO CLIENTS (DIRECT PAYMENTS),REDACTED,REDACTED
02.07.2021,ADULT SOCIAL CARE,REDACTED PERSONAL DATA,"-3,385.37",PHY LTS 18-64,PAYMENTS TO CLIENTS (DIRECT PAYMENTS),REDACTED,REDACTED
02.07.2021,ADULT SOCIAL CARE,REDACTED PERSONAL DATA,"4,725.13",PHY LTS 18-64,PAYMENTS TO CLIENTS (DIRECT PAYMENTS),REDACTED,REDACTED
02.07.2021,ADULT SOCIAL CARE,REDACTED PERSONAL DATA,"1,040.30",PHY LTS 18-64,PAYMENTS TO CLIENTS (DIRECT PAYMENTS),REDACTED,REDACTED
02.07.2021,ADULT SOCIAL CARE,REDACTED PERSONAL DATA,"-4,217.08",PHY LTS 18-64,PAYMENTS TO CLIENTS (DIRECT PAYMENTS),REDACTED,REDACTED
02.07.2021,ADULT SOCIAL CARE,REDACTED PERSONAL DATA,"7,453.80",PHY LTS 18-64,PAYMENTS TO CLIENTS (DIRECT PAYMENTS),REDACTED,REDACTED
02.07.2021,ADULT SOCIAL CARE,REDACTED PERSONAL DATA,"-1,007.54",PHY LTS 18-64,PAYMENTS TO CLIENTS (DIRECT PAYMENTS),REDACTED,REDACTED
02.07.2021,ADULT SOCIAL CARE,REDACTED PERSONAL DATA,"1,397.63",PHY LTS 18-64,PAYMENTS TO CLIENTS (DIRECT PAYMENTS),REDACTED,REDACTED
02.07.2021,ADULT SOCIAL CARE,REDACTED PERSONAL DATA,"-2,878.50",PHY LTS 18-64,PAYMENTS TO CLIENTS (DIRECT PAYMENTS),REDACTED,REDACTED
02.07.2021,ADULT SOCIAL CARE,REDACTED PERSONAL DATA,"3,993.11",PHY LTS 18-64,PAYMENTS TO CLIENTS (DIRECT PAYMENTS),REDACTED,REDACTED
02.07.2021,ADULT SOCIAL CARE,REDACTED PERSONAL DATA,"1,021.61",PHY LTS 18-64,PAYMENTS TO CLIENTS (DIRECT PAYMENTS),REDACTED,REDACTED
02.07.2021,ADULT SOCIAL CARE,REDACTED PERSONAL DATA,707,PHY LTS 18-64,PAYMENTS TO CLIENTS (DIRECT PAYMENTS),REDACTED,REDACTED
02.07.2021,ADULT SOCIAL CARE,REDACTED PERSONAL DATA,"-3,166.35",PHY LTS 18-64,PAYMENTS TO CLIENTS (DIRECT PAYMENTS),REDACTED,REDACTED
02.07.2021,ADULT SOCIAL CARE,REDACTED PERSONAL DATA,"4,392.51",PHY LTS 18-64,PAYMENTS TO CLIENTS (DIRECT PAYMENTS),REDACTED,REDACTED
02.07.2021,ADULT SOCIAL CARE,REDACTED PERSONAL DATA,"2,842.23",PHY LTS 18-64,PAYMENTS TO CLIENTS (DIRECT PAYMENTS),REDACTED,REDACTED
02.07.2021,ADULT SOCIAL CARE,REDACTED PERSONAL DATA,"-5,373.20",PHY LTS 18-64,PAYMENTS TO CLIENTS (DIRECT PAYMENTS),REDACTED,REDACTED
02.07.2021,ADULT SOCIAL CARE,REDACTED PERSONAL DATA,"7,453.80",PHY LTS 18-64,PAYMENTS TO CLIENTS (DIRECT PAYMENTS),REDACTED,REDACTED
02.07.2021,ADULT SOCIAL CARE,REDACTED PERSONAL DATA,751.96,PHY LTS 18-64,PAYMENTS TO CLIENTS (DIRECT PAYMENTS),REDACTED,REDACTED
02.07.2021,ADULT SOCIAL CARE,REDACTED PERSONAL DATA,"-3,338.25",PHY LTS 18-64,PAYMENTS TO CLIENTS (DIRECT PAYMENTS),REDACTED,REDACTED
02.07.2021,ADULT SOCIAL CARE,REDACTED PERSONAL DATA,"5,764.22",PHY LTS 18-64,PAYMENTS TO CLIENTS (DIRECT PAYMENTS),REDACTED,REDACTED
02.07.2021,ADULT SOCIAL CARE,REDACTED PERSONAL DATA,"1,168.80",PHY LTS 18-64,PAYMENTS TO CLIENTS (DIRECT PAYMENTS),REDACTED,REDACTED
02.07.2021,ADULT SOCIAL CARE,REDACTED PERSONAL DATA,"2,080.60",PHY LTS 18-64,PAYMENTS TO CLIENTS (DIRECT PAYMENTS),REDACTED,REDACTED
02.07.2021,ADULT SOCIAL CARE,REDACTED PERSONAL DATA,"1,572.45",PHY LTS 18-64,PAYMENTS TO CLIENTS (DIRECT PAYMENTS),REDACTED,REDACTED
02.07.2021,ADULT SOCIAL CARE,REDACTED PERSONAL DATA,967.31,PHY LTS 18-64,PAYMENTS TO CLIENTS (DIRECT PAYMENTS),REDACTED,REDACTED
02.07.2021,ADULT SOCIAL CARE,REDACTED PERSONAL DATA,"-1,151.40",PHY LTS 18-64,PAYMENTS TO CLIENTS (DIRECT PAYMENTS),REDACTED,REDACTED
02.07.2021,ADULT SOCIAL CARE,REDACTED PERSONAL DATA,"1,597.24",PHY LTS 18-64,PAYMENTS TO CLIENTS (DIRECT PAYMENTS),REDACTED,REDACTED
02.07.2021,ADULT SOCIAL CARE,REDACTED PERSONAL DATA,"2,088.48",PHY LTS 18-64,PAYMENTS TO CLIENTS (DIRECT PAYMENTS),REDACTED,REDACTED
02.07.2021,ADULT SOCIAL CARE,REDACTED PERSONAL DATA,743.07,PHY LTS 18-64,PAYMENTS TO CLIENTS (DIRECT PAYMENTS),REDACTED,REDACTED
02.07.2021,ADULT SOCIAL CARE,REDACTED PERSONAL DATA,"-2,522.74",PHY LTS 18-64,PAYMENTS TO CLIENTS (DIRECT PAYMENTS),REDACTED,REDACTED
02.07.2021,ADULT SOCIAL CARE,REDACTED PERSONAL DATA,"3,527.29",PHY LTS 18-64,PAYMENTS TO CLIENTS (DIRECT PAYMENTS),REDACTED,REDACTED
02.07.2021,ADULT SOCIAL CARE,REDACTED PERSONAL DATA,"-4,365.79",PHY LTS 18-64,PAYMENTS TO CLIENTS (DIRECT PAYMENTS),REDACTED,REDACTED
02.07.2021,ADULT SOCIAL CARE,REDACTED PERSONAL DATA,"6,056.17",PHY LTS 18-64,PAYMENTS TO CLIENTS (DIRECT PAYMENTS),REDACTED,REDACTED
02.07.2021,ADULT SOCIAL CARE,REDACTED PERSONAL DATA,430.08,PHY LTS 18-64,PAYMENTS TO CLIENTS (DIRECT PAYMENTS),REDACTED,REDACTED
02.07.2021,ADULT SOCIAL CARE,REDACTED PERSONAL DATA,"-1,679.19",PHY LTS 18-64,PAYMENTS TO CLIENTS (DIRECT PAYMENTS),REDACTED,REDACTED
02.07.2021,ADULT SOCIAL CARE,REDACTED PERSONAL DATA,"2,329.44",PHY LTS 18-64,PAYMENTS TO CLIENTS (DIRECT PAYMENTS),REDACTED,REDACTED
02.07.2021,ADULT SOCIAL CARE,REDACTED PERSONAL DATA,"-2,858.50",PHY LTS 18-64,PAYMENTS TO CLIENTS (DIRECT PAYMENTS),REDACTED,REDACTED
02.07.2021,ADULT SOCIAL CARE,REDACTED PERSONAL DATA,"3,993.11",PHY LTS 18-64,PAYMENTS TO CLIENTS (DIRECT PAYMENTS),REDACTED,REDACTED
02.07.2021,ADULT SOCIAL CARE,REDACTED PERSONAL DATA,670.44,PHY LTS 18-64,PAYMENTS TO CLIENTS (DIRECT PAYMENTS),REDACTED,REDACTED
02.07.2021,ADULT SOCIAL CARE,REDACTED PERSONAL DATA,"-3,386.29",PHY LTS 18-64,PAYMENTS TO CLIENTS (DIRECT PAYMENTS),REDACTED,REDACTED
02.07.2021,ADULT SOCIAL CARE,REDACTED PERSONAL DATA,"4,725.13",PHY LTS 18-64,PAYMENTS TO CLIENTS (DIRECT PAYMENTS),REDACTED,REDACTED
02.07.2021,ADULT SOCIAL CARE,REDACTED PERSONAL DATA,"-1,515.20",PHY LTS 18-64,PAYMENTS TO CLIENTS (DIRECT PAYMENTS),REDACTED,REDACTED
02.07.2021,ADULT SOCIAL CARE,REDACTED PERSONAL DATA,"2,129.66",PHY LTS 18-64,PAYMENTS TO CLIENTS (DIRECT PAYMENTS),REDACTED,REDACTED
02.07.2021,ADULT SOCIAL CARE,BLACK ELDER GROUP SWK,540,PHY LTS 65+,DAYCARE,2103286072,1000067369
02.07.2021,ADULT SOCIAL CARE,SOUTHWARK CYPRIOT DAY CENTRE LTD,288,PHY LTS 65+,DAYCARE,2103285996,1000067736
02.07.2021,ADULT SOCIAL CARE,PEOPLEPLUS ILS,-445.6,PHY LTS 65+,DISCRETIONARY FLEXIBLE FEES & INCOME,2103286032,1000061886
02.07.2021,ADULT SOCIAL CARE,PEOPLEPLUS ILS,-438.52,PHY LTS 65+,DISCRETIONARY FLEXIBLE FEES & INCOME,2103285356,1000061886
02.07.2021,ADULT SOCIAL CARE,PEOPLEPLUS ILS,-331.4,PHY LTS 65+,DISCRETIONARY FLEXIBLE FEES & INCOME,2103285370,1000061886
02.07.2021,ADULT SOCIAL CARE,PEOPLEPLUS ILS,-275.08,PHY LTS 65+,DISCRETIONARY FLEXIBLE FEES & INCOME,2103285344,1000061886
02.07.2021,ADULT SOCIAL CARE,REDACTED PERSONAL DATA,-506.96,PHY LTS 65+,DISCRETIONARY FLEXIBLE FEES & INCOME,REDACTED,REDACTED
02.07.2021,ADULT SOCIAL CARE,LONDON CARE LTD,391.5,PHY LTS 65+,HOMECARE - C&V,2103284980,1000003398
02.07.2021,ADULT SOCIAL CARE,LONDON CARE LTD,548.1,PHY LTS 65+,HOMECARE - C&V,2103284981,1000003398
02.07.2021,ADULT SOCIAL CARE,LONDON CARE LTD,647.88,PHY LTS 65+,HOMECARE - C&V,2103286195,1000003398
02.07.2021,ADULT SOCIAL CARE,LONDON CARE LTD,730.8,PHY LTS 65+,HOMECARE - C&V,2103284975,1000003398
02.07.2021,ADULT SOCIAL CARE,LONDON CARE LTD,738.8,PHY LTS 65+,HOMECARE - C&V,2103286194,1000003398
02.07.2021,ADULT SOCIAL CARE,LONDON CARE LTD,856.33,PHY LTS 65+,HOMECARE - C&V,2103284979,1000003398
02.07.2021,ADULT SOCIAL CARE,LONDON CARE LTD,"1,148.40",PHY LTS 65+,HOMECARE - C&V,2103284974,1000003398
02.07.2021,ADULT SOCIAL CARE,LONDON CARE LTD,"1,183.20",PHY LTS 65+,HOMECARE - C&V,2103284978,1000003398
02.07.2021,ADULT SOCIAL CARE,LONDON CARE LTD,"1,401.31",PHY LTS 65+,HOMECARE - C&V,2103286196,1000003398
02.07.2021,ADULT SOCIAL CARE,LONDON CARE LTD,"2,068.11",PHY LTS 65+,HOMECARE - C&V,2103284977,1000003398
02.07.2021,ADULT SOCIAL CARE,PROFAD CARE AGENCY,544.32,PHY LTS 65+,HOMECARE - C&V,2103284952,1000079032
02.07.2021,ADULT SOCIAL CARE,PROFAD CARE AGENCY,568.62,PHY LTS 65+,HOMECARE - C&V,2103284902,1000079032
02.07.2021,ADULT SOCIAL CARE,PROFAD CARE AGENCY,874.8,PHY LTS 65+,HOMECARE - C&V,2103284887,1000079032
02.07.2021,ADULT SOCIAL CARE,PROFAD CARE AGENCY,933.12,PHY LTS 65+,HOMECARE - C&V,2103284932,1000079032
02.07.2021,ADULT SOCIAL CARE,PROFAD CARE AGENCY,"1,098.36",PHY LTS 65+,HOMECARE - C&V,2103284926,1000079032
02.07.2021,ADULT SOCIAL CARE,PROFAD CARE AGENCY,"1,299.70",PHY LTS 65+,HOMECARE - C&V,2103284966,1000079032
02.07.2021,ADULT SOCIAL CARE,PROFAD CARE AGENCY,"1,788.48",PHY LTS 65+,HOMECARE - C&V,2103284896,1000079032
02.07.2021,ADULT SOCIAL CARE,PROFAD CARE AGENCY,"2,566.08",PHY LTS 65+,HOMECARE - C&V,2103284921,1000079032
02.07.2021,ADULT SOCIAL CARE,PROFAD CARE AGENCY,"2,993.76",PHY LTS 65+,HOMECARE - C&V,2103284899,1000079032
02.07.2021,ADULT SOCIAL CARE,SAGECARE LTD,728.38,PHY LTS 65+,HOMECARE - C&V,2103284971,1000080924
02.07.2021,ADULT SOCIAL CARE,PROFAD CARE AGENCY,286.74,PHY LTS 65+,HOMECARE - SPOT,2103284943,1000079032
02.07.2021,ADULT SOCIAL CARE,PROFAD CARE AGENCY,311.04,PHY LTS 65+,HOMECARE - SPOT,2103284954,1000079032
02.07.2021,ADULT SOCIAL CARE,PROFAD CARE AGENCY,398.52,PHY LTS 65+,HOMECARE - SPOT,2103284960,1000079032
02.07.2021,ADULT SOCIAL CARE,PROFAD CARE AGENCY,408.24,PHY LTS 65+,HOMECARE - SPOT,2103284924,1000079032
02.07.2021,ADULT SOCIAL CARE,PROFAD CARE AGENCY,408.24,PHY LTS 65+,HOMECARE - SPOT,2103284928,1000079032
02.07.2021,ADULT SOCIAL CARE,PROFAD CARE AGENCY,408.24,PHY LTS 65+,HOMECARE - SPOT,2103284959,1000079032
02.07.2021,ADULT SOCIAL CARE,PROFAD CARE AGENCY,486,PHY LTS 65+,HOMECARE - SPOT,2103284965,1000079032
02.07.2021,ADULT SOCIAL CARE,PROFAD CARE AGENCY,524.88,PHY LTS 65+,HOMECARE - SPOT,2103284953,1000079032
02.07.2021,ADULT SOCIAL CARE,PROFAD CARE AGENCY,583.2,PHY LTS 65+,HOMECARE - SPOT,2103284919,1000079032
02.07.2021,ADULT SOCIAL CARE,PROFAD CARE AGENCY,602.64,PHY LTS 65+,HOMECARE - SPOT,2103284911,1000079032
02.07.2021,ADULT SOCIAL CARE,PROFAD CARE AGENCY,641.52,PHY LTS 65+,HOMECARE - SPOT,2103284940,1000079032
02.07.2021,ADULT SOCIAL CARE,PROFAD CARE AGENCY,641.52,PHY LTS 65+,HOMECARE - SPOT,2103284945,1000079032
02.07.2021,ADULT SOCIAL CARE,PROFAD CARE AGENCY,680.4,PHY LTS 65+,HOMECARE - SPOT,2103284909,1000079032
02.07.2021,ADULT SOCIAL CARE,PROFAD CARE AGENCY,738.72,PHY LTS 65+,HOMECARE - SPOT,2103284885,1000079032
02.07.2021,ADULT SOCIAL CARE,PROFAD CARE AGENCY,758.16,PHY LTS 65+,HOMECARE - SPOT,2103284907,1000079032
02.07.2021,ADULT SOCIAL CARE,PROFAD CARE AGENCY,758.16,PHY LTS 65+,HOMECARE - SPOT,2103284941,1000079032
02.07.2021,ADULT SOCIAL CARE,PROFAD CARE AGENCY,758.16,PHY LTS 65+,HOMECARE - SPOT,2103284957,1000079032
02.07.2021,ADULT SOCIAL CARE,PROFAD CARE AGENCY,797.04,PHY LTS 65+,HOMECARE - SPOT,2103284900,1000079032
02.07.2021,ADULT SOCIAL CARE,PROFAD CARE AGENCY,797.04,PHY LTS 65+,HOMECARE - SPOT,2103284922,1000079032
02.07.2021,ADULT SOCIAL CARE,PROFAD CARE AGENCY,816.48,PHY LTS 65+,HOMECARE - SPOT,2103284891,1000079032
02.07.2021,ADULT SOCIAL CARE,PROFAD CARE AGENCY,865.08,PHY LTS 65+,HOMECARE - SPOT,2103284923,1000079032
02.07.2021,ADULT SOCIAL CARE,PROFAD CARE AGENCY,952.56,PHY LTS 65+,HOMECARE - SPOT,2103284949,1000079032
02.07.2021,ADULT SOCIAL CARE,PROFAD CARE AGENCY,"1,010.88",PHY LTS 65+,HOMECARE - SPOT,2103284951,1000079032
02.07.2021,ADULT SOCIAL CARE,PROFAD CARE AGENCY,"1,030.32",PHY LTS 65+,HOMECARE - SPOT,2103284908,1000079032
02.07.2021,ADULT SOCIAL CARE,PROFAD CARE AGENCY,"1,088.64",PHY LTS 65+,HOMECARE - SPOT,2103284910,1000079032
02.07.2021,ADULT SOCIAL CARE,PROFAD CARE AGENCY,"1,088.64",PHY LTS 65+,HOMECARE - SPOT,2103284939,1000079032
02.07.2021,ADULT SOCIAL CARE,PROFAD CARE AGENCY,"1,103.22",PHY LTS 65+,HOMECARE - SPOT,2103284890,1000079032
02.07.2021,ADULT SOCIAL CARE,PROFAD CARE AGENCY,"1,224.72",PHY LTS 65+,HOMECARE - SPOT,2103284968,1000079032
02.07.2021,ADULT SOCIAL CARE,PROFAD CARE AGENCY,"1,302.48",PHY LTS 65+,HOMECARE - SPOT,2103284893,1000079032
02.07.2021,ADULT SOCIAL CARE,PROFAD CARE AGENCY,"1,312.20",PHY LTS 65+,HOMECARE - SPOT,2103284888,1000079032
02.07.2021,ADULT SOCIAL CARE,PROFAD CARE AGENCY,"1,564.92",PHY LTS 65+,HOMECARE - SPOT,2103284934,1000079032
02.07.2021,ADULT SOCIAL CARE,PROFAD CARE AGENCY,"1,642.68",PHY LTS 65+,HOMECARE - SPOT,2103284913,1000079032
02.07.2021,ADULT SOCIAL CARE,PROFAD CARE AGENCY,"1,905.12",PHY LTS 65+,HOMECARE - SPOT,2103284886,1000079032
02.07.2021,ADULT SOCIAL CARE,PROFAD CARE AGENCY,"1,905.12",PHY LTS 65+,HOMECARE - SPOT,2103284944,1000079032
02.07.2021,ADULT SOCIAL CARE,PROFAD CARE AGENCY,"2,112.42",PHY LTS 65+,HOMECARE - SPOT,2103284930,1000079032
02.07.2021,ADULT SOCIAL CARE,PROFAD CARE AGENCY,"2,177.28",PHY LTS 65+,HOMECARE - SPOT,2103284956,1000079032
02.07.2021,ADULT SOCIAL CARE,PROFAD CARE AGENCY,"2,293.92",PHY LTS 65+,HOMECARE - SPOT,2103284901,1000079032
02.07.2021,ADULT SOCIAL CARE,PROFAD CARE AGENCY,"2,663.28",PHY LTS 65+,HOMECARE - SPOT,2103284897,1000079032
02.07.2021,ADULT SOCIAL CARE,PROFAD CARE AGENCY,"2,838.24",PHY LTS 65+,HOMECARE - SPOT,2103284906,1000079032
02.07.2021,ADULT SOCIAL CARE,PROFAD CARE AGENCY,"3,392.28",PHY LTS 65+,HOMECARE - SPOT,2103284916,1000079032
02.07.2021,ADULT SOCIAL CARE,PEOPLEPLUS ILS,"-6,773.34",PHY LTS 65+,PAYMENTS TO CLIENTS (DIRECT PAYMENTS),2103285946,1000061886
02.07.2021,ADULT SOCIAL CARE,PEOPLEPLUS ILS,"-6,199.70",PHY LTS 65+,PAYMENTS TO CLIENTS (DIRECT PAYMENTS),2103286133,1000061886
02.07.2021,ADULT SOCIAL CARE,PEOPLEPLUS ILS,"-5,661.05",PHY LTS 65+,PAYMENTS TO CLIENTS (DIRECT PAYMENTS),2103286143,1000061886
02.07.2021,ADULT SOCIAL CARE,PEOPLEPLUS ILS,"-4,557.69",PHY LTS 65+,PAYMENTS TO CLIENTS (DIRECT PAYMENTS),2103285890,1000061886
02.07.2021,ADULT SOCIAL CARE,PEOPLEPLUS ILS,"-4,269.84",PHY LTS 65+,PAYMENTS TO CLIENTS (DIRECT PAYMENTS),2103285530,1000061886
02.07.2021,ADULT SOCIAL CARE,PEOPLEPLUS ILS,"-3,872.04",PHY LTS 65+,PAYMENTS TO CLIENTS (DIRECT PAYMENTS),2103286136,1000061886
02.07.2021,ADULT SOCIAL CARE,PEOPLEPLUS ILS,"-3,372.29",PHY LTS 65+,PAYMENTS TO CLIENTS (DIRECT PAYMENTS),2103285713,1000061886
02.07.2021,ADULT SOCIAL CARE,PEOPLEPLUS ILS,"-3,036.40",PHY LTS 65+,PAYMENTS TO CLIENTS (DIRECT PAYMENTS),2103286118,1000061886
02.07.2021,ADULT SOCIAL CARE,PEOPLEPLUS ILS,"-2,940.45",PHY LTS 65+,PAYMENTS TO CLIENTS (DIRECT PAYMENTS),2103285369,1000061886
02.07.2021,ADULT SOCIAL CARE,PEOPLEPLUS ILS,"-2,940.45",PHY LTS 65+,PAYMENTS TO CLIENTS (DIRECT PAYMENTS),2103285566,1000061886
02.07.2021,ADULT SOCIAL CARE,PEOPLEPLUS ILS,"-2,816.59",PHY LTS 65+,PAYMENTS TO CLIENTS (DIRECT PAYMENTS),2103286030,1000061886
02.07.2021,ADULT SOCIAL CARE,PEOPLEPLUS ILS,"-2,796.59",PHY LTS 65+,PAYMENTS TO CLIENTS (DIRECT PAYMENTS),2103286048,1000061886
02.07.2021,ADULT SOCIAL CARE,PEOPLEPLUS ILS,"-2,686.60",PHY LTS 65+,PAYMENTS TO CLIENTS (DIRECT PAYMENTS),2103286157,1000061886
02.07.2021,ADULT SOCIAL CARE,PEOPLEPLUS ILS,"-2,652.60",PHY LTS 65+,PAYMENTS TO CLIENTS (DIRECT PAYMENTS),2103286064,1000061886
02.07.2021,ADULT SOCIAL CARE,PEOPLEPLUS ILS,"-2,638.89",PHY LTS 65+,PAYMENTS TO CLIENTS (DIRECT PAYMENTS),2103285915,1000061886
02.07.2021,ADULT SOCIAL CARE,PEOPLEPLUS ILS,"-2,590.65",PHY LTS 65+,PAYMENTS TO CLIENTS (DIRECT PAYMENTS),2103285765,1000061886
02.07.2021,ADULT SOCIAL CARE,PEOPLEPLUS ILS,"-2,364.75",PHY LTS 65+,PAYMENTS TO CLIENTS (DIRECT PAYMENTS),2103286001,1000061886
02.07.2021,ADULT SOCIAL CARE,PEOPLEPLUS ILS,"-2,110.90",PHY LTS 65+,PAYMENTS TO CLIENTS (DIRECT PAYMENTS),2103285635,1000061886
02.07.2021,ADULT SOCIAL CARE,PEOPLEPLUS ILS,"-1,357.34",PHY LTS 65+,PAYMENTS TO CLIENTS (DIRECT PAYMENTS),2103286141,1000061886
02.07.2021,ADULT SOCIAL CARE,PEOPLEPLUS ILS,"-1,199.44",PHY LTS 65+,PAYMENTS TO CLIENTS (DIRECT PAYMENTS),2103285413,1000061886
02.07.2021,ADULT SOCIAL CARE,PEOPLEPLUS ILS,"-1,055.45",PHY LTS 65+,PAYMENTS TO CLIENTS (DIRECT PAYMENTS),2103285864,1000061886
02.07.2021,ADULT SOCIAL CARE,PEOPLEPLUS ILS,-993.54,PHY LTS 65+,PAYMENTS TO CLIENTS (DIRECT PAYMENTS),2103285302,1000061886
02.07.2021,ADULT SOCIAL CARE,PEOPLEPLUS ILS,-637.65,PHY LTS 65+,PAYMENTS TO CLIENTS (DIRECT PAYMENTS),2103286193,1000061886
02.07.2021,ADULT SOCIAL CARE,PEOPLEPLUS ILS,365.76,PHY LTS 65+,PAYMENTS TO CLIENTS (DIRECT PAYMENTS),2103285882,1000061886
02.07.2021,ADULT SOCIAL CARE,PEOPLEPLUS ILS,385.54,PHY LTS 65+,PAYMENTS TO CLIENTS (DIRECT PAYMENTS),2103285717,1000061886
02.07.2021,ADULT SOCIAL CARE,PEOPLEPLUS ILS,532.41,PHY LTS 65+,PAYMENTS TO CLIENTS (DIRECT PAYMENTS),2103285511,1000061886
02.07.2021,ADULT SOCIAL CARE,PEOPLEPLUS ILS,620.12,PHY LTS 65+,PAYMENTS TO CLIENTS (DIRECT PAYMENTS),2103285942,1000061886
02.07.2021,ADULT SOCIAL CARE,PEOPLEPLUS ILS,668.76,PHY LTS 65+,PAYMENTS TO CLIENTS (DIRECT PAYMENTS),2103285466,1000061886
02.07.2021,ADULT SOCIAL CARE,PEOPLEPLUS ILS,778.78,PHY LTS 65+,PAYMENTS TO CLIENTS (DIRECT PAYMENTS),2103285944,1000061886
02.07.2021,ADULT SOCIAL CARE,PEOPLEPLUS ILS,791.52,PHY LTS 65+,PAYMENTS TO CLIENTS (DIRECT PAYMENTS),2103285373,1000061886
02.07.2021,ADULT SOCIAL CARE,PEOPLEPLUS ILS,814.31,PHY LTS 65+,PAYMENTS TO CLIENTS (DIRECT PAYMENTS),2103285672,1000061886
02.07.2021,ADULT SOCIAL CARE,PEOPLEPLUS ILS,819.75,PHY LTS 65+,PAYMENTS TO CLIENTS (DIRECT PAYMENTS),2103286122,1000061886
02.07.2021,ADULT SOCIAL CARE,PEOPLEPLUS ILS,931.81,PHY LTS 65+,PAYMENTS TO CLIENTS (DIRECT PAYMENTS),2103285804,1000061886
02.07.2021,ADULT SOCIAL CARE,PEOPLEPLUS ILS,944.24,PHY LTS 65+,PAYMENTS TO CLIENTS (DIRECT PAYMENTS),2103285402,1000061886
02.07.2021,ADULT SOCIAL CARE,PEOPLEPLUS ILS,999.99,PHY LTS 65+,PAYMENTS TO CLIENTS (DIRECT PAYMENTS),2103285505,1000061886
02.07.2021,ADULT SOCIAL CARE,PEOPLEPLUS ILS,"1,021.61",PHY LTS 65+,PAYMENTS TO CLIENTS (DIRECT PAYMENTS),2103285862,1000061886
02.07.2021,ADULT SOCIAL CARE,PEOPLEPLUS ILS,"1,055.61",PHY LTS 65+,PAYMENTS TO CLIENTS (DIRECT PAYMENTS),2103285898,1000061886
02.07.2021,ADULT SOCIAL CARE,PEOPLEPLUS ILS,"1,065.46",PHY LTS 65+,PAYMENTS TO CLIENTS (DIRECT PAYMENTS),2103285725,1000061886
02.07.2021,ADULT SOCIAL CARE,PEOPLEPLUS ILS,"1,193.48",PHY LTS 65+,PAYMENTS TO CLIENTS (DIRECT PAYMENTS),2103285593,1000061886
02.07.2021,ADULT SOCIAL CARE,PEOPLEPLUS ILS,"1,226.16",PHY LTS 65+,PAYMENTS TO CLIENTS (DIRECT PAYMENTS),2103285749,1000061886
02.07.2021,ADULT SOCIAL CARE,PEOPLEPLUS ILS,"1,226.69",PHY LTS 65+,PAYMENTS TO CLIENTS (DIRECT PAYMENTS),2103286076,1000061886
02.07.2021,ADULT SOCIAL CARE,PEOPLEPLUS ILS,"1,249.43",PHY LTS 65+,PAYMENTS TO CLIENTS (DIRECT PAYMENTS),2103285305,1000061886
02.07.2021,ADULT SOCIAL CARE,PEOPLEPLUS ILS,"1,288.00",PHY LTS 65+,PAYMENTS TO CLIENTS (DIRECT PAYMENTS),2103285880,1000061886
02.07.2021,ADULT SOCIAL CARE,PEOPLEPLUS ILS,"1,329.89",PHY LTS 65+,PAYMENTS TO CLIENTS (DIRECT PAYMENTS),2103286123,1000061886
02.07.2021,ADULT SOCIAL CARE,PEOPLEPLUS ILS,"1,367.20",PHY LTS 65+,PAYMENTS TO CLIENTS (DIRECT PAYMENTS),2103285358,1000061886
02.07.2021,ADULT SOCIAL CARE,PEOPLEPLUS ILS,"1,397.63",PHY LTS 65+,PAYMENTS TO CLIENTS (DIRECT PAYMENTS),2103286081,1000061886
02.07.2021,ADULT SOCIAL CARE,PEOPLEPLUS ILS,"1,464.23",PHY LTS 65+,PAYMENTS TO CLIENTS (DIRECT PAYMENTS),2103285973,1000061886
02.07.2021,ADULT SOCIAL CARE,PEOPLEPLUS ILS,"1,482.77",PHY LTS 65+,PAYMENTS TO CLIENTS (DIRECT PAYMENTS),2103286162,1000061886
02.07.2021,ADULT SOCIAL CARE,PEOPLEPLUS ILS,"1,571.70",PHY LTS 65+,PAYMENTS TO CLIENTS (DIRECT PAYMENTS),2103286057,1000061886
02.07.2021,ADULT SOCIAL CARE,PEOPLEPLUS ILS,"1,663.84",PHY LTS 65+,PAYMENTS TO CLIENTS (DIRECT PAYMENTS),2103285972,1000061886
02.07.2021,ADULT SOCIAL CARE,PEOPLEPLUS ILS,"1,679.12",PHY LTS 65+,PAYMENTS TO CLIENTS (DIRECT PAYMENTS),2103285758,1000061886
02.07.2021,ADULT SOCIAL CARE,PEOPLEPLUS ILS,"1,930.05",PHY LTS 65+,PAYMENTS TO CLIENTS (DIRECT PAYMENTS),2103285582,1000061886
02.07.2021,ADULT SOCIAL CARE,PEOPLEPLUS ILS,"2,063.06",PHY LTS 65+,PAYMENTS TO CLIENTS (DIRECT PAYMENTS),2103285300,1000061886
02.07.2021,ADULT SOCIAL CARE,PEOPLEPLUS ILS,"2,467.45",PHY LTS 65+,PAYMENTS TO CLIENTS (DIRECT PAYMENTS),2103286073,1000061886
02.07.2021,ADULT SOCIAL CARE,PEOPLEPLUS ILS,"2,795.26",PHY LTS 65+,PAYMENTS TO CLIENTS (DIRECT PAYMENTS),2103285306,1000061886
02.07.2021,ADULT SOCIAL CARE,PEOPLEPLUS ILS,"2,928.28",PHY LTS 65+,PAYMENTS TO CLIENTS (DIRECT PAYMENTS),2103285581,1000061886
02.07.2021,ADULT SOCIAL CARE,PEOPLEPLUS ILS,"3,061.47",PHY LTS 65+,PAYMENTS TO CLIENTS (DIRECT PAYMENTS),2103285490,1000061886
02.07.2021,ADULT SOCIAL CARE,PEOPLEPLUS ILS,"3,327.68",PHY LTS 65+,PAYMENTS TO CLIENTS (DIRECT PAYMENTS),2103285802,1000061886
02.07.2021,ADULT SOCIAL CARE,PEOPLEPLUS ILS,"3,375.30",PHY LTS 65+,PAYMENTS TO CLIENTS (DIRECT PAYMENTS),2103286129,1000061886
02.07.2021,ADULT SOCIAL CARE,PEOPLEPLUS ILS,"3,593.88",PHY LTS 65+,PAYMENTS TO CLIENTS (DIRECT PAYMENTS),2103285799,1000061886
02.07.2021,ADULT SOCIAL CARE,PEOPLEPLUS ILS,"3,726.90",PHY LTS 65+,PAYMENTS TO CLIENTS (DIRECT PAYMENTS),2103285367,1000061886
02.07.2021,ADULT SOCIAL CARE,PEOPLEPLUS ILS,"3,726.90",PHY LTS 65+,PAYMENTS TO CLIENTS (DIRECT PAYMENTS),2103285488,1000061886
02.07.2021,ADULT SOCIAL CARE,PEOPLEPLUS ILS,"3,827.55",PHY LTS 65+,PAYMENTS TO CLIENTS (DIRECT PAYMENTS),2103286121,1000061886
02.07.2021,ADULT SOCIAL CARE,PEOPLEPLUS ILS,"3,926.51",PHY LTS 65+,PAYMENTS TO CLIENTS (DIRECT PAYMENTS),2103285364,1000061886
02.07.2021,ADULT SOCIAL CARE,PEOPLEPLUS ILS,"3,926.51",PHY LTS 65+,PAYMENTS TO CLIENTS (DIRECT PAYMENTS),2103285991,1000061886
02.07.2021,ADULT SOCIAL CARE,PEOPLEPLUS ILS,"4,126.30",PHY LTS 65+,PAYMENTS TO CLIENTS (DIRECT PAYMENTS),2103285484,1000061886
02.07.2021,ADULT SOCIAL CARE,PEOPLEPLUS ILS,"4,126.30",PHY LTS 65+,PAYMENTS TO CLIENTS (DIRECT PAYMENTS),2103285985,1000061886
02.07.2021,ADULT SOCIAL CARE,PEOPLEPLUS ILS,"4,259.31",PHY LTS 65+,PAYMENTS TO CLIENTS (DIRECT PAYMENTS),2103285392,1000061886
02.07.2021,ADULT SOCIAL CARE,PEOPLEPLUS ILS,"4,725.31",PHY LTS 65+,PAYMENTS TO CLIENTS (DIRECT PAYMENTS),2103286098,1000061886
02.07.2021,ADULT SOCIAL CARE,PEOPLEPLUS ILS,"5,390.74",PHY LTS 65+,PAYMENTS TO CLIENTS (DIRECT PAYMENTS),2103285689,1000061886
02.07.2021,ADULT SOCIAL CARE,PEOPLEPLUS ILS,"5,737.26",PHY LTS 65+,PAYMENTS TO CLIENTS (DIRECT PAYMENTS),2103285312,1000061886
02.07.2021,ADULT SOCIAL CARE,PEOPLEPLUS ILS,"5,923.15",PHY LTS 65+,PAYMENTS TO CLIENTS (DIRECT PAYMENTS),2103285695,1000061886
02.07.2021,ADULT SOCIAL CARE,PEOPLEPLUS ILS,"6,322.55",PHY LTS 65+,PAYMENTS TO CLIENTS (DIRECT PAYMENTS),2103285698,1000061886
02.07.2021,ADULT SOCIAL CARE,PEOPLEPLUS ILS,"7,853.20",PHY LTS 65+,PAYMENTS TO CLIENTS (DIRECT PAYMENTS),2103286040,1000061886
02.07.2021,ADULT SOCIAL CARE,PEOPLEPLUS ILS,"8,784.84",PHY LTS 65+,PAYMENTS TO CLIENTS (DIRECT PAYMENTS),2103285680,1000061886
02.07.2021,ADULT SOCIAL CARE,PEOPLEPLUS ILS,"11,380.49",PHY LTS 65+,PAYMENTS TO CLIENTS (DIRECT PAYMENTS),2103285492,1000061886
02.07.2021,ADULT SOCIAL CARE,FRESH IDEAS & SOLUTIONS SERVICES CIC,-541.7,PHY LTS 65+,PAYMENTS TO CLIENTS (DIRECT PAYMENTS),2103285296,1000070832
02.07.2021,ADULT SOCIAL CARE,FRESH IDEAS & SOLUTIONS SERVICES CIC,798.62,PHY LTS 65+,PAYMENTS TO CLIENTS (DIRECT PAYMENTS),2103286100,1000070832
02.07.2021,ADULT SOCIAL CARE,FRESH IDEAS & SOLUTIONS SERVICES CIC,"1,170.23",PHY LTS 65+,PAYMENTS TO CLIENTS (DIRECT PAYMENTS),2103285600,1000070832
02.07.2021,ADULT SOCIAL CARE,REDACTED PERSONAL DATA,650.08,PHY LTS 65+,PAYMENTS TO CLIENTS (DIRECT PAYMENTS),REDACTED,REDACTED
02.07.2021,ADULT SOCIAL CARE,REDACTED PERSONAL DATA,"-5,277.25",PHY LTS 65+,PAYMENTS TO CLIENTS (DIRECT PAYMENTS),REDACTED,REDACTED
02.07.2021,ADULT SOCIAL CARE,REDACTED PERSONAL DATA,"7,320.78",PHY LTS 65+,PAYMENTS TO CLIENTS (DIRECT PAYMENTS),REDACTED,REDACTED
02.07.2021,ADULT SOCIAL CARE,REDACTED PERSONAL DATA,"3,793.50",PHY LTS 65+,PAYMENTS TO CLIENTS (DIRECT PAYMENTS),REDACTED,REDACTED
02.07.2021,ADULT SOCIAL CARE,REDACTED PERSONAL DATA,650.08,PHY LTS 65+,PAYMENTS TO CLIENTS (DIRECT PAYMENTS),REDACTED,REDACTED
02.07.2021,ADULT SOCIAL CARE,REDACTED PERSONAL DATA,"-2,686.60",PHY LTS 65+,PAYMENTS TO CLIENTS (DIRECT PAYMENTS),REDACTED,REDACTED
02.07.2021,ADULT SOCIAL CARE,REDACTED PERSONAL DATA,"3,726.90",PHY LTS 65+,PAYMENTS TO CLIENTS (DIRECT PAYMENTS),REDACTED,REDACTED
02.07.2021,ADULT SOCIAL CARE,REDACTED PERSONAL DATA,"1,201.92",PHY LTS 65+,PAYMENTS TO CLIENTS (DIRECT PAYMENTS),REDACTED,REDACTED
02.07.2021,ADULT SOCIAL CARE,REDACTED PERSONAL DATA,"-2,838.50",PHY LTS 65+,PAYMENTS TO CLIENTS (DIRECT PAYMENTS),REDACTED,REDACTED
02.07.2021,ADULT SOCIAL CARE,REDACTED PERSONAL DATA,"3,993.11",PHY LTS 65+,PAYMENTS TO CLIENTS (DIRECT PAYMENTS),REDACTED,REDACTED
02.07.2021,ADULT SOCIAL CARE,REDACTED PERSONAL DATA,"-5,085.35",PHY LTS 65+,PAYMENTS TO CLIENTS (DIRECT PAYMENTS),REDACTED,REDACTED
02.07.2021,ADULT SOCIAL CARE,REDACTED PERSONAL DATA,"7,054.58",PHY LTS 65+,PAYMENTS TO CLIENTS (DIRECT PAYMENTS),REDACTED,REDACTED
02.07.2021,ADULT SOCIAL CARE,REDACTED PERSONAL DATA,"-1,871.09",PHY LTS 65+,PAYMENTS TO CLIENTS (DIRECT PAYMENTS),REDACTED,REDACTED
02.07.2021,ADULT SOCIAL CARE,REDACTED PERSONAL DATA,"2,595.48",PHY LTS 65+,PAYMENTS TO CLIENTS (DIRECT PAYMENTS),REDACTED,REDACTED
02.07.2021,ADULT SOCIAL CARE,REDACTED PERSONAL DATA,"-7,060.30",PHY LTS 65+,PAYMENTS TO CLIENTS (DIRECT PAYMENTS),REDACTED,REDACTED
02.07.2021,ADULT SOCIAL CARE,REDACTED PERSONAL DATA,"9,849.66",PHY LTS 65+,PAYMENTS TO CLIENTS (DIRECT PAYMENTS),REDACTED,REDACTED
02.07.2021,ADULT SOCIAL CARE,REDACTED PERSONAL DATA,"-4,969.40",PHY LTS 65+,PAYMENTS TO CLIENTS (DIRECT PAYMENTS),REDACTED,REDACTED
02.07.2021,ADULT SOCIAL CARE,REDACTED PERSONAL DATA,"6,921.39",PHY LTS 65+,PAYMENTS TO CLIENTS (DIRECT PAYMENTS),REDACTED,REDACTED
02.07.2021,ADULT SOCIAL CARE,REDACTED PERSONAL DATA,994,PHY LTS 65+,PAYMENTS TO CLIENTS (DIRECT PAYMENTS),REDACTED,REDACTED
02.07.2021,ADULT SOCIAL CARE,REDACTED PERSONAL DATA,"-2,858.50",PHY LTS 65+,PAYMENTS TO CLIENTS (DIRECT PAYMENTS),REDACTED,REDACTED
02.07.2021,ADULT SOCIAL CARE,REDACTED PERSONAL DATA,"3,993.11",PHY LTS 65+,PAYMENTS TO CLIENTS (DIRECT PAYMENTS),REDACTED,REDACTED
02.07.2021,ADULT SOCIAL CARE,REDACTED PERSONAL DATA,"-1,343.30",PHY LTS 65+,PAYMENTS TO CLIENTS (DIRECT PAYMENTS),REDACTED,REDACTED
02.07.2021,ADULT SOCIAL CARE,REDACTED PERSONAL DATA,"1,863.45",PHY LTS 65+,PAYMENTS TO CLIENTS (DIRECT PAYMENTS),REDACTED,REDACTED
02.07.2021,ADULT SOCIAL CARE,REDACTED PERSONAL DATA,837.38,PHY LTS 65+,PAYMENTS TO CLIENTS (DIRECT PAYMENTS),REDACTED,REDACTED
02.07.2021,ADULT SOCIAL CARE,REDACTED PERSONAL DATA,"2,850.42",PHY LTS 65+,PAYMENTS TO CLIENTS (DIRECT PAYMENTS),REDACTED,REDACTED
02.07.2021,ADULT SOCIAL CARE,REDACTED PERSONAL DATA,"-4,461.74",PHY LTS 65+,PAYMENTS TO CLIENTS (DIRECT PAYMENTS),REDACTED,REDACTED
02.07.2021,ADULT SOCIAL CARE,REDACTED PERSONAL DATA,"6,189.36",PHY LTS 65+,PAYMENTS TO CLIENTS (DIRECT PAYMENTS),REDACTED,REDACTED
02.07.2021,ADULT SOCIAL CARE,REDACTED PERSONAL DATA,"3,194.00",PHY LTS 65+,PAYMENTS TO CLIENTS (DIRECT PAYMENTS),REDACTED,REDACTED
02.07.2021,ADULT SOCIAL CARE,REDACTED PERSONAL DATA,"-7,656.00",PHY LTS 65+,PAYMENTS TO CLIENTS (DIRECT PAYMENTS),REDACTED,REDACTED
02.07.2021,ADULT SOCIAL CARE,REDACTED PERSONAL DATA,"10,648.29",PHY LTS 65+,PAYMENTS TO CLIENTS (DIRECT PAYMENTS),REDACTED,REDACTED
02.07.2021,ADULT SOCIAL CARE,REDACTED PERSONAL DATA,"-2,618.69",PHY LTS 65+,PAYMENTS TO CLIENTS (DIRECT PAYMENTS),REDACTED,REDACTED
02.07.2021,ADULT SOCIAL CARE,REDACTED PERSONAL DATA,"3,660.48",PHY LTS 65+,PAYMENTS TO CLIENTS (DIRECT PAYMENTS),REDACTED,REDACTED
02.07.2021,ADULT SOCIAL CARE,REDACTED PERSONAL DATA,729.68,PHY LTS 65+,PAYMENTS TO CLIENTS (DIRECT PAYMENTS),REDACTED,REDACTED
02.07.2021,ADULT SOCIAL CARE,REDACTED PERSONAL DATA,"1,095.92",PHY LTS 65+,PAYMENTS TO CLIENTS (DIRECT PAYMENTS),REDACTED,REDACTED
02.07.2021,ADULT SOCIAL CARE,REDACTED PERSONAL DATA,"-5,353.20",PHY LTS 65+,PAYMENTS TO CLIENTS (DIRECT PAYMENTS),REDACTED,REDACTED
02.07.2021,ADULT SOCIAL CARE,REDACTED PERSONAL DATA,"7,453.80",PHY LTS 65+,PAYMENTS TO CLIENTS (DIRECT PAYMENTS),REDACTED,REDACTED
02.07.2021,ADULT SOCIAL CARE,REDACTED PERSONAL DATA,"4,474.12",PHY LTS 65+,PAYMENTS TO CLIENTS (DIRECT PAYMENTS),REDACTED,REDACTED
02.07.2021,ADULT SOCIAL CARE,PROFAD CARE AGENCY,792.18,PHY STS 65+,HOMECARE - IC,2103284962,1000079032
02.07.2021,ADULT SOCIAL CARE,PROFAD CARE AGENCY,"1,487.16",PHY STS 65+,HOMECARE - IC,2103284889,1000079032
02.07.2021,ADULT SOCIAL CARE,PROFAD CARE AGENCY,"1,555.20",PHY STS 65+,HOMECARE - IC,2103284925,1000079032
02.07.2021,ADULT SOCIAL CARE,PROFAD CARE AGENCY,"2,653.56",PHY STS 65+,HOMECARE - IC,2103284933,1000079032
02.07.2021,ADULT SOCIAL CARE,THAMES HOMECARE SERVICE LTD,"26,600.00",REABLEMENT CONTRACT,HOMECARE - C&V,5902475881,1000079295
02.07.2021,ADULT SOCIAL CARE,PEOPLEPLUS ILS,"26,333.25",S.75 PHB LBS SHARE,RECOVERABLE COSTS INCL. HEALTH,2103286016,1000061886
02.07.2021,ADULT SOCIAL CARE,LEWISHAM INDO CHINESE COMMUNITY,280,SEN LTS 65+,DAYCARE,2103285469,1000076593
02.07.2021,ADULT SOCIAL CARE,PEOPLEPLUS ILS,-320.36,SOCIAL ISOLATION,DISCRETIONARY FLEXIBLE FEES & INCOME,2103285909,1000061886
02.07.2021,ADULT SOCIAL CARE,PROFAD CARE AGENCY,972,SOCIAL ISOLATION,HOMECARE - SPOT,2103284950,1000079032
02.07.2021,ADULT SOCIAL CARE,PEOPLEPLUS ILS,"-5,914.90",SOCIAL ISOLATION,PAYMENTS TO CLIENTS (DIRECT PAYMENTS),2103285500,1000061886
02.07.2021,ADULT SOCIAL CARE,PEOPLEPLUS ILS,"-3,995.90",SOCIAL ISOLATION,PAYMENTS TO CLIENTS (DIRECT PAYMENTS),2103286027,1000061886
02.07.2021,ADULT SOCIAL CARE,PEOPLEPLUS ILS,"-2,028.99",SOCIAL ISOLATION,PAYMENTS TO CLIENTS (DIRECT PAYMENTS),2103285957,1000061886
02.07.2021,ADULT SOCIAL CARE,PEOPLEPLUS ILS,"-1,612.01",SOCIAL ISOLATION,PAYMENTS TO CLIENTS (DIRECT PAYMENTS),2103285967,1000061886
02.07.2021,ADULT SOCIAL CARE,PEOPLEPLUS ILS,-690.92,SOCIAL ISOLATION,PAYMENTS TO CLIENTS (DIRECT PAYMENTS),2103285648,1000061886
02.07.2021,ADULT SOCIAL CARE,PEOPLEPLUS ILS,622.16,SOCIAL ISOLATION,PAYMENTS TO CLIENTS (DIRECT PAYMENTS),2103285966,1000061886
02.07.2021,ADULT SOCIAL CARE,PEOPLEPLUS ILS,992.72,SOCIAL ISOLATION,PAYMENTS TO CLIENTS (DIRECT PAYMENTS),2103285507,1000061886
02.07.2021,ADULT SOCIAL CARE,PEOPLEPLUS ILS,"2,861.68",SOCIAL ISOLATION,PAYMENTS TO CLIENTS (DIRECT PAYMENTS),2103285486,1000061886
02.07.2021,ADULT SOCIAL CARE,PEOPLEPLUS ILS,"3,034.99",SOCIAL ISOLATION,PAYMENTS TO CLIENTS (DIRECT PAYMENTS),2103285309,1000061886
02.07.2021,ADULT SOCIAL CARE,PEOPLEPLUS ILS,"3,194.49",SOCIAL ISOLATION,PAYMENTS TO CLIENTS (DIRECT PAYMENTS),2103285805,1000061886
02.07.2021,ADULT SOCIAL CARE,PEOPLEPLUS ILS,"5,590.35",SOCIAL ISOLATION,PAYMENTS TO CLIENTS (DIRECT PAYMENTS),2103285587,1000061886
02.07.2021,ADULT SOCIAL CARE,PEOPLEPLUS ILS,"8,252.42",SOCIAL ISOLATION,PAYMENTS TO CLIENTS (DIRECT PAYMENTS),2103285368,1000061886
02.07.2021,ADULT SOCIAL CARE,FRESH IDEAS & SOLUTIONS SERVICES CIC,-733.6,SOCIAL ISOLATION,PAYMENTS TO CLIENTS (DIRECT PAYMENTS),2103285931,1000070832
02.07.2021,ADULT SOCIAL CARE,FRESH IDEAS & SOLUTIONS SERVICES CIC,"1,064.83",SOCIAL ISOLATION,PAYMENTS TO CLIENTS (DIRECT PAYMENTS),2103285576,1000070832
02.07.2021,ADULT SOCIAL CARE,REDACTED PERSONAL DATA,614.4,SOCIAL ISOLATION,PAYMENTS TO CLIENTS (DIRECT PAYMENTS),REDACTED,REDACTED
02.07.2021,ADULT SOCIAL CARE,PEOPLEPLUS ILS,-779.2,SPEC NEEDS CHILDREN,PAYMENTS TO CLIENTS (DIRECT PAYMENTS),2103285143,1000061886
02.07.2021,ADULT SOCIAL CARE,PEOPLEPLUS ILS,-779.2,SPEC NEEDS CHILDREN,PAYMENTS TO CLIENTS (DIRECT PAYMENTS),2103285203,1000061886
02.07.2021,ADULT SOCIAL CARE,REDACTED PERSONAL DATA,"3,662.20",SPEC NEEDS CHILDREN,PAYMENTS TO CLIENTS (DIRECT PAYMENTS),REDACTED,REDACTED
02.07.2021,ADULT SOCIAL CARE,REDACTED PERSONAL DATA,"3,251.00",SPEC NEEDS CHILDREN,PAYMENTS TO CLIENTS (DIRECT PAYMENTS),REDACTED,REDACTED
02.07.2021,ADULT SOCIAL CARE,PEOPLEPLUS ILS,"-6,099.00",SPECIALIST CARE,PAYMENTS TO CLIENTS (DIRECT PAYMENTS),2103285092,1000061886
02.07.2021,ADULT SOCIAL CARE,PEOPLEPLUS ILS,"-3,015.50",SPECIALIST CARE,PAYMENTS TO CLIENTS (DIRECT PAYMENTS),2103285049,1000061886
02.07.2021,ADULT SOCIAL CARE,PEOPLEPLUS ILS,"-2,983.16",SPECIALIST CARE,PAYMENTS TO CLIENTS (DIRECT PAYMENTS),2103285188,1000061886
02.07.2021,ADULT SOCIAL CARE,PEOPLEPLUS ILS,"-2,826.20",SPECIALIST CARE,PAYMENTS TO CLIENTS (DIRECT PAYMENTS),2103285151,1000061886
02.07.2021,ADULT SOCIAL CARE,PEOPLEPLUS ILS,"-2,405.60",SPECIALIST CARE,PAYMENTS TO CLIENTS (DIRECT PAYMENTS),2103285087,1000061886
02.07.2021,ADULT SOCIAL CARE,PEOPLEPLUS ILS,"-2,405.60",SPECIALIST CARE,PAYMENTS TO CLIENTS (DIRECT PAYMENTS),2103285116,1000061886
02.07.2021,ADULT SOCIAL CARE,PEOPLEPLUS ILS,"-2,310.54",SPECIALIST CARE,PAYMENTS TO CLIENTS (DIRECT PAYMENTS),2103285200,1000061886
02.07.2021,ADULT SOCIAL CARE,PEOPLEPLUS ILS,"-2,303.95",SPECIALIST CARE,PAYMENTS TO CLIENTS (DIRECT PAYMENTS),2103285041,1000061886
02.07.2021,ADULT SOCIAL CARE,PEOPLEPLUS ILS,"-2,107.65",SPECIALIST CARE,PAYMENTS TO CLIENTS (DIRECT PAYMENTS),2103285079,1000061886
02.07.2021,ADULT SOCIAL CARE,PEOPLEPLUS ILS,"-1,999.00",SPECIALIST CARE,PAYMENTS TO CLIENTS (DIRECT PAYMENTS),2103285076,1000061886
02.07.2021,ADULT SOCIAL CARE,PEOPLEPLUS ILS,"-1,885.00",SPECIALIST CARE,PAYMENTS TO CLIENTS (DIRECT PAYMENTS),2103284992,1000061886
02.07.2021,ADULT SOCIAL CARE,PEOPLEPLUS ILS,"-1,795.70",SPECIALIST CARE,PAYMENTS TO CLIENTS (DIRECT PAYMENTS),2103285033,1000061886
02.07.2021,ADULT SOCIAL CARE,PEOPLEPLUS ILS,"-1,795.70",SPECIALIST CARE,PAYMENTS TO CLIENTS (DIRECT PAYMENTS),2103285242,1000061886
02.07.2021,ADULT SOCIAL CARE,PEOPLEPLUS ILS,"-1,612.40",SPECIALIST CARE,PAYMENTS TO CLIENTS (DIRECT PAYMENTS),2103285115,1000061886
02.07.2021,ADULT SOCIAL CARE,PEOPLEPLUS ILS,"-1,592.40",SPECIALIST CARE,PAYMENTS TO CLIENTS (DIRECT PAYMENTS),2103285148,1000061886
02.07.2021,ADULT SOCIAL CARE,PEOPLEPLUS ILS,"-1,592.40",SPECIALIST CARE,PAYMENTS TO CLIENTS (DIRECT PAYMENTS),2103285166,1000061886
02.07.2021,ADULT SOCIAL CARE,PEOPLEPLUS ILS,"-1,541.64",SPECIALIST CARE,PAYMENTS TO CLIENTS (DIRECT PAYMENTS),2103285154,1000061886
02.07.2021,ADULT SOCIAL CARE,PEOPLEPLUS ILS,"-1,490.75",SPECIALIST CARE,PAYMENTS TO CLIENTS (DIRECT PAYMENTS),2103285045,1000061886
02.07.2021,ADULT SOCIAL CARE,PEOPLEPLUS ILS,"-1,389.10",SPECIALIST CARE,PAYMENTS TO CLIENTS (DIRECT PAYMENTS),2103285259,1000061886
02.07.2021,ADULT SOCIAL CARE,PEOPLEPLUS ILS,"-1,301.71",SPECIALIST CARE,PAYMENTS TO CLIENTS (DIRECT PAYMENTS),2103285034,1000061886
02.07.2021,ADULT SOCIAL CARE,PEOPLEPLUS ILS,"-1,287.45",SPECIALIST CARE,PAYMENTS TO CLIENTS (DIRECT PAYMENTS),2103285207,1000061886
02.07.2021,ADULT SOCIAL CARE,PEOPLEPLUS ILS,"-1,219.80",SPECIALIST CARE,PAYMENTS TO CLIENTS (DIRECT PAYMENTS),2103285078,1000061886
02.07.2021,ADULT SOCIAL CARE,PEOPLEPLUS ILS,"-1,185.80",SPECIALIST CARE,PAYMENTS TO CLIENTS (DIRECT PAYMENTS),2103285053,1000061886
02.07.2021,ADULT SOCIAL CARE,PEOPLEPLUS ILS,"-1,185.80",SPECIALIST CARE,PAYMENTS TO CLIENTS (DIRECT PAYMENTS),2103285121,1000061886
02.07.2021,ADULT SOCIAL CARE,PEOPLEPLUS ILS,"-1,185.80",SPECIALIST CARE,PAYMENTS TO CLIENTS (DIRECT PAYMENTS),2103285201,1000061886
02.07.2021,ADULT SOCIAL CARE,PEOPLEPLUS ILS,"-1,185.80",SPECIALIST CARE,PAYMENTS TO CLIENTS (DIRECT PAYMENTS),2103285243,1000061886
02.07.2021,ADULT SOCIAL CARE,PEOPLEPLUS ILS,"-1,185.80",SPECIALIST CARE,PAYMENTS TO CLIENTS (DIRECT PAYMENTS),2103285250,1000061886
02.07.2021,ADULT SOCIAL CARE,PEOPLEPLUS ILS,"-1,033.39",SPECIALIST CARE,PAYMENTS TO CLIENTS (DIRECT PAYMENTS),2103285159,1000061886
02.07.2021,ADULT SOCIAL CARE,PEOPLEPLUS ILS,"-1,016.50",SPECIALIST CARE,PAYMENTS TO CLIENTS (DIRECT PAYMENTS),2103285005,1000061886
02.07.2021,ADULT SOCIAL CARE,PEOPLEPLUS ILS,-848,SPECIALIST CARE,PAYMENTS TO CLIENTS (DIRECT PAYMENTS),2103285248,1000061886
02.07.2021,ADULT SOCIAL CARE,PEOPLEPLUS ILS,-784.06,SPECIALIST CARE,PAYMENTS TO CLIENTS (DIRECT PAYMENTS),2103285094,1000061886
02.07.2021,ADULT SOCIAL CARE,PEOPLEPLUS ILS,-779.2,SPECIALIST CARE,PAYMENTS TO CLIENTS (DIRECT PAYMENTS),2103284987,1000061886
02.07.2021,ADULT SOCIAL CARE,PEOPLEPLUS ILS,-779.2,SPECIALIST CARE,PAYMENTS TO CLIENTS (DIRECT PAYMENTS),2103284993,1000061886
02.07.2021,ADULT SOCIAL CARE,PEOPLEPLUS ILS,-779.2,SPECIALIST CARE,PAYMENTS TO CLIENTS (DIRECT PAYMENTS),2103285014,1000061886
02.07.2021,ADULT SOCIAL CARE,PEOPLEPLUS ILS,-779.2,SPECIALIST CARE,PAYMENTS TO CLIENTS (DIRECT PAYMENTS),2103285037,1000061886
02.07.2021,ADULT SOCIAL CARE,PEOPLEPLUS ILS,-779.2,SPECIALIST CARE,PAYMENTS TO CLIENTS (DIRECT PAYMENTS),2103285042,1000061886
02.07.2021,ADULT SOCIAL CARE,PEOPLEPLUS ILS,-779.2,SPECIALIST CARE,PAYMENTS TO CLIENTS (DIRECT PAYMENTS),2103285044,1000061886
02.07.2021,ADULT SOCIAL CARE,PEOPLEPLUS ILS,-779.2,SPECIALIST CARE,PAYMENTS TO CLIENTS (DIRECT PAYMENTS),2103285058,1000061886
02.07.2021,ADULT SOCIAL CARE,PEOPLEPLUS ILS,-779.2,SPECIALIST CARE,PAYMENTS TO CLIENTS (DIRECT PAYMENTS),2103285091,1000061886
02.07.2021,ADULT SOCIAL CARE,PEOPLEPLUS ILS,-779.2,SPECIALIST CARE,PAYMENTS TO CLIENTS (DIRECT PAYMENTS),2103285123,1000061886
02.07.2021,ADULT SOCIAL CARE,PEOPLEPLUS ILS,-779.2,SPECIALIST CARE,PAYMENTS TO CLIENTS (DIRECT PAYMENTS),2103285124,1000061886
02.07.2021,ADULT SOCIAL CARE,PEOPLEPLUS ILS,-779.2,SPECIALIST CARE,PAYMENTS TO CLIENTS (DIRECT PAYMENTS),2103285125,1000061886
02.07.2021,ADULT SOCIAL CARE,PEOPLEPLUS ILS,-779.2,SPECIALIST CARE,PAYMENTS TO CLIENTS (DIRECT PAYMENTS),2103285168,1000061886
02.07.2021,ADULT SOCIAL CARE,PEOPLEPLUS ILS,-779.2,SPECIALIST CARE,PAYMENTS TO CLIENTS (DIRECT PAYMENTS),2103285169,1000061886
02.07.2021,ADULT SOCIAL CARE,PEOPLEPLUS ILS,-779.2,SPECIALIST CARE,PAYMENTS TO CLIENTS (DIRECT PAYMENTS),2103285171,1000061886
02.07.2021,ADULT SOCIAL CARE,PEOPLEPLUS ILS,-779.2,SPECIALIST CARE,PAYMENTS TO CLIENTS (DIRECT PAYMENTS),2103285194,1000061886
02.07.2021,ADULT SOCIAL CARE,PEOPLEPLUS ILS,-779.2,SPECIALIST CARE,PAYMENTS TO CLIENTS (DIRECT PAYMENTS),2103285219,1000061886
02.07.2021,ADULT SOCIAL CARE,PEOPLEPLUS ILS,-779.2,SPECIALIST CARE,PAYMENTS TO CLIENTS (DIRECT PAYMENTS),2103285238,1000061886
02.07.2021,ADULT SOCIAL CARE,PEOPLEPLUS ILS,-779.2,SPECIALIST CARE,PAYMENTS TO CLIENTS (DIRECT PAYMENTS),2103285256,1000061886
02.07.2021,ADULT SOCIAL CARE,PEOPLEPLUS ILS,-779.2,SPECIALIST CARE,PAYMENTS TO CLIENTS (DIRECT PAYMENTS),2103285284,1000061886
02.07.2021,ADULT SOCIAL CARE,PEOPLEPLUS ILS,-777.57,SPECIALIST CARE,PAYMENTS TO CLIENTS (DIRECT PAYMENTS),2103285057,1000061886
02.07.2021,ADULT SOCIAL CARE,PEOPLEPLUS ILS,-733.6,SPECIALIST CARE,PAYMENTS TO CLIENTS (DIRECT PAYMENTS),2103285040,1000061886
02.07.2021,ADULT SOCIAL CARE,PEOPLEPLUS ILS,-575.9,SPECIALIST CARE,PAYMENTS TO CLIENTS (DIRECT PAYMENTS),2103285216,1000061886
02.07.2021,ADULT SOCIAL CARE,PEOPLEPLUS ILS,-372.6,SPECIALIST CARE,PAYMENTS TO CLIENTS (DIRECT PAYMENTS),2103285153,1000061886
02.07.2021,ADULT SOCIAL CARE,PEOPLEPLUS ILS,-333.84,SPECIALIST CARE,PAYMENTS TO CLIENTS (DIRECT PAYMENTS),2103285054,1000061886
02.07.2021,ADULT SOCIAL CARE,PEOPLEPLUS ILS,251.63,SPECIALIST CARE,PAYMENTS TO CLIENTS (DIRECT PAYMENTS),2103285095,1000061886
02.07.2021,ADULT SOCIAL CARE,PEOPLEPLUS ILS,253.68,SPECIALIST CARE,PAYMENTS TO CLIENTS (DIRECT PAYMENTS),2103285001,1000061886
02.07.2021,ADULT SOCIAL CARE,PEOPLEPLUS ILS,265.63,SPECIALIST CARE,PAYMENTS TO CLIENTS (DIRECT PAYMENTS),2103285156,1000061886
02.07.2021,ADULT SOCIAL CARE,PEOPLEPLUS ILS,273.68,SPECIALIST CARE,PAYMENTS TO CLIENTS (DIRECT PAYMENTS),2103285050,1000061886
02.07.2021,ADULT SOCIAL CARE,PEOPLEPLUS ILS,273.68,SPECIALIST CARE,PAYMENTS TO CLIENTS (DIRECT PAYMENTS),2103285173,1000061886
02.07.2021,ADULT SOCIAL CARE,PEOPLEPLUS ILS,273.68,SPECIALIST CARE,PAYMENTS TO CLIENTS (DIRECT PAYMENTS),2103285191,1000061886
02.07.2021,ADULT SOCIAL CARE,PEOPLEPLUS ILS,285.63,SPECIALIST CARE,PAYMENTS TO CLIENTS (DIRECT PAYMENTS),2103284998,1000061886
02.07.2021,ADULT SOCIAL CARE,PEOPLEPLUS ILS,285.63,SPECIALIST CARE,PAYMENTS TO CLIENTS (DIRECT PAYMENTS),2103285030,1000061886
02.07.2021,ADULT SOCIAL CARE,PEOPLEPLUS ILS,285.63,SPECIALIST CARE,PAYMENTS TO CLIENTS (DIRECT PAYMENTS),2103285048,1000061886
02.07.2021,ADULT SOCIAL CARE,PEOPLEPLUS ILS,285.63,SPECIALIST CARE,PAYMENTS TO CLIENTS (DIRECT PAYMENTS),2103285196,1000061886
02.07.2021,ADULT SOCIAL CARE,PEOPLEPLUS ILS,285.63,SPECIALIST CARE,PAYMENTS TO CLIENTS (DIRECT PAYMENTS),2103285240,1000061886
02.07.2021,ADULT SOCIAL CARE,PEOPLEPLUS ILS,285.92,SPECIALIST CARE,PAYMENTS TO CLIENTS (DIRECT PAYMENTS),2103285002,1000061886
02.07.2021,ADULT SOCIAL CARE,PEOPLEPLUS ILS,314.6,SPECIALIST CARE,PAYMENTS TO CLIENTS (DIRECT PAYMENTS),2103285060,1000061886
02.07.2021,ADULT SOCIAL CARE,PEOPLEPLUS ILS,314.6,SPECIALIST CARE,PAYMENTS TO CLIENTS (DIRECT PAYMENTS),2103285096,1000061886
02.07.2021,ADULT SOCIAL CARE,PEOPLEPLUS ILS,321.2,SPECIALIST CARE,PAYMENTS TO CLIENTS (DIRECT PAYMENTS),2103285249,1000061886
02.07.2021,ADULT SOCIAL CARE,PEOPLEPLUS ILS,333,SPECIALIST CARE,PAYMENTS TO CLIENTS (DIRECT PAYMENTS),2103285093,1000061886
02.07.2021,ADULT SOCIAL CARE,PEOPLEPLUS ILS,337.63,SPECIALIST CARE,PAYMENTS TO CLIENTS (DIRECT PAYMENTS),2103285023,1000061886
02.07.2021,ADULT SOCIAL CARE,PEOPLEPLUS ILS,348.54,SPECIALIST CARE,PAYMENTS TO CLIENTS (DIRECT PAYMENTS),2103284986,1000061886
02.07.2021,ADULT SOCIAL CARE,PEOPLEPLUS ILS,348.54,SPECIALIST CARE,PAYMENTS TO CLIENTS (DIRECT PAYMENTS),2103285189,1000061886
02.07.2021,ADULT SOCIAL CARE,PEOPLEPLUS ILS,348.6,SPECIALIST CARE,PAYMENTS TO CLIENTS (DIRECT PAYMENTS),2103285276,1000061886
02.07.2021,ADULT SOCIAL CARE,PEOPLEPLUS ILS,384.63,SPECIALIST CARE,PAYMENTS TO CLIENTS (DIRECT PAYMENTS),2103285257,1000061886
02.07.2021,ADULT SOCIAL CARE,PEOPLEPLUS ILS,411.44,SPECIALIST CARE,PAYMENTS TO CLIENTS (DIRECT PAYMENTS),2103285010,1000061886
02.07.2021,ADULT SOCIAL CARE,PEOPLEPLUS ILS,411.44,SPECIALIST CARE,PAYMENTS TO CLIENTS (DIRECT PAYMENTS),2103285061,1000061886
02.07.2021,ADULT SOCIAL CARE,PEOPLEPLUS ILS,411.44,SPECIALIST CARE,PAYMENTS TO CLIENTS (DIRECT PAYMENTS),2103285241,1000061886
02.07.2021,ADULT SOCIAL CARE,PEOPLEPLUS ILS,411.44,SPECIALIST CARE,PAYMENTS TO CLIENTS (DIRECT PAYMENTS),2103285288,1000061886
02.07.2021,ADULT SOCIAL CARE,PEOPLEPLUS ILS,474.2,SPECIALIST CARE,PAYMENTS TO CLIENTS (DIRECT PAYMENTS),2103285056,1000061886
02.07.2021,ADULT SOCIAL CARE,PEOPLEPLUS ILS,474.35,SPECIALIST CARE,PAYMENTS TO CLIENTS (DIRECT PAYMENTS),2103285165,1000061886
02.07.2021,ADULT SOCIAL CARE,PEOPLEPLUS ILS,474.53,SPECIALIST CARE,PAYMENTS TO CLIENTS (DIRECT PAYMENTS),2103285036,1000061886
02.07.2021,ADULT SOCIAL CARE,PEOPLEPLUS ILS,474.53,SPECIALIST CARE,PAYMENTS TO CLIENTS (DIRECT PAYMENTS),2103285160,1000061886
02.07.2021,ADULT SOCIAL CARE,PEOPLEPLUS ILS,486.48,SPECIALIST CARE,PAYMENTS TO CLIENTS (DIRECT PAYMENTS),2103285199,1000061886
02.07.2021,ADULT SOCIAL CARE,PEOPLEPLUS ILS,486.48,SPECIALIST CARE,PAYMENTS TO CLIENTS (DIRECT PAYMENTS),2103285278,1000061886
02.07.2021,ADULT SOCIAL CARE,PEOPLEPLUS ILS,513.32,SPECIALIST CARE,PAYMENTS TO CLIENTS (DIRECT PAYMENTS),2103285246,1000061886
02.07.2021,ADULT SOCIAL CARE,PEOPLEPLUS ILS,513.36,SPECIALIST CARE,PAYMENTS TO CLIENTS (DIRECT PAYMENTS),2103285086,1000061886
02.07.2021,ADULT SOCIAL CARE,PEOPLEPLUS ILS,513.36,SPECIALIST CARE,PAYMENTS TO CLIENTS (DIRECT PAYMENTS),2103285273,1000061886
02.07.2021,ADULT SOCIAL CARE,PEOPLEPLUS ILS,532.41,SPECIALIST CARE,PAYMENTS TO CLIENTS (DIRECT PAYMENTS),2103285072,1000061886
02.07.2021,ADULT SOCIAL CARE,PEOPLEPLUS ILS,608.4,SPECIALIST CARE,PAYMENTS TO CLIENTS (DIRECT PAYMENTS),2103285097,1000061886
02.07.2021,ADULT SOCIAL CARE,PEOPLEPLUS ILS,631.57,SPECIALIST CARE,PAYMENTS TO CLIENTS (DIRECT PAYMENTS),2103285083,1000061886
02.07.2021,ADULT SOCIAL CARE,PEOPLEPLUS ILS,633.2,SPECIALIST CARE,PAYMENTS TO CLIENTS (DIRECT PAYMENTS),2103284996,1000061886
02.07.2021,ADULT SOCIAL CARE,PEOPLEPLUS ILS,647.23,SPECIALIST CARE,PAYMENTS TO CLIENTS (DIRECT PAYMENTS),2103285172,1000061886
02.07.2021,ADULT SOCIAL CARE,PEOPLEPLUS ILS,647.23,SPECIALIST CARE,PAYMENTS TO CLIENTS (DIRECT PAYMENTS),2103285253,1000061886
02.07.2021,ADULT SOCIAL CARE,PEOPLEPLUS ILS,680.2,SPECIALIST CARE,PAYMENTS TO CLIENTS (DIRECT PAYMENTS),2103285193,1000061886
02.07.2021,ADULT SOCIAL CARE,PEOPLEPLUS ILS,693.2,SPECIALIST CARE,PAYMENTS TO CLIENTS (DIRECT PAYMENTS),2103285055,1000061886
02.07.2021,ADULT SOCIAL CARE,PEOPLEPLUS ILS,768.48,SPECIALIST CARE,PAYMENTS TO CLIENTS (DIRECT PAYMENTS),2103285084,1000061886
02.07.2021,ADULT SOCIAL CARE,PEOPLEPLUS ILS,788.89,SPECIALIST CARE,PAYMENTS TO CLIENTS (DIRECT PAYMENTS),2103285052,1000061886
02.07.2021,ADULT SOCIAL CARE,PEOPLEPLUS ILS,798.62,SPECIALIST CARE,PAYMENTS TO CLIENTS (DIRECT PAYMENTS),2103285185,1000061886
02.07.2021,ADULT SOCIAL CARE,PEOPLEPLUS ILS,798.62,SPECIALIST CARE,PAYMENTS TO CLIENTS (DIRECT PAYMENTS),2103285231,1000061886
02.07.2021,ADULT SOCIAL CARE,PEOPLEPLUS ILS,883.33,SPECIALIST CARE,PAYMENTS TO CLIENTS (DIRECT PAYMENTS),2103285080,1000061886
02.07.2021,ADULT SOCIAL CARE,PEOPLEPLUS ILS,895.6,SPECIALIST CARE,PAYMENTS TO CLIENTS (DIRECT PAYMENTS),2103285158,1000061886
02.07.2021,ADULT SOCIAL CARE,PEOPLEPLUS ILS,909.36,SPECIALIST CARE,PAYMENTS TO CLIENTS (DIRECT PAYMENTS),2103285170,1000061886
02.07.2021,ADULT SOCIAL CARE,PEOPLEPLUS ILS,944.8,SPECIALIST CARE,PAYMENTS TO CLIENTS (DIRECT PAYMENTS),2103284994,1000061886
02.07.2021,ADULT SOCIAL CARE,PEOPLEPLUS ILS,967.4,SPECIALIST CARE,PAYMENTS TO CLIENTS (DIRECT PAYMENTS),2103285051,1000061886
02.07.2021,ADULT SOCIAL CARE,PEOPLEPLUS ILS,992.72,SPECIALIST CARE,PAYMENTS TO CLIENTS (DIRECT PAYMENTS),2103285162,1000061886
02.07.2021,ADULT SOCIAL CARE,PEOPLEPLUS ILS,"1,030.20",SPECIALIST CARE,PAYMENTS TO CLIENTS (DIRECT PAYMENTS),2103285178,1000061886
02.07.2021,ADULT SOCIAL CARE,PEOPLEPLUS ILS,"1,040.51",SPECIALIST CARE,PAYMENTS TO CLIENTS (DIRECT PAYMENTS),2103285035,1000061886
02.07.2021,ADULT SOCIAL CARE,PEOPLEPLUS ILS,"1,064.83",SPECIALIST CARE,PAYMENTS TO CLIENTS (DIRECT PAYMENTS),2103285017,1000061886
02.07.2021,ADULT SOCIAL CARE,PEOPLEPLUS ILS,"1,064.83",SPECIALIST CARE,PAYMENTS TO CLIENTS (DIRECT PAYMENTS),2103285019,1000061886
02.07.2021,ADULT SOCIAL CARE,PEOPLEPLUS ILS,"1,064.83",SPECIALIST CARE,PAYMENTS TO CLIENTS (DIRECT PAYMENTS),2103285022,1000061886
02.07.2021,ADULT SOCIAL CARE,PEOPLEPLUS ILS,"1,064.83",SPECIALIST CARE,PAYMENTS TO CLIENTS (DIRECT PAYMENTS),2103285028,1000061886
02.07.2021,ADULT SOCIAL CARE,PEOPLEPLUS ILS,"1,064.83",SPECIALIST CARE,PAYMENTS TO CLIENTS (DIRECT PAYMENTS),2103285071,1000061886
02.07.2021,ADULT SOCIAL CARE,PEOPLEPLUS ILS,"1,064.83",SPECIALIST CARE,PAYMENTS TO CLIENTS (DIRECT PAYMENTS),2103285100,1000061886
02.07.2021,ADULT SOCIAL CARE,PEOPLEPLUS ILS,"1,064.83",SPECIALIST CARE,PAYMENTS TO CLIENTS (DIRECT PAYMENTS),2103285101,1000061886
02.07.2021,ADULT SOCIAL CARE,PEOPLEPLUS ILS,"1,064.83",SPECIALIST CARE,PAYMENTS TO CLIENTS (DIRECT PAYMENTS),2103285104,1000061886
02.07.2021,ADULT SOCIAL CARE,PEOPLEPLUS ILS,"1,064.83",SPECIALIST CARE,PAYMENTS TO CLIENTS (DIRECT PAYMENTS),2103285109,1000061886
02.07.2021,ADULT SOCIAL CARE,PEOPLEPLUS ILS,"1,064.83",SPECIALIST CARE,PAYMENTS TO CLIENTS (DIRECT PAYMENTS),2103285129,1000061886
02.07.2021,ADULT SOCIAL CARE,PEOPLEPLUS ILS,"1,064.83",SPECIALIST CARE,PAYMENTS TO CLIENTS (DIRECT PAYMENTS),2103285136,1000061886
02.07.2021,ADULT SOCIAL CARE,PEOPLEPLUS ILS,"1,064.83",SPECIALIST CARE,PAYMENTS TO CLIENTS (DIRECT PAYMENTS),2103285138,1000061886
02.07.2021,ADULT SOCIAL CARE,PEOPLEPLUS ILS,"1,064.83",SPECIALIST CARE,PAYMENTS TO CLIENTS (DIRECT PAYMENTS),2103285139,1000061886
02.07.2021,ADULT SOCIAL CARE,PEOPLEPLUS ILS,"1,064.83",SPECIALIST CARE,PAYMENTS TO CLIENTS (DIRECT PAYMENTS),2103285140,1000061886
02.07.2021,ADULT SOCIAL CARE,PEOPLEPLUS ILS,"1,064.83",SPECIALIST CARE,PAYMENTS TO CLIENTS (DIRECT PAYMENTS),2103285144,1000061886
02.07.2021,ADULT SOCIAL CARE,PEOPLEPLUS ILS,"1,064.83",SPECIALIST CARE,PAYMENTS TO CLIENTS (DIRECT PAYMENTS),2103285174,1000061886
02.07.2021,ADULT SOCIAL CARE,PEOPLEPLUS ILS,"1,064.83",SPECIALIST CARE,PAYMENTS TO CLIENTS (DIRECT PAYMENTS),2103285179,1000061886
02.07.2021,ADULT SOCIAL CARE,PEOPLEPLUS ILS,"1,064.83",SPECIALIST CARE,PAYMENTS TO CLIENTS (DIRECT PAYMENTS),2103285221,1000061886
02.07.2021,ADULT SOCIAL CARE,PEOPLEPLUS ILS,"1,064.83",SPECIALIST CARE,PAYMENTS TO CLIENTS (DIRECT PAYMENTS),2103285225,1000061886
02.07.2021,ADULT SOCIAL CARE,PEOPLEPLUS ILS,"1,064.83",SPECIALIST CARE,PAYMENTS TO CLIENTS (DIRECT PAYMENTS),2103285226,1000061886
02.07.2021,ADULT SOCIAL CARE,PEOPLEPLUS ILS,"1,064.83",SPECIALIST CARE,PAYMENTS TO CLIENTS (DIRECT PAYMENTS),2103285229,1000061886
02.07.2021,ADULT SOCIAL CARE,PEOPLEPLUS ILS,"1,064.83",SPECIALIST CARE,PAYMENTS TO CLIENTS (DIRECT PAYMENTS),2103285260,1000061886
02.07.2021,ADULT SOCIAL CARE,PEOPLEPLUS ILS,"1,064.83",SPECIALIST CARE,PAYMENTS TO CLIENTS (DIRECT PAYMENTS),2103285264,1000061886
02.07.2021,ADULT SOCIAL CARE,PEOPLEPLUS ILS,"1,111.00",SPECIALIST CARE,PAYMENTS TO CLIENTS (DIRECT PAYMENTS),2103285120,1000061886
02.07.2021,ADULT SOCIAL CARE,PEOPLEPLUS ILS,"1,208.03",SPECIALIST CARE,PAYMENTS TO CLIENTS (DIRECT PAYMENTS),2103285291,1000061886
02.07.2021,ADULT SOCIAL CARE,PEOPLEPLUS ILS,"1,326.40",SPECIALIST CARE,PAYMENTS TO CLIENTS (DIRECT PAYMENTS),2103285272,1000061886
02.07.2021,ADULT SOCIAL CARE,PEOPLEPLUS ILS,"1,326.40",SPECIALIST CARE,PAYMENTS TO CLIENTS (DIRECT PAYMENTS),2103285286,1000061886
02.07.2021,ADULT SOCIAL CARE,PEOPLEPLUS ILS,"1,331.03",SPECIALIST CARE,PAYMENTS TO CLIENTS (DIRECT PAYMENTS),2103285020,1000061886
02.07.2021,ADULT SOCIAL CARE,PEOPLEPLUS ILS,"1,397.63",SPECIALIST CARE,PAYMENTS TO CLIENTS (DIRECT PAYMENTS),2103285266,1000061886
02.07.2021,ADULT SOCIAL CARE,PEOPLEPLUS ILS,"1,541.80",SPECIALIST CARE,PAYMENTS TO CLIENTS (DIRECT PAYMENTS),2103285013,1000061886
02.07.2021,ADULT SOCIAL CARE,PEOPLEPLUS ILS,"1,597.24",SPECIALIST CARE,PAYMENTS TO CLIENTS (DIRECT PAYMENTS),2103285021,1000061886
02.07.2021,ADULT SOCIAL CARE,PEOPLEPLUS ILS,"1,597.24",SPECIALIST CARE,PAYMENTS TO CLIENTS (DIRECT PAYMENTS),2103285064,1000061886
02.07.2021,ADULT SOCIAL CARE,PEOPLEPLUS ILS,"1,597.24",SPECIALIST CARE,PAYMENTS TO CLIENTS (DIRECT PAYMENTS),2103285110,1000061886
02.07.2021,ADULT SOCIAL CARE,PEOPLEPLUS ILS,"1,597.24",SPECIALIST CARE,PAYMENTS TO CLIENTS (DIRECT PAYMENTS),2103285137,1000061886
02.07.2021,ADULT SOCIAL CARE,PEOPLEPLUS ILS,"1,597.24",SPECIALIST CARE,PAYMENTS TO CLIENTS (DIRECT PAYMENTS),2103285220,1000061886
02.07.2021,ADULT SOCIAL CARE,PEOPLEPLUS ILS,"1,597.24",SPECIALIST CARE,PAYMENTS TO CLIENTS (DIRECT PAYMENTS),2103285222,1000061886
02.07.2021,ADULT SOCIAL CARE,PEOPLEPLUS ILS,"1,649.52",SPECIALIST CARE,PAYMENTS TO CLIENTS (DIRECT PAYMENTS),2103285163,1000061886
02.07.2021,ADULT SOCIAL CARE,PEOPLEPLUS ILS,"1,730.43",SPECIALIST CARE,PAYMENTS TO CLIENTS (DIRECT PAYMENTS),2103285018,1000061886
02.07.2021,ADULT SOCIAL CARE,PEOPLEPLUS ILS,"1,759.12",SPECIALIST CARE,PAYMENTS TO CLIENTS (DIRECT PAYMENTS),2103285157,1000061886
02.07.2021,ADULT SOCIAL CARE,PEOPLEPLUS ILS,"1,849.00",SPECIALIST CARE,PAYMENTS TO CLIENTS (DIRECT PAYMENTS),2103285218,1000061886
02.07.2021,ADULT SOCIAL CARE,PEOPLEPLUS ILS,"1,863.45",SPECIALIST CARE,PAYMENTS TO CLIENTS (DIRECT PAYMENTS),2103285107,1000061886
02.07.2021,ADULT SOCIAL CARE,PEOPLEPLUS ILS,"1,871.36",SPECIALIST CARE,PAYMENTS TO CLIENTS (DIRECT PAYMENTS),2103285103,1000061886
02.07.2021,ADULT SOCIAL CARE,PEOPLEPLUS ILS,"1,900.80",SPECIALIST CARE,PAYMENTS TO CLIENTS (DIRECT PAYMENTS),2103285283,1000061886
02.07.2021,ADULT SOCIAL CARE,PEOPLEPLUS ILS,"2,063.24",SPECIALIST CARE,PAYMENTS TO CLIENTS (DIRECT PAYMENTS),2103285181,1000061886
02.07.2021,ADULT SOCIAL CARE,PEOPLEPLUS ILS,"2,129.66",SPECIALIST CARE,PAYMENTS TO CLIENTS (DIRECT PAYMENTS),2103285067,1000061886
02.07.2021,ADULT SOCIAL CARE,PEOPLEPLUS ILS,"2,129.66",SPECIALIST CARE,PAYMENTS TO CLIENTS (DIRECT PAYMENTS),2103285186,1000061886
02.07.2021,ADULT SOCIAL CARE,PEOPLEPLUS ILS,"2,129.66",SPECIALIST CARE,PAYMENTS TO CLIENTS (DIRECT PAYMENTS),2103285227,1000061886
02.07.2021,ADULT SOCIAL CARE,PEOPLEPLUS ILS,"2,395.86",SPECIALIST CARE,PAYMENTS TO CLIENTS (DIRECT PAYMENTS),2103285224,1000061886
02.07.2021,ADULT SOCIAL CARE,PEOPLEPLUS ILS,"2,406.59",SPECIALIST CARE,PAYMENTS TO CLIENTS (DIRECT PAYMENTS),2103285108,1000061886
02.07.2021,ADULT SOCIAL CARE,PEOPLEPLUS ILS,"2,662.07",SPECIALIST CARE,PAYMENTS TO CLIENTS (DIRECT PAYMENTS),2103285027,1000061886
02.07.2021,ADULT SOCIAL CARE,PEOPLEPLUS ILS,"2,662.07",SPECIALIST CARE,PAYMENTS TO CLIENTS (DIRECT PAYMENTS),2103285063,1000061886
02.07.2021,ADULT SOCIAL CARE,PEOPLEPLUS ILS,"2,662.07",SPECIALIST CARE,PAYMENTS TO CLIENTS (DIRECT PAYMENTS),2103285105,1000061886
02.07.2021,ADULT SOCIAL CARE,PEOPLEPLUS ILS,"2,795.26",SPECIALIST CARE,PAYMENTS TO CLIENTS (DIRECT PAYMENTS),2103285262,1000061886
02.07.2021,ADULT SOCIAL CARE,PEOPLEPLUS ILS,"3,061.29",SPECIALIST CARE,PAYMENTS TO CLIENTS (DIRECT PAYMENTS),2103285267,1000061886
02.07.2021,ADULT SOCIAL CARE,PEOPLEPLUS ILS,"3,061.47",SPECIALIST CARE,PAYMENTS TO CLIENTS (DIRECT PAYMENTS),2103285025,1000061886
02.07.2021,ADULT SOCIAL CARE,PEOPLEPLUS ILS,"3,194.49",SPECIALIST CARE,PAYMENTS TO CLIENTS (DIRECT PAYMENTS),2103285069,1000061886
02.07.2021,ADULT SOCIAL CARE,PEOPLEPLUS ILS,"3,194.49",SPECIALIST CARE,PAYMENTS TO CLIENTS (DIRECT PAYMENTS),2103285098,1000061886
02.07.2021,ADULT SOCIAL CARE,PEOPLEPLUS ILS,"3,726.90",SPECIALIST CARE,PAYMENTS TO CLIENTS (DIRECT PAYMENTS),2103285102,1000061886
02.07.2021,ADULT SOCIAL CARE,PEOPLEPLUS ILS,"3,911.20",SPECIALIST CARE,PAYMENTS TO CLIENTS (DIRECT PAYMENTS),2103285059,1000061886
02.07.2021,ADULT SOCIAL CARE,PEOPLEPLUS ILS,"3,993.11",SPECIALIST CARE,PAYMENTS TO CLIENTS (DIRECT PAYMENTS),2103285099,1000061886
02.07.2021,ADULT SOCIAL CARE,PEOPLEPLUS ILS,"4,105.83",SPECIALIST CARE,PAYMENTS TO CLIENTS (DIRECT PAYMENTS),2103285062,1000061886
02.07.2021,ADULT SOCIAL CARE,PEOPLEPLUS ILS,"4,401.65",SPECIALIST CARE,PAYMENTS TO CLIENTS (DIRECT PAYMENTS),2103285233,1000061886
02.07.2021,ADULT SOCIAL CARE,PEOPLEPLUS ILS,"5,736.46",SPECIALIST CARE,PAYMENTS TO CLIENTS (DIRECT PAYMENTS),2103284988,1000061886
02.07.2021,ADULT SOCIAL CARE,PEOPLEPLUS ILS,"6,921.56",SPECIALIST CARE,PAYMENTS TO CLIENTS (DIRECT PAYMENTS),2103285070,1000061886
02.07.2021,ADULT SOCIAL CARE,PEOPLEPLUS ILS,"7,986.21",SPECIALIST CARE,PAYMENTS TO CLIENTS (DIRECT PAYMENTS),2103285073,1000061886
02.07.2021,ADULT SOCIAL CARE,PEOPLEPLUS ILS,"13,222.85",SPECIALIST CARE,PAYMENTS TO CLIENTS (DIRECT PAYMENTS),2103285269,1000061886
02.07.2021,ADULT SOCIAL CARE,REDACTED PERSONAL DATA,380.28,SPECIALIST CARE,PAYMENTS TO CLIENTS (DIRECT PAYMENTS),REDACTED,REDACTED
02.07.2021,ADULT SOCIAL CARE,REDACTED PERSONAL DATA,716,SPECIALIST CARE,PAYMENTS TO CLIENTS (DIRECT PAYMENTS),REDACTED,REDACTED
02.07.2021,ADULT SOCIAL CARE,REDACTED PERSONAL DATA,992.08,SPECIALIST CARE,PAYMENTS TO CLIENTS (DIRECT PAYMENTS),REDACTED,REDACTED
02.07.2021,ADULT SOCIAL CARE,REDACTED PERSONAL DATA,"-2,824.86",SPECIALIST CARE,PAYMENTS TO CLIENTS (DIRECT PAYMENTS),REDACTED,REDACTED
02.07.2021,ADULT SOCIAL CARE,REDACTED PERSONAL DATA,"5,856.56",SPECIALIST CARE,PAYMENTS TO CLIENTS (DIRECT PAYMENTS),REDACTED,REDACTED
02.07.2021,ADULT SOCIAL CARE,REDACTED PERSONAL DATA,"-2,399.60",SPECIALIST CARE,PAYMENTS TO CLIENTS (DIRECT PAYMENTS),REDACTED,REDACTED
02.07.2021,ADULT SOCIAL CARE,REDACTED PERSONAL DATA,"3,194.48",SPECIALIST CARE,PAYMENTS TO CLIENTS (DIRECT PAYMENTS),REDACTED,REDACTED
02.07.2021,ADULT SOCIAL CARE,REDACTED PERSONAL DATA,307.2,SPECIALIST CARE,PAYMENTS TO CLIENTS (DIRECT PAYMENTS),REDACTED,REDACTED
02.07.2021,ADULT SOCIAL CARE,REDACTED PERSONAL DATA,"-2,009.60",SPECIALIST CARE,PAYMENTS TO CLIENTS (DIRECT PAYMENTS),REDACTED,REDACTED
02.07.2021,ADULT SOCIAL CARE,REDACTED PERSONAL DATA,"2,462.46",SPECIALIST CARE,PAYMENTS TO CLIENTS (DIRECT PAYMENTS),REDACTED,REDACTED
02.07.2021,ADULT SOCIAL CARE,REDACTED PERSONAL DATA,"-1,199.80",SPECIALIST CARE,PAYMENTS TO CLIENTS (DIRECT PAYMENTS),REDACTED,REDACTED
02.07.2021,ADULT SOCIAL CARE,REDACTED PERSONAL DATA,"1,597.24",SPECIALIST CARE,PAYMENTS TO CLIENTS (DIRECT PAYMENTS),REDACTED,REDACTED
02.07.2021,ADULT SOCIAL CARE,REDACTED PERSONAL DATA,307.2,SPECIALIST CARE,PAYMENTS TO CLIENTS (DIRECT PAYMENTS),REDACTED,REDACTED
02.07.2021,ADULT SOCIAL CARE,REDACTED PERSONAL DATA,"-1,789.70",SPECIALIST CARE,PAYMENTS TO CLIENTS (DIRECT PAYMENTS),REDACTED,REDACTED
02.07.2021,ADULT SOCIAL CARE,REDACTED PERSONAL DATA,"2,395.86",SPECIALIST CARE,PAYMENTS TO CLIENTS (DIRECT PAYMENTS),REDACTED,REDACTED
02.07.2021,ADULT SOCIAL CARE,REDACTED PERSONAL DATA,"1,330.36",SPECIALIST CARE,PAYMENTS TO CLIENTS (DIRECT PAYMENTS),REDACTED,REDACTED
02.07.2021,ADULT SOCIAL CARE,REDACTED PERSONAL DATA,"-1,078.15",SPECIALIST CARE,PAYMENTS TO CLIENTS (DIRECT PAYMENTS),REDACTED,REDACTED
02.07.2021,ADULT SOCIAL CARE,REDACTED PERSONAL DATA,"1,464.23",SPECIALIST CARE,PAYMENTS TO CLIENTS (DIRECT PAYMENTS),REDACTED,REDACTED
02.07.2021,ADULT SOCIAL CARE,REDACTED PERSONAL DATA,"-5,757.00",SPECIALIST CARE,PAYMENTS TO CLIENTS (DIRECT PAYMENTS),REDACTED,REDACTED
02.07.2021,ADULT SOCIAL CARE,REDACTED PERSONAL DATA,"7,986.21",SPECIALIST CARE,PAYMENTS TO CLIENTS (DIRECT PAYMENTS),REDACTED,REDACTED
02.07.2021,ADULT SOCIAL CARE,REDACTED PERSONAL DATA,"-2,927.85",SPECIALIST CARE,PAYMENTS TO CLIENTS (DIRECT PAYMENTS),REDACTED,REDACTED
02.07.2021,ADULT SOCIAL CARE,REDACTED PERSONAL DATA,"3,860.09",SPECIALIST CARE,PAYMENTS TO CLIENTS (DIRECT PAYMENTS),REDACTED,REDACTED
02.07.2021,ADULT SOCIAL CARE,REDACTED PERSONAL DATA,-793.2,SPECIALIST CARE,PAYMENTS TO CLIENTS (DIRECT PAYMENTS),REDACTED,REDACTED
02.07.2021,ADULT SOCIAL CARE,REDACTED PERSONAL DATA,"1,064.83",SPECIALIST CARE,PAYMENTS TO CLIENTS (DIRECT PAYMENTS),REDACTED,REDACTED
02.07.2021,ADULT SOCIAL CARE,REDACTED PERSONAL DATA,"-1,098.15",SPECIALIST CARE,PAYMENTS TO CLIENTS (DIRECT PAYMENTS),REDACTED,REDACTED
02.07.2021,ADULT SOCIAL CARE,REDACTED PERSONAL DATA,"1,464.23",SPECIALIST CARE,PAYMENTS TO CLIENTS (DIRECT PAYMENTS),REDACTED,REDACTED
02.07.2021,ADULT SOCIAL CARE,REDACTED PERSONAL DATA,"1,097.00",SPECIALIST CARE,PAYMENTS TO CLIENTS (DIRECT PAYMENTS),REDACTED,REDACTED
02.07.2021,ADULT SOCIAL CARE,REDACTED PERSONAL DATA,"-1,199.80",SPECIALIST CARE,PAYMENTS TO CLIENTS (DIRECT PAYMENTS),REDACTED,REDACTED
02.07.2021,ADULT SOCIAL CARE,REDACTED PERSONAL DATA,"1,597.24",SPECIALIST CARE,PAYMENTS TO CLIENTS (DIRECT PAYMENTS),REDACTED,REDACTED
02.07.2021,ADULT SOCIAL CARE,REDACTED PERSONAL DATA,533.85,SPECIALIST CARE,PAYMENTS TO CLIENTS (DIRECT PAYMENTS),REDACTED,REDACTED
02.07.2021,ADULT SOCIAL CARE,REDACTED PERSONAL DATA,599.01,SPECIALIST CARE,PAYMENTS TO CLIENTS (DIRECT PAYMENTS),REDACTED,REDACTED
02.07.2021,ADULT SOCIAL CARE,REDACTED PERSONAL DATA,"-1,383.10",SPECIALIST CARE,PAYMENTS TO CLIENTS (DIRECT PAYMENTS),REDACTED,REDACTED
02.07.2021,ADULT SOCIAL CARE,REDACTED PERSONAL DATA,"1,863.45",SPECIALIST CARE,PAYMENTS TO CLIENTS (DIRECT PAYMENTS),REDACTED,REDACTED
02.07.2021,ADULT SOCIAL CARE,REDACTED PERSONAL DATA,"-2,806.20",SPECIALIST CARE,PAYMENTS TO CLIENTS (DIRECT PAYMENTS),REDACTED,REDACTED
02.07.2021,ADULT SOCIAL CARE,REDACTED PERSONAL DATA,"3,726.90",SPECIALIST CARE,PAYMENTS TO CLIENTS (DIRECT PAYMENTS),REDACTED,REDACTED
02.07.2021,ADULT SOCIAL CARE,REDACTED PERSONAL DATA,"1,064.83",SPECIALIST CARE,PAYMENTS TO CLIENTS (DIRECT PAYMENTS),REDACTED,REDACTED
02.07.2021,ADULT SOCIAL CARE,REDACTED PERSONAL DATA,"-1,504.75",SPECIALIST CARE,PAYMENTS TO CLIENTS (DIRECT PAYMENTS),REDACTED,REDACTED
02.07.2021,ADULT SOCIAL CARE,REDACTED PERSONAL DATA,"1,996.64",SPECIALIST CARE,PAYMENTS TO CLIENTS (DIRECT PAYMENTS),REDACTED,REDACTED
02.07.2021,ADULT SOCIAL CARE,REDACTED PERSONAL DATA,881.64,SPECIALIST CARE,PAYMENTS TO CLIENTS (DIRECT PAYMENTS),REDACTED,REDACTED
02.07.2021,ADULT SOCIAL CARE,REDACTED PERSONAL DATA,"-9,116.96",SPECIALIST CARE,PAYMENTS TO CLIENTS (DIRECT PAYMENTS),REDACTED,REDACTED
02.07.2021,ADULT SOCIAL CARE,REDACTED PERSONAL DATA,"13,290.99",SPECIALIST CARE,PAYMENTS TO CLIENTS (DIRECT PAYMENTS),REDACTED,REDACTED
02.07.2021,ADULT SOCIAL CARE,REDACTED PERSONAL DATA,"-2,470.49",SPECIALIST CARE,PAYMENTS TO CLIENTS (DIRECT PAYMENTS),REDACTED,REDACTED
02.07.2021,ADULT SOCIAL CARE,REDACTED PERSONAL DATA,"3,261.26",SPECIALIST CARE,PAYMENTS TO CLIENTS (DIRECT PAYMENTS),REDACTED,REDACTED
02.07.2021,ADULT SOCIAL CARE,REDACTED PERSONAL DATA,"-2,490.49",SPECIALIST CARE,PAYMENTS TO CLIENTS (DIRECT PAYMENTS),REDACTED,REDACTED
02.07.2021,ADULT SOCIAL CARE,REDACTED PERSONAL DATA,"3,261.26",SPECIALIST CARE,PAYMENTS TO CLIENTS (DIRECT PAYMENTS),REDACTED,REDACTED
02.07.2021,ADULT SOCIAL CARE,REDACTED PERSONAL DATA,861.6,SPECIALIST CARE,PAYMENTS TO CLIENTS (DIRECT PAYMENTS),REDACTED,REDACTED
02.07.2021,ADULT SOCIAL CARE,REDACTED PERSONAL DATA,617.7,SPECIALIST CARE,PAYMENTS TO CLIENTS (DIRECT PAYMENTS),REDACTED,REDACTED
02.07.2021,ADULT SOCIAL CARE,REDACTED PERSONAL DATA,-259.66,SPECIALIST CARE,PAYMENTS TO CLIENTS (DIRECT PAYMENTS),REDACTED,REDACTED
02.07.2021,ADULT SOCIAL CARE,REDACTED PERSONAL DATA,798.62,SPECIALIST CARE,PAYMENTS TO CLIENTS (DIRECT PAYMENTS),REDACTED,REDACTED
02.07.2021,ADULT SOCIAL CARE,REDACTED PERSONAL DATA,"-2,571.33",SPECIALIST CARE,PAYMENTS TO CLIENTS (DIRECT PAYMENTS),REDACTED,REDACTED
02.07.2021,ADULT SOCIAL CARE,REDACTED PERSONAL DATA,"3,394.09",SPECIALIST CARE,PAYMENTS TO CLIENTS (DIRECT PAYMENTS),REDACTED,REDACTED
02.07.2021,ADULT SOCIAL CARE,REDACTED PERSONAL DATA,"11,758.80",SPECIALIST CARE,PAYMENTS TO CLIENTS (DIRECT PAYMENTS),REDACTED,REDACTED
02.07.2021,ADULT SOCIAL CARE,REDACTED PERSONAL DATA,522.64,SPECIALIST CARE,PAYMENTS TO CLIENTS (DIRECT PAYMENTS),REDACTED,REDACTED
02.07.2021,ADULT SOCIAL CARE,REDACTED PERSONAL DATA,808.92,SPECIALIST CARE,PAYMENTS TO CLIENTS (DIRECT PAYMENTS),REDACTED,REDACTED
02.07.2021,ADULT SOCIAL CARE,REDACTED PERSONAL DATA,"-2,826.20",SPECIALIST CARE,PAYMENTS TO CLIENTS (DIRECT PAYMENTS),REDACTED,REDACTED
02.07.2021,ADULT SOCIAL CARE,REDACTED PERSONAL DATA,"3,726.90",SPECIALIST CARE,PAYMENTS TO CLIENTS (DIRECT PAYMENTS),REDACTED,REDACTED
02.07.2021,ADULT SOCIAL CARE,REDACTED PERSONAL DATA,"-5,469.37",SPECIALIST CARE,PAYMENTS TO CLIENTS (DIRECT PAYMENTS),REDACTED,REDACTED
02.07.2021,ADULT SOCIAL CARE,REDACTED PERSONAL DATA,"7,187.59",SPECIALIST CARE,PAYMENTS TO CLIENTS (DIRECT PAYMENTS),REDACTED,REDACTED
02.07.2021,ADULT SOCIAL CARE,REDACTED PERSONAL DATA,-822.51,SPECIALIST CARE,PAYMENTS TO CLIENTS (DIRECT PAYMENTS),REDACTED,REDACTED
02.07.2021,ADULT SOCIAL CARE,REDACTED PERSONAL DATA,"1,098.21",SPECIALIST CARE,PAYMENTS TO CLIENTS (DIRECT PAYMENTS),REDACTED,REDACTED
02.07.2021,ADULT SOCIAL CARE,REDACTED PERSONAL DATA,346.72,SPECIALIST CARE,PAYMENTS TO CLIENTS (DIRECT PAYMENTS),REDACTED,REDACTED
02.07.2021,ADULT SOCIAL CARE,REDACTED PERSONAL DATA,"2,395.86",SPECIALIST CARE,PAYMENTS TO CLIENTS (DIRECT PAYMENTS),REDACTED,REDACTED
02.07.2021,ADULT SOCIAL CARE,REDACTED PERSONAL DATA,"-12,615.95",SPECIALIST CARE,PAYMENTS TO CLIENTS (DIRECT PAYMENTS),REDACTED,REDACTED
02.07.2021,ADULT SOCIAL CARE,REDACTED PERSONAL DATA,"16,545.78",SPECIALIST CARE,PAYMENTS TO CLIENTS (DIRECT PAYMENTS),REDACTED,REDACTED
02.07.2021,ADULT SOCIAL CARE,REDACTED PERSONAL DATA,251.63,SPECIALIST CARE,PAYMENTS TO CLIENTS (DIRECT PAYMENTS),REDACTED,REDACTED
02.07.2021,ADULT SOCIAL CARE,REDACTED PERSONAL DATA,"1,076.80",SPECIALIST CARE,PAYMENTS TO CLIENTS (DIRECT PAYMENTS),REDACTED,REDACTED
02.07.2021,ADULT SOCIAL CARE,REDACTED PERSONAL DATA,617.7,SPECIALIST CARE,PAYMENTS TO CLIENTS (DIRECT PAYMENTS),REDACTED,REDACTED
02.07.2021,ADULT SOCIAL CARE,REDACTED PERSONAL DATA,"1,331.04",SPECIALIST CARE,PAYMENTS TO CLIENTS (DIRECT PAYMENTS),REDACTED,REDACTED
02.07.2021,ADULT SOCIAL CARE,REDACTED PERSONAL DATA,271.63,SPECIALIST CARE,PAYMENTS TO CLIENTS (DIRECT PAYMENTS),REDACTED,REDACTED
02.07.2021,ADULT SOCIAL CARE,REDACTED PERSONAL DATA,815.32,SPECIALIST CARE,PAYMENTS TO CLIENTS (DIRECT PAYMENTS),REDACTED,REDACTED
02.07.2021,ADULT SOCIAL CARE,REDACTED PERSONAL DATA,271.63,SPECIALIST CARE,PAYMENTS TO CLIENTS (DIRECT PAYMENTS),REDACTED,REDACTED
02.07.2021,ADULT SOCIAL CARE,REDACTED PERSONAL DATA,287.2,SPECIALIST CARE,PAYMENTS TO CLIENTS (DIRECT PAYMENTS),REDACTED,REDACTED
02.07.2021,ADULT SOCIAL CARE,REDACTED PERSONAL DATA,"4,902.40",SPECIALIST CARE,PAYMENTS TO CLIENTS (DIRECT PAYMENTS),REDACTED,REDACTED
02.07.2021,ADULT SOCIAL CARE,REDACTED PERSONAL DATA,"-1,199.80",SPECIALIST CARE,PAYMENTS TO CLIENTS (DIRECT PAYMENTS),REDACTED,REDACTED
02.07.2021,ADULT SOCIAL CARE,REDACTED PERSONAL DATA,"1,597.24",SPECIALIST CARE,PAYMENTS TO CLIENTS (DIRECT PAYMENTS),REDACTED,REDACTED
02.07.2021,ADULT SOCIAL CARE,REDACTED PERSONAL DATA,271.63,SPECIALIST CARE,PAYMENTS TO CLIENTS (DIRECT PAYMENTS),REDACTED,REDACTED
02.07.2021,ADULT SOCIAL CARE,REDACTED PERSONAL DATA,397.44,SPECIALIST CARE,PAYMENTS TO CLIENTS (DIRECT PAYMENTS),REDACTED,REDACTED
02.07.2021,ADULT SOCIAL CARE,REDACTED PERSONAL DATA,"-1,606.40",SPECIALIST CARE,PAYMENTS TO CLIENTS (DIRECT PAYMENTS),REDACTED,REDACTED
02.07.2021,ADULT SOCIAL CARE,REDACTED PERSONAL DATA,"2,129.66",SPECIALIST CARE,PAYMENTS TO CLIENTS (DIRECT PAYMENTS),REDACTED,REDACTED
02.07.2021,ADULT SOCIAL CARE,REDACTED PERSONAL DATA,-706.13,SPECIALIST CARE,PAYMENTS TO CLIENTS (DIRECT PAYMENTS),REDACTED,REDACTED
02.07.2021,ADULT SOCIAL CARE,REDACTED PERSONAL DATA,"1,198.02",SPECIALIST CARE,PAYMENTS TO CLIENTS (DIRECT PAYMENTS),REDACTED,REDACTED
02.07.2021,ADULT SOCIAL CARE,REDACTED PERSONAL DATA,499.36,SPECIALIST CARE,PAYMENTS TO CLIENTS (DIRECT PAYMENTS),REDACTED,REDACTED
02.07.2021,ADULT SOCIAL CARE,REDACTED PERSONAL DATA,317.23,SPECIALIST CARE,PAYMENTS TO CLIENTS (DIRECT PAYMENTS),REDACTED,REDACTED
02.07.2021,ADULT SOCIAL CARE,REDACTED PERSONAL DATA,-793.2,SPECIALIST CARE,PAYMENTS TO CLIENTS (DIRECT PAYMENTS),REDACTED,REDACTED
02.07.2021,ADULT SOCIAL CARE,REDACTED PERSONAL DATA,"1,064.83",SPECIALIST CARE,PAYMENTS TO CLIENTS (DIRECT PAYMENTS),REDACTED,REDACTED
02.07.2021,ADULT SOCIAL CARE,REDACTED PERSONAL DATA,718,SPECIALIST CARE,PAYMENTS TO CLIENTS (DIRECT PAYMENTS),REDACTED,REDACTED
02.07.2021,ADULT SOCIAL CARE,REDACTED PERSONAL DATA,"-2,033.00",SPECIALIST CARE,PAYMENTS TO CLIENTS (DIRECT PAYMENTS),REDACTED,REDACTED
02.07.2021,ADULT SOCIAL CARE,REDACTED PERSONAL DATA,"2,662.07",SPECIALIST CARE,PAYMENTS TO CLIENTS (DIRECT PAYMENTS),REDACTED,REDACTED
02.07.2021,ADULT SOCIAL CARE,REDACTED PERSONAL DATA,"2,662.07",SPECIALIST CARE,PAYMENTS TO CLIENTS (DIRECT PAYMENTS),REDACTED,REDACTED
02.07.2021,ADULT SOCIAL CARE,REDACTED PERSONAL DATA,754.89,SPECIALIST CARE,PAYMENTS TO CLIENTS (DIRECT PAYMENTS),REDACTED,REDACTED
02.07.2021,ADULT SOCIAL CARE,REDACTED PERSONAL DATA,718,SPECIALIST CARE,PAYMENTS TO CLIENTS (DIRECT PAYMENTS),REDACTED,REDACTED
02.07.2021,ADULT SOCIAL CARE,REDACTED PERSONAL DATA,"1,812.96",SPECIALIST CARE,PAYMENTS TO CLIENTS (DIRECT PAYMENTS),REDACTED,REDACTED
02.07.2021,ADULT SOCIAL CARE,REDACTED PERSONAL DATA,793.24,SPECIALIST CARE,PAYMENTS TO CLIENTS (DIRECT PAYMENTS),REDACTED,REDACTED
02.07.2021,ADULT SOCIAL CARE,REDACTED PERSONAL DATA,-589.9,SPECIALIST CARE,PAYMENTS TO CLIENTS (DIRECT PAYMENTS),REDACTED,REDACTED
02.07.2021,ADULT SOCIAL CARE,REDACTED PERSONAL DATA,798.62,SPECIALIST CARE,PAYMENTS TO CLIENTS (DIRECT PAYMENTS),REDACTED,REDACTED
02.07.2021,ADULT SOCIAL CARE,REDACTED PERSONAL DATA,-589.9,SPECIALIST CARE,PAYMENTS TO CLIENTS (DIRECT PAYMENTS),REDACTED,REDACTED
02.07.2021,ADULT SOCIAL CARE,REDACTED PERSONAL DATA,798.62,SPECIALIST CARE,PAYMENTS TO CLIENTS (DIRECT PAYMENTS),REDACTED,REDACTED
02.07.2021,ADULT SOCIAL CARE,REDACTED PERSONAL DATA,271.63,SPECIALIST CARE,PAYMENTS TO CLIENTS (DIRECT PAYMENTS),REDACTED,REDACTED
02.07.2021,ADULT SOCIAL CARE,ABBEYS CARE SUPPORT AND TRAINING LTD,251.72,SPECIALIST CARE,SECTION 17 PAYMENTS TO AGENCIES/CARERS,2103284840,1000086177
02.07.2021,ADULT SOCIAL CARE,ABBEYS CARE SUPPORT AND TRAINING LTD,"1,006.88",SPECIALIST CARE,SECTION 17 PAYMENTS TO AGENCIES/CARERS,2103284841,1000086177
02.07.2021,ADULT SOCIAL CARE,ABBEYS CARE SUPPORT AND TRAINING LTD,"1,006.88",SPECIALIST CARE,SECTION 17 PAYMENTS TO AGENCIES/CARERS,2103284847,1000086177
02.07.2021,ADULT SOCIAL CARE,PEOPLEPLUS ILS,"-10,178.77",TRANSITIONS 14-18YRS,PAYMENTS TO CLIENTS (DIRECT PAYMENTS),2103285270,1000061886
02.07.2021,ADULT SOCIAL CARE,PEOPLEPLUS ILS,"-3,197.50",TRANSITIONS 14-18YRS,PAYMENTS TO CLIENTS (DIRECT PAYMENTS),2103284984,1000061886
02.07.2021,ADULT SOCIAL CARE,PEOPLEPLUS ILS,"-1,309.30",TRANSITIONS 14-18YRS,PAYMENTS TO CLIENTS (DIRECT PAYMENTS),2103285141,1000061886
02.07.2021,ADULT SOCIAL CARE,PEOPLEPLUS ILS,-779.2,TRANSITIONS 14-18YRS,PAYMENTS TO CLIENTS (DIRECT PAYMENTS),2103285029,1000061886
02.07.2021,ADULT SOCIAL CARE,PEOPLEPLUS ILS,544.6,TRANSITIONS 14-18YRS,PAYMENTS TO CLIENTS (DIRECT PAYMENTS),2103285111,1000061886
02.07.2021,ADULT SOCIAL CARE,REDACTED PERSONAL DATA,"1,456.00",TRANSITIONS 14-18YRS,PAYMENTS TO CLIENTS (DIRECT PAYMENTS),REDACTED,REDACTED
02.07.2021,ADULT SOCIAL CARE,REDACTED PERSONAL DATA,917.52,TRANSITIONS 14-18YRS,PAYMENTS TO CLIENTS (DIRECT PAYMENTS),REDACTED,REDACTED
02.07.2021,ADULT SOCIAL CARE,REDACTED PERSONAL DATA,"3,302.80",TRANSITIONS 14-18YRS,PAYMENTS TO CLIENTS (DIRECT PAYMENTS),REDACTED,REDACTED
02.07.2021,ADULT SOCIAL CARE,REDACTED PERSONAL DATA,-793.2,TRANSITIONS 14-18YRS,PAYMENTS TO CLIENTS (DIRECT PAYMENTS),REDACTED,REDACTED
02.07.2021,ADULT SOCIAL CARE,REDACTED PERSONAL DATA,-826.86,TRANSITIONS 14-18YRS,PAYMENTS TO CLIENTS (DIRECT PAYMENTS),REDACTED,REDACTED
02.07.2021,ADULT SOCIAL CARE,REDACTED PERSONAL DATA,"-2,013.00",TRANSITIONS 14-18YRS,PAYMENTS TO CLIENTS (DIRECT PAYMENTS),REDACTED,REDACTED
02.07.2021,ASSET MANAGEMENT,GAS ADVISORY SERVICES LIMITED,"2,831.92",ENG CONTRACTS (NORTH),HEATING -DISTRICT SERVICE (CONTRACT SUM),5902475530,1000064649
02.07.2021,ASSET MANAGEMENT HGF,BRITISH GAS,488.63,CURLEW HOUSE,GAS,5902475120,1000054825
02.07.2021,CENTRAL FUNCTIONS,ROWANWOOD PROFESSIONAL SERVICES LTD,"3,000.00",ASSET MANAGEMENT SYSTEM,CONSULTANTS SERVICES,5902476247,1000080531
02.07.2021,CENTRAL FUNCTIONS,STANDAGE & CO LTD,"13,090.00",AYLESBURY,SECURITY SERVICES,2103284585,4002817
02.07.2021,CENTRAL FUNCTIONS,STANDAGE & CO LTD,"39,923.00",AYLESBURY,SECURITY SERVICES,2103284587,4002817
02.07.2021,CENTRAL FUNCTIONS,STANDAGE & CO LTD,"46,394.00",AYLESBURY,SECURITY SERVICES,2103284563,4002817
02.07.2021,CENTRAL FUNCTIONS,NORTHGATE PUBLIC SERVICES (UK) LTD,"4,513.89",BUSINESS APPLICATIONS,SOFTWARE,5902476131,1000037405
02.07.2021,CENTRAL FUNCTIONS,CBS MAINTENANCE SERVICES LTD,660,COMMERCIAL PROPERTIES,BUILDING R&M,5902476261,1000072375
02.07.2021,CENTRAL FUNCTIONS,CBS MAINTENANCE SERVICES LTD,"1,825.50",COMMERCIAL PROPERTIES,BUILDING R&M,5902476263,1000072375
02.07.2021,CENTRAL FUNCTIONS,CBS MAINTENANCE SERVICES LTD,"2,040.00",COMMERCIAL PROPERTIES,BUILDING R&M,5902476238,1000072375
02.07.2021,CENTRAL FUNCTIONS,BRESLIN CONSTRUCTION LTD,600,COMMERCIAL PROPERTIES,BUILDING R&M,2103284591,3000001948
02.07.2021,CENTRAL FUNCTIONS,BRESLIN CONSTRUCTION LTD,"2,900.00",COMMERCIAL PROPERTIES,BUILDING R&M,2103284589,3000001948
02.07.2021,CENTRAL FUNCTIONS,KENT COUNTY COUNCIL - LASER,793.63,HEATING ACCOUNT,ELECTRICITY,2103286209,1000012926
02.07.2021,CENTRAL FUNCTIONS,KENT COUNTY COUNCIL - LASER,"1,075.79",HEATING ACCOUNT,ELECTRICITY,2103286211,1000012926
02.07.2021,CENTRAL FUNCTIONS,KENT COUNTY COUNCIL - LASER,"1,234.45",HEATING ACCOUNT,ELECTRICITY,2103286208,1000012926
02.07.2021,CENTRAL FUNCTIONS,KENT COUNTY COUNCIL - LASER,618.07,HEATING ACCOUNT,GAS,2103286212,1000012926
02.07.2021,CENTRAL FUNCTIONS,BCS (ELECTRICAL & BUILDING SERVICES LTD),"4,489.80",LEDBURY ESTATE,ELECTRICITY,5902476151,1000062321
02.07.2021,CHIEF EXECUTIVE,AMR CONSULT LTD,575,CAPITAL PS (REGEN),CONSTRUCTION FEES,5902476211,1000080834
02.07.2021,CHIEF EXECUTIVE,AMR CONSULT LTD,575,CAPITAL PS (REGEN),CONSTRUCTION FEES,5902476213,1000080834
02.07.2021,CHIEF EXECUTIVE,AMR CONSULT LTD,575,CAPITAL PS (REGEN),CONSTRUCTION FEES,5902476215,1000080834
02.07.2021,CHIEF EXECUTIVE,AMR CONSULT LTD,"2,300.00",CAPITAL PS (REGEN),CONSTRUCTION FEES,5902476208,1000080834
02.07.2021,CHIEF EXECUTIVE,TRACSIS TRAFFIC DATA LTD,"13,168.00",CAPITAL PS (REGEN),CONSTRUCTION FEES  - EXTERNAL,5902476228,1000079382
02.07.2021,CHIEF EXECUTIVE,CBS MAINTENANCE SERVICES LTD,"8,884.00",CAPITAL PS (REGEN),CONSTRUCTION FEES  - EXTERNAL,2103282037,3000001518
02.07.2021,CHIEF EXECUTIVE,CBS MAINTENANCE SERVICES LTD,"9,052.00",CAPITAL PS (REGEN),CONSTRUCTION FEES  - EXTERNAL,2103282037,3000001518
02.07.2021,CHIEF EXECUTIVE,CBS MAINTENANCE SERVICES LTD,"10,696.00",CAPITAL PS (REGEN),CONSTRUCTION FEES  - EXTERNAL,2103282037,3000001518
02.07.2021,CHIEF EXECUTIVE,BRESLIN CONSTRUCTION LTD,"3,325.00",CAPITAL PS (REGEN),CONSTRUCTION FEES  - EXTERNAL,2103284589,3000001948
02.07.2021,CHIEF EXECUTIVE,BRESLIN CONSTRUCTION LTD,"3,825.00",CAPITAL PS (REGEN),CONSTRUCTION FEES  - EXTERNAL,2103284591,3000001948
02.07.2021,CHILDREN AND FAMILIES,ACORN CARE & EDUCATION LTD,"14,957.14",CHILDREN�S RESID,RESIDENTIAL CARE,2103284880,1000085841
02.07.2021,CHILDREN AND FAMILIES,ACORN CARE & EDUCATION LTD,"14,957.14",CHILDREN�S RESID,RESIDENTIAL CARE,2103284882,1000085841
02.07.2021,CHILDREN AND FAMILIES,ACORN CARE & EDUCATION LTD,"15,455.71",CHILDREN�S RESID,RESIDENTIAL CARE,2103284881,1000085841
02.07.2021,CHILDREN AND FAMILIES,CONTACT PROFESSIONALS,251.91,CONTACT SERVICE,OTHER PAYMENTS FOR CLIENTS,2103284856,1000057263
02.07.2021,CHILDREN AND FAMILIES,ORCHID CELLMARK LTD,504,EDGE OF CARE DECIS�S,OTHER PAYMENTS FOR CLIENTS,2103284839,1000078050
02.07.2021,CHILDREN AND FAMILIES,LONDON BOROUGH OF BROMLEY,"2,000.00",FOSTERING TEAM,SUBSCRIPTIONS,5902475569,1061538
02.07.2021,CHILDREN AND FAMILIES,NATIONAL FOSTERING AGENCY LTD,"-1,617.00",FRIENDS & FAMILY FOSTERING,EXTERNAL AGENCIES AND BODIES,2103284870,1000038868
02.07.2021,CHILDREN AND FAMILIES,NATIONAL FOSTERING AGENCY LTD,"2,168.54",FRIENDS & FAMILY FOSTERING,EXTERNAL AGENCIES AND BODIES,2103284869,1000038868
02.07.2021,CHILDREN AND FAMILIES,FUTURES FOR CHILDREN LIMITED,"2,573.04",FRIENDS & FAMILY FOSTERING,EXTERNAL AGENCIES AND BODIES,2103284864,1000041984
02.07.2021,CHILDREN AND FAMILIES,FUTURES FOR CHILDREN LIMITED,"2,598.96",FRIENDS & FAMILY FOSTERING,EXTERNAL AGENCIES AND BODIES,2103284863,1000041984
02.07.2021,CHILDREN AND FAMILIES,BY THE BRIDGE LTD,"4,082.40",FRIENDS & FAMILY FOSTERING,EXTERNAL AGENCIES AND BODIES,2103284866,1000043961
02.07.2021,CHILDREN AND FAMILIES,BY THE BRIDGE LTD,"4,297.20",FRIENDS & FAMILY FOSTERING,EXTERNAL AGENCIES AND BODIES,2103284876,1000043961
02.07.2021,CHILDREN AND FAMILIES,BY THE BRIDGE LTD,"4,366.50",FRIENDS & FAMILY FOSTERING,EXTERNAL AGENCIES AND BODIES,2103284875,1000043961
02.07.2021,CHILDREN AND FAMILIES,BY THE BRIDGE LTD,"4,433.10",FRIENDS & FAMILY FOSTERING,EXTERNAL AGENCIES AND BODIES,2103284874,1000043961
02.07.2021,CHILDREN AND FAMILIES,BY THE BRIDGE LTD,"4,508.13",FRIENDS & FAMILY FOSTERING,EXTERNAL AGENCIES AND BODIES,2103284859,1000043961
02.07.2021,CHILDREN AND FAMILIES,BY THE BRIDGE LTD,"4,596.00",FRIENDS & FAMILY FOSTERING,EXTERNAL AGENCIES AND BODIES,2103284867,1000043961
02.07.2021,CHILDREN AND FAMILIES,BY THE BRIDGE LTD,"4,745.40",FRIENDS & FAMILY FOSTERING,EXTERNAL AGENCIES AND BODIES,2103284858,1000043961
02.07.2021,CHILDREN AND FAMILIES,BY THE BRIDGE LTD,"4,745.40",FRIENDS & FAMILY FOSTERING,EXTERNAL AGENCIES AND BODIES,2103284877,1000043961
02.07.2021,CHILDREN AND FAMILIES,FOLLOWING WHISPERS FAMILY SERVICE LTD,"6,642.90",FRIENDS & FAMILY FOSTERING,EXTERNAL AGENCIES AND BODIES,2103284865,1000065611
02.07.2021,CHILDREN AND FAMILIES,SHARED CARE SERVICES LTD,"1,080.00",FRIENDS & FAMILY FOSTERING,EXTERNAL AGENCIES AND BODIES,2103284873,1000080308
02.07.2021,CHILDREN AND FAMILIES,DIVERSITY FOSTER CARE LTD,"3,976.16",FRIENDS & FAMILY FOSTERING,EXTERNAL AGENCIES AND BODIES,2103284862,1000081399
02.07.2021,CHILDREN AND FAMILIES,DIVERSITY FOSTER CARE LTD,"3,976.16",FRIENDS & FAMILY FOSTERING,EXTERNAL AGENCIES AND BODIES,2103284868,1000081399
02.07.2021,CHILDREN AND FAMILIES,LOOK AHEAD CARE AND SUPPORT LTD,"1,944.77",SEMI-IND CARELEAVERS,EXTERNAL AGENCIES AND BODIES,2103284818,1000047299
02.07.2021,CHILDREN AND FAMILIES,BARNARDOS SERVICES LTD,642.86,SEMI-IND CARELEAVERS,EXTERNAL AGENCIES AND BODIES,2103284829,1000063730
02.07.2021,CHILDREN AND FAMILIES,SILVER BIRCH CARE LTD,"3,750.00",SEMI-IND CARELEAVERS,EXTERNAL AGENCIES AND BODIES,2103284828,1000076525
02.07.2021,CHILDREN AND FAMILIES,SP HOMES LTD,652.74,SEMI-IND CARELEAVERS,EXTERNAL AGENCIES AND BODIES,2103284827,1000080326
02.07.2021,CHILDREN AND FAMILIES,PATHWAY LTD,"2,251.83",SEMI-IND CARELEAVERS,EXTERNAL AGENCIES AND BODIES,2103284823,1000080564
02.07.2021,CHILDREN AND FAMILIES,PATHWAY LTD,"3,642.85",SEMI-IND CARELEAVERS,EXTERNAL AGENCIES AND BODIES,2103284826,1000080564
02.07.2021,CHILDREN AND FAMILIES,CONTACT PROFESSIONALS,304.2,SEMI-IND LAC 16-17,EXTERNAL AGENCIES AND BODIES,2103284834,1000057263
02.07.2021,CHILDREN AND FAMILIES,SILVER BIRCH CARE LTD,"3,750.00",SEMI-IND LAC 16-17,EXTERNAL AGENCIES AND BODIES,2103284831,1000076525
02.07.2021,CHILDREN AND FAMILIES,SILVER BIRCH CARE LTD,"17,142.86",SEMI-IND LAC 16-17,EXTERNAL AGENCIES AND BODIES,2103284830,1000076525
02.07.2021,CHILDREN AND FAMILIES,TRANSFORMING LIVES COMPANY LTD,"4,015.50",SEMI-IND LAC 16-17,EXTERNAL AGENCIES AND BODIES,2103284832,1000083352
02.07.2021,CHILDREN AND FAMILIES,SILVER BIRCH CARE LTD,278.57,SEMI-IND LAC 16-17,OTHER PAYMENTS FOR CLIENTS,2103284837,1000076525
02.07.2021,CHILDREN AND FAMILIES,SILVER BIRCH CARE LTD,300,SEMI-IND LAC 16-17,OTHER PAYMENTS FOR CLIENTS,2103284836,1000076525
02.07.2021,CHILDREN AND FAMILIES,BARNARDOS SERVICES LTD,"-1,296.20",STAYPUT- FOST CARERS,EXTERNAL AGENCIES AND BODIES,2103284825,1000063730
02.07.2021,CHILDREN AND FAMILIES,BARNARDOS SERVICES LTD,"1,500.00",STAYPUT- FOST CARERS,EXTERNAL AGENCIES AND BODIES,2103284822,1000063730
02.07.2021,CHILDREN AND FAMILIES,BARNARDOS SERVICES LTD,"1,550.00",STAYPUT- FOST CARERS,EXTERNAL AGENCIES AND BODIES,2103284824,1000063730
02.07.2021,CHILDREN AND FAMILIES,LOOK AHEAD CARE AND SUPPORT LTD,"2,826.81",UASC CARELEAVERS,EXTERNAL AGENCIES AND BODIES,2103284819,1000047299
02.07.2021,CHILDREN AND FAMILIES,SILVER BIRCH CARE LTD,375,UASC CARELEAVERS,EXTERNAL AGENCIES AND BODIES,2103284816,1000076525
02.07.2021,CHILDREN AND FAMILIES,PURPLE PEBBLES(CHILD CARE) SERVICES,350,UASC CARELEAVERS,OTHER PAYMENTS FOR CLIENTS,2103284821,1000070705
02.07.2021,CHILDREN AND FAMILIES,FUTURE FOUNDATIONS LTD,300,UASC LAC 16-17,OTHER PAYMENTS FOR CLIENTS,2103284835,1000063272
02.07.2021,COMMUNITIES,PROFAD CARE AGENCY,257.58,NO RECOURSE TO PUBLIC FUNDS,HOMECARE - C&V,2103284936,1000079032
02.07.2021,COMMUNITIES,PROFAD CARE AGENCY,330.48,NO RECOURSE TO PUBLIC FUNDS,HOMECARE - C&V,2103284961,1000079032
02.07.2021,COMMUNITIES,PROFAD CARE AGENCY,622.08,NO RECOURSE TO PUBLIC FUNDS,HOMECARE - C&V,2103284927,1000079032
02.07.2021,COMMUNITIES,PROFAD CARE AGENCY,828,NO RECOURSE TO PUBLIC FUNDS,HOMECARE - C&V,2103284918,1000079032
02.07.2021,COMMUNITIES,PROFAD CARE AGENCY,972,NO RECOURSE TO PUBLIC FUNDS,HOMECARE - C&V,2103284912,1000079032
02.07.2021,COMMUNITIES,PROFAD CARE AGENCY,"1,127.52",NO RECOURSE TO PUBLIC FUNDS,HOMECARE - C&V,2103284929,1000079032
02.07.2021,COMMUNITIES,PROFAD CARE AGENCY,"1,341.36",NO RECOURSE TO PUBLIC FUNDS,HOMECARE - C&V,2103284935,1000079032
02.07.2021,COMMUNITIES,ST FAITHS COMMUNITY CENTRE,"5,000.00",VCS GRANTS,GRANTS,5902476169,1039446
02.07.2021,COMMUNITIES,TIME & TALENTS ASSOCIATION,"4,500.00",VCS GRANTS,GRANTS,5902476170,1757632
02.07.2021,COMMUNITIES,LONDON WILDLIFE TRUST,"7,500.00",VCS GRANTS,GRANTS,5902476171,1832374
02.07.2021,COMMUNITIES,SOUTHWARK CITIZENS ADVICE,"5,600.00",VCS GRANTS,GRANTS,5902476172,1874379
02.07.2021,COMMUNITIES,SOMALI INTEGRATION & DEVELOPMENT ASSOCIATION,"14,000.00",VCS GRANTS,GRANTS,5902476173,11048946
02.07.2021,COMMUNITIES,GOLDEN OLDIES COMMUNITY CARE PROJECT,"2,500.00",VCS GRANTS,GRANTS,5902476174,11122958
02.07.2021,COMMUNITIES,BEDE HSE,"4,500.00",VCS GRANTS,GRANTS,5902476176,11248731
02.07.2021,COMMUNITIES,CAMBRIDGE HOUSE & TALBOT,"4,500.00",VCS GRANTS,GRANTS,5902476177,11248874
02.07.2021,COMMUNITIES,PECAN LTD,"6,500.00",VCS GRANTS,GRANTS,5902476179,11263114
02.07.2021,COMMUNITIES,PECAN LTD,"7,375.00",VCS GRANTS,GRANTS,5902476178,11263114
02.07.2021,COMMUNITIES,SURREY DOCKS FARM PROVIDENT SOCIETY,"10,000.00",VCS GRANTS,GRANTS,5902476180,1000000958
02.07.2021,COMMUNITIES,AAINA WOMEN GROUP,"8,018.25",VCS GRANTS,GRANTS,5902476181,1000002442
02.07.2021,COMMUNITIES,BANKSIDE OPEN SPACES TRUST,"4,208.00",VCS GRANTS,GRANTS,5902476182,1000018290
02.07.2021,COMMUNITIES,SOUTHWARK PENSIONERS CENTRE,"25,855.25",VCS GRANTS,GRANTS,5902476183,1000027831
02.07.2021,COMMUNITIES,SWK DAY CTR FOR ASYLUM SEEKERS,"11,330.25",VCS GRANTS,GRANTS,5902476184,1000040491
02.07.2021,COMMUNITIES,SOUTHWARK EVERY WOMAN'S CENTRE,"5,500.00",VCS GRANTS,GRANTS,5902476185,1000042216
02.07.2021,COMMUNITIES,FUTURE MEN,"4,125.00",VCS GRANTS,GRANTS,5902476186,1000046010
02.07.2021,COMMUNITIES,THE MANNA CENTRE,"13,750.00",VCS GRANTS,GRANTS,5902476187,1000048508
02.07.2021,COMMUNITIES,MENTAL FIGHT CLUB,"2,500.00",VCS GRANTS,GRANTS,5902476188,1000051170
02.07.2021,COMMUNITIES,CRYSTAL PALACE COMM DEV TRUST,"3,000.00",VCS GRANTS,GRANTS,5902476189,1000054200
02.07.2021,COMMUNITIES,LATIN AMERICAN DISABLED PEOPLE PROJECT,"4,625.00",VCS GRANTS,GRANTS,5902476190,1000058588
02.07.2021,COMMUNITIES,LATIN AMERICAN WOMEN'S RIGHTS SERVICES,"4,625.00",VCS GRANTS,GRANTS,5902476192,1000068356
02.07.2021,COMMUNITIES,PAXTON GREEN TIME BANK,"4,250.00",VCS GRANTS,GRANTS,5902476194,1000070648
02.07.2021,COMMUNITIES,BLACKFRIARS SETTLEMENT,"4,500.00",VCS GRANTS,GRANTS,5902476195,1000071456
02.07.2021,COMMUNITIES,PEMBROKE COLLEGE SETTLEMENT,"4,500.00",VCS GRANTS,GRANTS,5902476196,1000073444
02.07.2021,COMMUNITIES,BERMONDSEY COMMUNITY KITCHEN,"3,750.00",VCS GRANTS,GRANTS,5902476198,1000075477
02.07.2021,COMMUNITIES,THE BIKE PROJECT,"3,851.00",VCS GRANTS,GRANTS,5902476199,1000077217
02.07.2021,COMMUNITIES,SOUTHWARK TRAVELLERS' ACTION,"5,750.00",VCS GRANTS,GRANTS,5902476200,1000077795
02.07.2021,COMMUNITIES,GLOBAL GENERATION,"4,250.00",VCS GRANTS,GRANTS,5902476201,1000080135
02.07.2021,COMMUNITIES,CENTRAL SOUTHWARK COMMUNITY HUB,"5,250.00",VCS GRANTS,GRANTS,5902476202,1000083089
02.07.2021,COMMUNITIES,OPENING DOORS LONDON,"4,750.00",VCS GRANTS,GRANTS,5902476203,1000086261
02.07.2021,COMMUNITIES HRA,BROWNING EST MGMT ASSN,"2,975.00",BROWNING EMB,M&M ALLOWANCE CO-OPS,5902475741,1000059362
02.07.2021,CUSTOMER EXPERIENCE HGF,IMPERIAL COLLEGE PROJECTS LTD,292,CORONER'S,PROFESSIONAL FEES,5902476205,1000080106
02.07.2021,CUSTOMER EXPERIENCE HGF,IMPERIAL COLLEGE PROJECTS LTD,344,CORONER'S,PROFESSIONAL FEES,5902476207,1000080106
02.07.2021,CUSTOMER EXPERIENCE HGF,IMPERIAL COLLEGE PROJECTS LTD,452,CORONER'S,PROFESSIONAL FEES,5902476206,1000080106
02.07.2021,CUSTOMER EXPERIENCE HGF,IMPERIAL COLLEGE PROJECTS LTD,484,CORONER'S,PROFESSIONAL FEES,5902476204,1000080106
02.07.2021,DSG,THE GREY COAT HOSPITAL,"1,312.82",AC & FREE - MSTREAM,STATEMENTED FEES,2103284673,1000068231
02.07.2021,DSG,FUTURE ACADEMIES PIMLICO ACADEMY,"2,584.62",AC & FREE - MSTREAM,STATEMENTED FEES,2103284647,1000073315
02.07.2021,DSG,DARRICK WOOD SCHOOL,"1,989.67",AC & FREE - MSTREAM,STATEMENTED FEES,2103284649,1000073293
02.07.2021,DSG,DARRICK WOOD SCHOOL,"3,979.33",AC & FREE - MSTREAM,STATEMENTED FEES,2103284648,1000073293
02.07.2021,DSG,TRINITY SCHOOL,"2,768.74",AC & FREE - MSTREAM,STATEMENTED FEES,2103284618,1000075106
02.07.2021,DSG,HOLLAND PARK SCHOOL,"2,625.53",AC & FREE - MSTREAM,STATEMENTED FEES,2103284650,1000077628
02.07.2021,DSG,ST GEORGES C OF E SCHOOL,"1,251.11",AC & FREE - MSTREAM,STATEMENTED FEES,2103284748,1000085966
02.07.2021,DSG,ST GEORGES C OF E SCHOOL,"1,251.11",AC & FREE - MSTREAM,STATEMENTED FEES,2103284749,1000085966
02.07.2021,DSG,ORGANISATION OF BLIND AFRICANS & CARIBBEANS,800,AP & HOSPITAL SCHLS,STATEMENTED FEES,2103284669,1000002281
02.07.2021,DSG,CHOICE SUPPORT,"1,448.48",AP & HOSPITAL SCHLS,STATEMENTED FEES,2103284645,1000031156
02.07.2021,DSG,CHOICE SUPPORT,"1,448.48",AP & HOSPITAL SCHLS,STATEMENTED FEES,2103284646,1000031156
02.07.2021,DSG,LOVE ABA LTD,650,AP & HOSPITAL SCHLS,STATEMENTED FEES,2103284743,1000079474
02.07.2021,DSG,LOVE ABA LTD,650,AP & HOSPITAL SCHLS,STATEMENTED FEES,2103284744,1000079474
02.07.2021,DSG,LOVE ABA LTD,900,AP & HOSPITAL SCHLS,STATEMENTED FEES,2103284745,1000079474
02.07.2021,DSG,KIP MCGRATH EDUCATION CENTRE,"1,890.00",AP & HOSPITAL SCHLS,STATEMENTED FEES,2103284750,1000086704
02.07.2021,DSG,TINU ODEKU T/A LITTLE ANGELS CHILDCARE SERVICES,280.25,EY SENDIF,STATEMENTED FEES,2103284794,1000058464
02.07.2021,DSG,LITTLE JUNGLE NURSERY LIMITED,"1,012.00",EY SENDIF,STATEMENTED FEES,2103284795,1000067064
02.07.2021,DSG,SUNHILL DAYCARE (EUROPE) LIMITED,396,EY SENDIF,STATEMENTED FEES,2103284756,1000083945
02.07.2021,DSG,SUNHILL DAYCARE (EUROPE) LIMITED,"1,012.00",EY SENDIF,STATEMENTED FEES,2103284754,1000083945
02.07.2021,DSG,SUNHILL DAYCARE (EUROPE) LIMITED,"1,012.00",EY SENDIF,STATEMENTED FEES,2103284755,1000083945
02.07.2021,DSG,ANN BERNADT NURSERY SCHOOL,358.09,EY SENDIF,STATEMENTED FEES,2103284779,5001000085
02.07.2021,DSG,ANN BERNADT NURSERY SCHOOL,396,EY SENDIF,STATEMENTED FEES,2103284786,5001000085
02.07.2021,DSG,ANN BERNADT NURSERY SCHOOL,622.77,EY SENDIF,STATEMENTED FEES,2103284763,5001000085
02.07.2021,DSG,ANN BERNADT NURSERY SCHOOL,638.34,EY SENDIF,STATEMENTED FEES,2103284768,5001000085
02.07.2021,DSG,ANN BERNADT NURSERY SCHOOL,638.34,EY SENDIF,STATEMENTED FEES,2103284793,5001000085
02.07.2021,DSG,ANN BERNADT NURSERY SCHOOL,"1,012.00",EY SENDIF,STATEMENTED FEES,2103284757,5001000085
02.07.2021,DSG,ANN BERNADT NURSERY SCHOOL,"1,012.00",EY SENDIF,STATEMENTED FEES,2103284758,5001000085
02.07.2021,DSG,ANN BERNADT NURSERY SCHOOL,"1,012.00",EY SENDIF,STATEMENTED FEES,2103284759,5001000085
02.07.2021,DSG,ANN BERNADT NURSERY SCHOOL,"1,012.00",EY SENDIF,STATEMENTED FEES,2103284760,5001000085
02.07.2021,DSG,ANN BERNADT NURSERY SCHOOL,"1,012.00",EY SENDIF,STATEMENTED FEES,2103284761,5001000085
02.07.2021,DSG,ANN BERNADT NURSERY SCHOOL,"1,012.00",EY SENDIF,STATEMENTED FEES,2103284762,5001000085
02.07.2021,DSG,ANN BERNADT NURSERY SCHOOL,"1,012.00",EY SENDIF,STATEMENTED FEES,2103284764,5001000085
02.07.2021,DSG,ANN BERNADT NURSERY SCHOOL,"1,012.00",EY SENDIF,STATEMENTED FEES,2103284765,5001000085
02.07.2021,DSG,ANN BERNADT NURSERY SCHOOL,"1,012.00",EY SENDIF,STATEMENTED FEES,2103284766,5001000085
02.07.2021,DSG,ANN BERNADT NURSERY SCHOOL,"1,012.00",EY SENDIF,STATEMENTED FEES,2103284767,5001000085
02.07.2021,DSG,ANN BERNADT NURSERY SCHOOL,"1,012.00",EY SENDIF,STATEMENTED FEES,2103284769,5001000085
02.07.2021,DSG,ANN BERNADT NURSERY SCHOOL,"1,012.00",EY SENDIF,STATEMENTED FEES,2103284770,5001000085
02.07.2021,DSG,ANN BERNADT NURSERY SCHOOL,"1,012.00",EY SENDIF,STATEMENTED FEES,2103284771,5001000085
02.07.2021,DSG,ANN BERNADT NURSERY SCHOOL,"1,012.00",EY SENDIF,STATEMENTED FEES,2103284772,5001000085
02.07.2021,DSG,ANN BERNADT NURSERY SCHOOL,"1,012.00",EY SENDIF,STATEMENTED FEES,2103284773,5001000085
02.07.2021,DSG,ANN BERNADT NURSERY SCHOOL,"1,012.00",EY SENDIF,STATEMENTED FEES,2103284774,5001000085
02.07.2021,DSG,ANN BERNADT NURSERY SCHOOL,"1,012.00",EY SENDIF,STATEMENTED FEES,2103284775,5001000085
02.07.2021,DSG,ANN BERNADT NURSERY SCHOOL,"1,012.00",EY SENDIF,STATEMENTED FEES,2103284776,5001000085
02.07.2021,DSG,ANN BERNADT NURSERY SCHOOL,"1,012.00",EY SENDIF,STATEMENTED FEES,2103284777,5001000085
02.07.2021,DSG,ANN BERNADT NURSERY SCHOOL,"1,012.00",EY SENDIF,STATEMENTED FEES,2103284778,5001000085
02.07.2021,DSG,ANN BERNADT NURSERY SCHOOL,"1,012.00",EY SENDIF,STATEMENTED FEES,2103284780,5001000085
02.07.2021,DSG,ANN BERNADT NURSERY SCHOOL,"1,012.00",EY SENDIF,STATEMENTED FEES,2103284781,5001000085
02.07.2021,DSG,ANN BERNADT NURSERY SCHOOL,"1,012.00",EY SENDIF,STATEMENTED FEES,2103284782,5001000085
02.07.2021,DSG,ANN BERNADT NURSERY SCHOOL,"1,012.00",EY SENDIF,STATEMENTED FEES,2103284783,5001000085
02.07.2021,DSG,ANN BERNADT NURSERY SCHOOL,"1,012.00",EY SENDIF,STATEMENTED FEES,2103284784,5001000085
02.07.2021,DSG,ANN BERNADT NURSERY SCHOOL,"1,012.00",EY SENDIF,STATEMENTED FEES,2103284785,5001000085
02.07.2021,DSG,ANN BERNADT NURSERY SCHOOL,"1,012.00",EY SENDIF,STATEMENTED FEES,2103284787,5001000085
02.07.2021,DSG,ANN BERNADT NURSERY SCHOOL,"1,012.00",EY SENDIF,STATEMENTED FEES,2103284788,5001000085
02.07.2021,DSG,ANN BERNADT NURSERY SCHOOL,"1,012.00",EY SENDIF,STATEMENTED FEES,2103284789,5001000085
02.07.2021,DSG,ANN BERNADT NURSERY SCHOOL,"1,012.00",EY SENDIF,STATEMENTED FEES,2103284790,5001000085
02.07.2021,DSG,ANN BERNADT NURSERY SCHOOL,"1,012.00",EY SENDIF,STATEMENTED FEES,2103284791,5001000085
02.07.2021,DSG,ANN BERNADT NURSERY SCHOOL,"1,012.00",EY SENDIF,STATEMENTED FEES,2103284792,5001000085
02.07.2021,DSG,JOHN RUSKIN SCHOOL,"1,012.00",EY SENDIF,STATEMENTED FEES,2103284751,1000022324
02.07.2021,DSG,JOHN RUSKIN SCHOOL,"1,012.00",EY SENDIF,STATEMENTED FEES,2103284752,1000022324
02.07.2021,DSG,JOHN RUSKIN SCHOOL,"1,012.00",EY SENDIF,STATEMENTED FEES,2103284753,1000022324
02.07.2021,DSG,LAMBETH COLLEGE,"1,820.60",FURTHER EDUCATION,STATEMENTED FEES,2103284639,1810111
02.07.2021,DSG,LAMBETH COLLEGE,"1,820.60",FURTHER EDUCATION,STATEMENTED FEES,2103284640,1810111
02.07.2021,DSG,LAMBETH COLLEGE,"1,820.60",FURTHER EDUCATION,STATEMENTED FEES,2103284641,1810111
02.07.2021,DSG,LAMBETH COLLEGE,"1,820.64",FURTHER EDUCATION,STATEMENTED FEES,2103284621,1810111
02.07.2021,DSG,LAMBETH COLLEGE,"1,820.64",FURTHER EDUCATION,STATEMENTED FEES,2103284622,1810111
02.07.2021,DSG,LAMBETH COLLEGE,"1,820.64",FURTHER EDUCATION,STATEMENTED FEES,2103284623,1810111
02.07.2021,DSG,LAMBETH COLLEGE,"1,820.64",FURTHER EDUCATION,STATEMENTED FEES,2103284626,1810111
02.07.2021,DSG,LAMBETH COLLEGE,"1,820.64",FURTHER EDUCATION,STATEMENTED FEES,2103284627,1810111
02.07.2021,DSG,LAMBETH COLLEGE,"1,820.64",FURTHER EDUCATION,STATEMENTED FEES,2103284628,1810111
02.07.2021,DSG,LAMBETH COLLEGE,"1,820.64",FURTHER EDUCATION,STATEMENTED FEES,2103284631,1810111
02.07.2021,DSG,LAMBETH COLLEGE,"1,820.64",FURTHER EDUCATION,STATEMENTED FEES,2103284632,1810111
02.07.2021,DSG,LAMBETH COLLEGE,"1,820.64",FURTHER EDUCATION,STATEMENTED FEES,2103284633,1810111
02.07.2021,DSG,LAMBETH COLLEGE,"1,998.60",FURTHER EDUCATION,STATEMENTED FEES,2103284630,1810111
02.07.2021,DSG,LAMBETH COLLEGE,"1,998.60",FURTHER EDUCATION,STATEMENTED FEES,2103284635,1810111
02.07.2021,DSG,LAMBETH COLLEGE,"1,998.61",FURTHER EDUCATION,STATEMENTED FEES,2103284625,1810111
02.07.2021,DSG,LAMBETH COLLEGE,"2,057.46",FURTHER EDUCATION,STATEMENTED FEES,2103284629,1810111
02.07.2021,DSG,LAMBETH COLLEGE,"2,057.46",FURTHER EDUCATION,STATEMENTED FEES,2103284634,1810111
02.07.2021,DSG,LAMBETH COLLEGE,"2,057.47",FURTHER EDUCATION,STATEMENTED FEES,2103284624,1810111
02.07.2021,DSG,LAMBETH COLLEGE,"3,165.54",FURTHER EDUCATION,STATEMENTED FEES,2103284637,1810111
02.07.2021,DSG,LAMBETH COLLEGE,"3,165.54",FURTHER EDUCATION,STATEMENTED FEES,2103284638,1810111
02.07.2021,DSG,LAMBETH COLLEGE,"3,165.55",FURTHER EDUCATION,STATEMENTED FEES,2103284636,1810111
02.07.2021,DSG,NEWCASTLE COLLEGE GROUP,"1,335.00",FURTHER EDUCATION,STATEMENTED FEES,2103284692,1000080965
02.07.2021,DSG,NEWCASTLE COLLEGE GROUP,"1,335.00",FURTHER EDUCATION,STATEMENTED FEES,2103284727,1000080965
02.07.2021,DSG,NEWCASTLE COLLEGE GROUP,"1,549.00",FURTHER EDUCATION,STATEMENTED FEES,2103284688,1000080965
02.07.2021,DSG,NEWCASTLE COLLEGE GROUP,"1,835.00",FURTHER EDUCATION,STATEMENTED FEES,2103284691,1000080965
02.07.2021,DSG,NEWCASTLE COLLEGE GROUP,"1,835.00",FURTHER EDUCATION,STATEMENTED FEES,2103284717,1000080965
02.07.2021,DSG,NEWCASTLE COLLEGE GROUP,"2,060.00",FURTHER EDUCATION,STATEMENTED FEES,2103284701,1000080965
02.07.2021,DSG,NEWCASTLE COLLEGE GROUP,"2,060.00",FURTHER EDUCATION,STATEMENTED FEES,2103284723,1000080965
02.07.2021,DSG,NEWCASTLE COLLEGE GROUP,"2,135.00",FURTHER EDUCATION,STATEMENTED FEES,2103284699,1000080965
02.07.2021,DSG,NEWCASTLE COLLEGE GROUP,"2,135.00",FURTHER EDUCATION,STATEMENTED FEES,2103284721,1000080965
02.07.2021,DSG,NEWCASTLE COLLEGE GROUP,"2,501.67",FURTHER EDUCATION,STATEMENTED FEES,2103284707,1000080965
02.07.2021,DSG,NEWCASTLE COLLEGE GROUP,"2,501.67",FURTHER EDUCATION,STATEMENTED FEES,2103284734,1000080965
02.07.2021,DSG,NEWCASTLE COLLEGE GROUP,"2,635.00",FURTHER EDUCATION,STATEMENTED FEES,2103284704,1000080965
02.07.2021,DSG,NEWCASTLE COLLEGE GROUP,"2,635.00",FURTHER EDUCATION,STATEMENTED FEES,2103284716,1000080965
02.07.2021,DSG,NEWCASTLE COLLEGE GROUP,"2,810.00",FURTHER EDUCATION,STATEMENTED FEES,2103284693,1000080965
02.07.2021,DSG,NEWCASTLE COLLEGE GROUP,"2,810.00",FURTHER EDUCATION,STATEMENTED FEES,2103284719,1000080965
02.07.2021,DSG,NEWCASTLE COLLEGE GROUP,"2,945.00",FURTHER EDUCATION,STATEMENTED FEES,2103284682,1000080965
02.07.2021,DSG,NEWCASTLE COLLEGE GROUP,"2,945.00",FURTHER EDUCATION,STATEMENTED FEES,2103284712,1000080965
02.07.2021,DSG,NEWCASTLE COLLEGE GROUP,"2,983.33",FURTHER EDUCATION,STATEMENTED FEES,2103284697,1000080965
02.07.2021,DSG,NEWCASTLE COLLEGE GROUP,"2,983.33",FURTHER EDUCATION,STATEMENTED FEES,2103284725,1000080965
02.07.2021,DSG,NEWCASTLE COLLEGE GROUP,"2,995.00",FURTHER EDUCATION,STATEMENTED FEES,2103284700,1000080965
02.07.2021,DSG,NEWCASTLE COLLEGE GROUP,"2,995.00",FURTHER EDUCATION,STATEMENTED FEES,2103284722,1000080965
02.07.2021,DSG,NEWCASTLE COLLEGE GROUP,"2,996.67",FURTHER EDUCATION,STATEMENTED FEES,2103284698,1000080965
02.07.2021,DSG,NEWCASTLE COLLEGE GROUP,"2,996.67",FURTHER EDUCATION,STATEMENTED FEES,2103284724,1000080965
02.07.2021,DSG,NEWCASTLE COLLEGE GROUP,"3,295.00",FURTHER EDUCATION,STATEMENTED FEES,2103284690,1000080965
02.07.2021,DSG,NEWCASTLE COLLEGE GROUP,"3,295.00",FURTHER EDUCATION,STATEMENTED FEES,2103284694,1000080965
02.07.2021,DSG,NEWCASTLE COLLEGE GROUP,"3,295.00",FURTHER EDUCATION,STATEMENTED FEES,2103284720,1000080965
02.07.2021,DSG,NEWCASTLE COLLEGE GROUP,"3,295.00",FURTHER EDUCATION,STATEMENTED FEES,2103284728,1000080965
02.07.2021,DSG,NEWCASTLE COLLEGE GROUP,"3,793.33",FURTHER EDUCATION,STATEMENTED FEES,2103284695,1000080965
02.07.2021,DSG,NEWCASTLE COLLEGE GROUP,"3,793.33",FURTHER EDUCATION,STATEMENTED FEES,2103284715,1000080965
02.07.2021,DSG,NEWCASTLE COLLEGE GROUP,"3,895.00",FURTHER EDUCATION,STATEMENTED FEES,2103284702,1000080965
02.07.2021,DSG,NEWCASTLE COLLEGE GROUP,"3,895.00",FURTHER EDUCATION,STATEMENTED FEES,2103284718,1000080965
02.07.2021,DSG,NEWCASTLE COLLEGE GROUP,"4,158.00",FURTHER EDUCATION,STATEMENTED FEES,2103284684,1000080965
02.07.2021,DSG,NEWCASTLE COLLEGE GROUP,"4,158.00",FURTHER EDUCATION,STATEMENTED FEES,2103284729,1000080965
02.07.2021,DSG,NEWCASTLE COLLEGE GROUP,"4,360.00",FURTHER EDUCATION,STATEMENTED FEES,2103284678,1000080965
02.07.2021,DSG,NEWCASTLE COLLEGE GROUP,"4,360.00",FURTHER EDUCATION,STATEMENTED FEES,2103284713,1000080965
02.07.2021,DSG,NEWCASTLE COLLEGE GROUP,"4,495.00",FURTHER EDUCATION,STATEMENTED FEES,2103284703,1000080965
02.07.2021,DSG,NEWCASTLE COLLEGE GROUP,"4,495.00",FURTHER EDUCATION,STATEMENTED FEES,2103284726,1000080965
02.07.2021,DSG,NEWCASTLE COLLEGE GROUP,"4,550.00",FURTHER EDUCATION,STATEMENTED FEES,2103284681,1000080965
02.07.2021,DSG,NEWCASTLE COLLEGE GROUP,"4,550.00",FURTHER EDUCATION,STATEMENTED FEES,2103284709,1000080965
02.07.2021,DSG,NEWCASTLE COLLEGE GROUP,"4,555.00",FURTHER EDUCATION,STATEMENTED FEES,2103284683,1000080965
02.07.2021,DSG,NEWCASTLE COLLEGE GROUP,"4,555.00",FURTHER EDUCATION,STATEMENTED FEES,2103284732,1000080965
02.07.2021,DSG,NEWCASTLE COLLEGE GROUP,"4,741.33",FURTHER EDUCATION,STATEMENTED FEES,2103284705,1000080965
02.07.2021,DSG,NEWCASTLE COLLEGE GROUP,"4,741.33",FURTHER EDUCATION,STATEMENTED FEES,2103284735,1000080965
02.07.2021,DSG,NEWCASTLE COLLEGE GROUP,"5,586.67",FURTHER EDUCATION,STATEMENTED FEES,2103284731,1000080965
02.07.2021,DSG,NEWCASTLE COLLEGE GROUP,"5,586.68",FURTHER EDUCATION,STATEMENTED FEES,2103284685,1000080965
02.07.2021,DSG,NEWCASTLE COLLEGE GROUP,"5,626.67",FURTHER EDUCATION,STATEMENTED FEES,2103284679,1000080965
02.07.2021,DSG,NEWCASTLE COLLEGE GROUP,"5,626.67",FURTHER EDUCATION,STATEMENTED FEES,2103284714,1000080965
02.07.2021,DSG,NEWCASTLE COLLEGE GROUP,"6,000.00",FURTHER EDUCATION,STATEMENTED FEES,2103284689,1000080965
02.07.2021,DSG,NEWCASTLE COLLEGE GROUP,"6,158.00",FURTHER EDUCATION,STATEMENTED FEES,2103284708,1000080965
02.07.2021,DSG,NEWCASTLE COLLEGE GROUP,"6,158.00",FURTHER EDUCATION,STATEMENTED FEES,2103284737,1000080965
02.07.2021,DSG,NEWCASTLE COLLEGE GROUP,"6,220.00",FURTHER EDUCATION,STATEMENTED FEES,2103284680,1000080965
02.07.2021,DSG,NEWCASTLE COLLEGE GROUP,"6,220.00",FURTHER EDUCATION,STATEMENTED FEES,2103284730,1000080965
02.07.2021,DSG,NEWCASTLE COLLEGE GROUP,"6,741.33",FURTHER EDUCATION,STATEMENTED FEES,2103284706,1000080965
02.07.2021,DSG,NEWCASTLE COLLEGE GROUP,"6,741.33",FURTHER EDUCATION,STATEMENTED FEES,2103284736,1000080965
02.07.2021,DSG,NEWCASTLE COLLEGE GROUP,"6,878.33",FURTHER EDUCATION,STATEMENTED FEES,2103284686,1000080965
02.07.2021,DSG,NEWCASTLE COLLEGE GROUP,"6,878.33",FURTHER EDUCATION,STATEMENTED FEES,2103284687,1000080965
02.07.2021,DSG,NEWCASTLE COLLEGE GROUP,"6,878.33",FURTHER EDUCATION,STATEMENTED FEES,2103284711,1000080965
02.07.2021,DSG,NEWCASTLE COLLEGE GROUP,"6,878.34",FURTHER EDUCATION,STATEMENTED FEES,2103284710,1000080965
02.07.2021,DSG,NEWCASTLE COLLEGE GROUP,"9,513.33",FURTHER EDUCATION,STATEMENTED FEES,2103284696,1000080965
02.07.2021,DSG,NEWCASTLE COLLEGE GROUP,"9,513.33",FURTHER EDUCATION,STATEMENTED FEES,2103284733,1000080965
02.07.2021,DSG,WEST LONDON COLLEGE,"1,401.00",FURTHER EDUCATION,STATEMENTED FEES,2103284652,1000086881
02.07.2021,DSG,WEST LONDON COLLEGE,"2,800.00",FURTHER EDUCATION,STATEMENTED FEES,2103284651,1000086881
02.07.2021,DSG,BROADLANDS HALL LIMITED,"2,740.00",INDEP MAINSTREAM,STATEMENTED FEES,2103284740,1000084303
02.07.2021,DSG,THE JOHN FISHER SCHOOL,"3,938.46",INDEP MAINSTREAM,STATEMENTED FEES,2103284643,1000080178
02.07.2021,DSG,J K EDUCATION LTD,650,NMSS/ INDEP SPECIAL,STATEMENTED FEES,2103284609,1000077075
02.07.2021,DSG,J K EDUCATION LTD,650,NMSS/ INDEP SPECIAL,STATEMENTED FEES,2103284611,1000077075
02.07.2021,DSG,J K EDUCATION LTD,650,NMSS/ INDEP SPECIAL,STATEMENTED FEES,2103284612,1000077075
02.07.2021,DSG,J K EDUCATION LTD,650,NMSS/ INDEP SPECIAL,STATEMENTED FEES,2103284615,1000077075
02.07.2021,DSG,THE SOUTHOVER PARTNERSHIP,"6,596.50",NMSS/ INDEP SPECIAL,STATEMENTED FEES,2103284747,1000081808
02.07.2021,DSG,THE BEECHES UK LTD,"4,228.02",NMSS/ INDEP SPECIAL,STATEMENTED FEES,2103284675,1000083173
02.07.2021,DSG,ST ELIZABETH SCHOOL,"15,809.72",NMSS/ INDEP SPECIAL,STATEMENTED FEES,2103284670,1000014407
02.07.2021,DSG,WYVIL PRIMARY SCHOOL,"7,674.25",OTHER LA MAINSTREAM,STATEMENTED FEES,2103284644,1000038919
02.07.2021,DSG,LANSDOWNE SCHOOL,"4,761.35",OTHER LA MAINSTREAM,STATEMENTED FEES,2103284674,1000073368
02.07.2021,DSG,SUNNYHILL PRIMARY SCHOOL,"2,461.54",OTHER LA MAINSTREAM,STATEMENTED FEES,2103284620,1000073652
02.07.2021,DSG,MYATT GARDEN PRIMARY SCHOOL,"3,938.46",OTHER LA MAINSTREAM,STATEMENTED FEES,2103284619,1000082161
02.07.2021,DSG,ST NICHOLAS SCHOOL,"1,310.12",OTHER LA MAINSTREAM,STATEMENTED FEES,2103284653,1000086878
02.07.2021,DSG,ST NICHOLAS SCHOOL,"2,713.67",OTHER LA MAINSTREAM,STATEMENTED FEES,2103284654,1000086878
02.07.2021,DSG,DEVONSHIRE PRIMARY SCHOOL,"1,312.82",OTHER LA MAINSTREAM,STATEMENTED FEES,2103284742,1000086880
02.07.2021,DSG,DEVONSHIRE PRIMARY SCHOOL,"1,558.97",OTHER LA MAINSTREAM,STATEMENTED FEES,2103284741,1000086880
02.07.2021,DSG,OUR LADY & ST PHILIP NERI CATHOLIC PRIMARY SCHOOL,656.41,OTHER LA MAINSTREAM,STATEMENTED FEES,2103284738,1000086950
02.07.2021,DSG,OUR LADY & ST PHILIP NERI CATHOLIC PRIMARY SCHOOL,"2,543.59",OTHER LA MAINSTREAM,STATEMENTED FEES,2103284739,1000086950
02.07.2021,DSG,SURREY COUNTY COUNCIL,"3,998.00",OTHER LA SPECIAL,STATEMENTED FEES,2103284642,11172591
02.07.2021,DSG,STEPHEN HAWKING SCHOOL,"6,094.02",OTHER LA SPECIAL,STATEMENTED FEES,2103284671,1000071455
02.07.2021,DSG,STEPHEN HAWKING SCHOOL,"6,094.11",OTHER LA SPECIAL,STATEMENTED FEES,2103284672,1000071455
02.07.2021,DSG,TURNEY SCHOOL,"5,517.78",OTHER LA SPECIAL,STATEMENTED FEES,2103284660,1000072254
02.07.2021,DSG,TURNEY SCHOOL,"5,517.78",OTHER LA SPECIAL,STATEMENTED FEES,2103284663,1000072254
02.07.2021,DSG,TURNEY SCHOOL,"5,517.79",OTHER LA SPECIAL,STATEMENTED FEES,2103284657,1000072254
02.07.2021,DSG,TURNEY SCHOOL,"5,517.79",OTHER LA SPECIAL,STATEMENTED FEES,2103284662,1000072254
02.07.2021,DSG,TURNEY SCHOOL,"5,517.79",OTHER LA SPECIAL,STATEMENTED FEES,2103284665,1000072254
02.07.2021,DSG,TURNEY SCHOOL,"6,392.12",OTHER LA SPECIAL,STATEMENTED FEES,2103284667,1000072254
02.07.2021,DSG,TURNEY SCHOOL,"7,207.71",OTHER LA SPECIAL,STATEMENTED FEES,2103284655,1000072254
02.07.2021,DSG,TURNEY SCHOOL,"7,207.71",OTHER LA SPECIAL,STATEMENTED FEES,2103284656,1000072254
02.07.2021,DSG,TURNEY SCHOOL,"7,207.71",OTHER LA SPECIAL,STATEMENTED FEES,2103284659,1000072254
02.07.2021,DSG,TURNEY SCHOOL,"7,207.71",OTHER LA SPECIAL,STATEMENTED FEES,2103284661,1000072254
02.07.2021,DSG,TURNEY SCHOOL,"7,207.72",OTHER LA SPECIAL,STATEMENTED FEES,2103284658,1000072254
02.07.2021,DSG,TURNEY SCHOOL,"7,207.72",OTHER LA SPECIAL,STATEMENTED FEES,2103284666,1000072254
02.07.2021,DSG,TURNEY SCHOOL,"8,915.36",OTHER LA SPECIAL,STATEMENTED FEES,2103284664,1000072254
02.07.2021,DSG,TURNEY SCHOOL,"9,638.07",OTHER LA SPECIAL,STATEMENTED FEES,2103284668,1000072254
02.07.2021,DSG,FRANK BARNES SCHOOL FOR DEAF CHILDREN,"1,350.00",OTHER LA SPECIAL,STATEMENTED FEES,2103284677,1000072261
02.07.2021,DSG,FRANK BARNES SCHOOL FOR DEAF CHILDREN,"7,502.77",OTHER LA SPECIAL,STATEMENTED FEES,2103284676,1000072261
02.07.2021,DSG,QUEEN ELIZABETH II JUBILEE SCHOOL,520,OTHER LA SPECIAL,STATEMENTED FEES,2103284617,1000072956
02.07.2021,DSG,QUEEN ELIZABETH II JUBILEE SCHOOL,"1,280.00",OTHER LA SPECIAL,STATEMENTED FEES,2103284616,1000072956
02.07.2021,DSG,HEBER PRIMARY SCHOOL,"4,939.00",SEN INCLUSION TEAM,CONSULTANTS SERVICES,2103284796,5001000035
02.07.2021,DSG,CARETRADE CHARITABLE TRUST,"7,644.00",SPECIALIST POST-16,STATEMENTED FEES,2103284601,1000067322
02.07.2021,DSG,CARETRADE CHARITABLE TRUST,"7,644.00",SPECIALIST POST-16,STATEMENTED FEES,2103284602,1000067322
02.07.2021,DSG,CARETRADE CHARITABLE TRUST,"7,644.00",SPECIALIST POST-16,STATEMENTED FEES,2103284603,1000067322
02.07.2021,DSG,CARETRADE CHARITABLE TRUST,"7,644.00",SPECIALIST POST-16,STATEMENTED FEES,2103284605,1000067322
02.07.2021,DSG,CARETRADE CHARITABLE TRUST,"7,644.00",SPECIALIST POST-16,STATEMENTED FEES,2103284606,1000067322
02.07.2021,DSG,CARETRADE CHARITABLE TRUST,"8,144.00",SPECIALIST POST-16,STATEMENTED FEES,2103284604,1000067322
02.07.2021,DSG,CARETRADE CHARITABLE TRUST,"8,144.00",SPECIALIST POST-16,STATEMENTED FEES,2103284607,1000067322
02.07.2021,DSG,IVELAW CRAWFORD,810,SUMMERHOUSE,BUILDING R&M,2103284564,3000001626
02.07.2021,DSG,GLS EDUCATIONAL SUPPLIES LTD,319.54,SUMMERHOUSE,STATIONERY,5902476124,1318282
02.07.2021,EDUCATION,CATHERINE RUSHFORTH & ASSOCIATES,880,L&A SALARIES,TRAINING,5902476254,1000055976
02.07.2021,EDUCATION,ALLPAY LTD (0-25),"70,000.00",SCH TRANS � TRAVEL,OTHER PAYMENTS FOR CLIENTS,5902476167,1000083062
02.07.2021,EMPLOYEE EXPERIENCE,HR CLINIC LTD,600,HR PAYROLL COSTS,PROFESSIONAL FEES,5902476147,1000086706
02.07.2021,EMPLOYEE EXPERIENCE,WORKING ON WELLBEING LTD,870,OPTIMA HEALTH,MEDICAL / HEALTH & SAFETY SERVICES,5902476150,1000077251
02.07.2021,EMPLOYEE EXPERIENCE,WORKING ON WELLBEING LTD,920,OPTIMA HEALTH,MEDICAL / HEALTH & SAFETY SERVICES,5902476148,1000077251
02.07.2021,EMPLOYEE EXPERIENCE,WORKING ON WELLBEING LTD,"6,058.00",OPTIMA HEALTH,MEDICAL / HEALTH & SAFETY SERVICES,5902476150,1000077251
02.07.2021,ENVIRONMENT AND LEISURE,CROWN OIL LTD,697.5,SANDGATE STREET,VEHICLE FUEL,5902475456,1000081749
02.07.2021,ENVIRONMENT AND LEISURE,KAINOS SOFTWARE LIMITED,"3,750.00",STREET WORKS OVERHEADS,SOFTWARE,5902476257,1000085790
02.07.2021,ENVIRONMENT DIRECTORATE,GREENHAM TRADING LTD,419.9,ESTATE CLEANING-GENERAL,MATERIALS,5902475889,1000006610
02.07.2021,ENVIRONMENT DIRECTORATE,GREENHAM TRADING LTD,"1,191.30",ESTATE CLEANING-GENERAL,MATERIALS,5902476268,1000006610
02.07.2021,ENVIRONMENT DIRECTORATE,GREENHAM TRADING LTD,"2,087.63",ESTATE CLEANING-GENERAL,MATERIALS,5902475912,1000006610
02.07.2021,ENVIRONMENT DIRECTORATE,SPALDINGS (UK) LTD,358.2,GROUNDS MAINTENANCE - GENERAL,MATERIALS,5902476161,1907384
02.07.2021,ENVIRONMENT DIRECTORATE,AMETHYST HORTICULTURE LTD,"2,056.00",GROUNDS MAINTENANCE - GENERAL,MATERIALS,5902476265,1000054623
02.07.2021,ENVIRONMENT DIRECTORATE,KILLGERM CHEMICALS LTD,827.64,PEST CONTROL,MATERIALS,5902476164,1000045706
02.07.2021,ENVIRONMENT DIRECTORATE,KILLGERM CHEMICALS LTD,"1,924.58",PEST CONTROL,MATERIALS,5902476162,1000045706
02.07.2021,ENVIRONMENT DIRECTORATE,HENRY SHEACH LAWNMOWER SERVICES LTD,466.26,STREET CLEANING-GENERAL,EQUIPMENT PURCHASE & REPAIR,5902476134,1000045980
02.07.2021,F & C S EXCLUDING CORPORATE BUDGETS,EMS EVENTS LTD,330,ADMINISTRATIVE SUPPORT,OTHER CONTRACTORS,5902475448,1000057494
02.07.2021,F & C S EXCLUDING CORPORATE BUDGETS,DSI BILLING SERVICES LTD,"4,148.98",ADMINISTRATIVE SUPPORT,POSTAGES,5902475451,1000058640
02.07.2021,F & C S EXCLUDING CORPORATE BUDGETS,REDACTED PERSONAL DATA,500,SESS,OTHER PAYMENTS FOR CLIENTS,REDACTED,REDACTED
02.07.2021,F & C S EXCLUDING CORPORATE BUDGETS,REDACTED PERSONAL DATA,500,SESS,OTHER PAYMENTS FOR CLIENTS,REDACTED,REDACTED
02.07.2021,F & C S EXCLUDING CORPORATE BUDGETS,REDACTED PERSONAL DATA,500,SESS,OTHER PAYMENTS FOR CLIENTS,REDACTED,REDACTED
02.07.2021,F & C S EXCLUDING CORPORATE BUDGETS,REDACTED PERSONAL DATA,500,SESS,OTHER PAYMENTS FOR CLIENTS,REDACTED,REDACTED
02.07.2021,F & C S EXCLUDING CORPORATE BUDGETS,REDACTED PERSONAL DATA,500,SESS,OTHER PAYMENTS FOR CLIENTS,REDACTED,REDACTED
02.07.2021,F & C S EXCLUDING CORPORATE BUDGETS,REDACTED PERSONAL DATA,500,SESS,OTHER PAYMENTS FOR CLIENTS,REDACTED,REDACTED
02.07.2021,F & C S EXCLUDING CORPORATE BUDGETS,REDACTED PERSONAL DATA,500,SESS,OTHER PAYMENTS FOR CLIENTS,REDACTED,REDACTED
02.07.2021,F & C S EXCLUDING CORPORATE BUDGETS,REDACTED PERSONAL DATA,500,SESS,OTHER PAYMENTS FOR CLIENTS,REDACTED,REDACTED
02.07.2021,F & C S EXCLUDING CORPORATE BUDGETS,REDACTED PERSONAL DATA,500,SESS,OTHER PAYMENTS FOR CLIENTS,REDACTED,REDACTED
02.07.2021,F & C S EXCLUDING CORPORATE BUDGETS,REDACTED PERSONAL DATA,500,SESS,OTHER PAYMENTS FOR CLIENTS,REDACTED,REDACTED
02.07.2021,HOUSING,OCO LIMITED,"138,474.17",PAYMENTS CONTROL ACCOUNT - OCO,I-WORLD CONTRACTORS HOLDING ACCOUNT,5902476168,1006066
02.07.2021,HOUSING,SMITH & BYFORD LTD,"113,765.58",SMITH AND BYFORD,I-WORLD CONTRACTORS HOLDING ACCOUNT,5902476175,11212119
02.07.2021,HOUSING,THAMES VALLEY CONTROLS LTD,"4,395.96",THAMES VALLEY CONTROL,I-WORLD CONTRACTORS HOLDING ACCOUNT,5902476135,1295718
02.07.2021,HOUSING HRA,PRB ESTATES LTD,"10,065.00",CAPITAL PS (HRA),CONSTRUCTION,2103281678,3000001691
02.07.2021,HOUSING HRA,GC CONSTRUCT LTD,"10,806.94",CAPITAL PS (HRA),CONSTRUCTION,2103286205,3000002106
02.07.2021,HOUSING HRA,GC CONSTRUCT LTD,"11,912.15",CAPITAL PS (HRA),CONSTRUCTION,2103286204,3000002106
02.07.2021,HOUSING HRA,BAILY  GARNER LLP,"1,200.00",CAPITAL PS (HRA),CONSTRUCTION FEES  - EXTERNAL,5902475858,1000663
02.07.2021,HOUSING HRA,BAILY  GARNER LLP,"2,040.00",CAPITAL PS (HRA),CONSTRUCTION FEES  - EXTERNAL,5902475860,1000663
02.07.2021,HOUSING HRA,RPS CONSULTING SERVICES LTD,"1,667.36",CAPITAL PS (HRA),CONSTRUCTION FEES  - EXTERNAL,5902476239,1000053170
02.07.2021,HOUSING HRA,AIREY MILLER LIMITED,"1,888.60",CAPITAL PS (HRA),CONSTRUCTION FEES - EMPLOYERS AGENT,5902475380,1000085476
02.07.2021,HOUSING HRA,A & E ELKINS LTD,"33,663.57",CAPITAL PS (HRA),CONSTRUCTION MAIN CONTRACT -CERTIFICATED,2103286207,4012501
02.07.2021,HOUSING HRA,NEILCOTT SPECIAL WORKS LTD,"134,035.86",CAPITAL PS (HRA),CONSTRUCTION MAIN CONTRACT -CERTIFICATED,2103283989,3000000770
02.07.2021,HOUSING HRA,ELLIOT GROUP LIMITED,"1,153.41",CAPITAL PS (HRA),CONSTRUCTION SITE COSTS,5902476140,1000062655
02.07.2021,HOUSING HRA,NEILCOTT SPECIAL WORKS LTD,"6,130.59",CAPITAL PS (HRA),COVID 19 SUPPLIER RELIEF,2103283989,3000000770
02.07.2021,HOUSING HRA,ENGIE REGENERATION LTD,"6,600.00",CAPITAL PS (HRA),COVID 19 SUPPLIER RELIEF,2103284562,3000002035
02.07.2021,LEISURE DIRECTORATE,SPORTS AND LEISURE MANAGEMENT LTD,"1,170.00",FACILITIES MAINTENANCE,BUILDING R&M,5902476223,1000077862
02.07.2021,PUBLIC HEALTH,REDACTED PERSONAL DATA,500,COVID-19 CONTROL OUTBREAK MGMNT.FUND,OTHER PAYMENTS FOR CLIENTS,REDACTED,REDACTED
02.07.2021,PUBLIC HEALTH,REDACTED PERSONAL DATA,500,COVID-19 CONTROL OUTBREAK MGMNT.FUND,OTHER PAYMENTS FOR CLIENTS,REDACTED,REDACTED
02.07.2021,REGENERATION,WORKMAN LLP,"-3,360.95",14-20 SHAND STREET,SERVICE CHARGES,2103282357,1000063692
02.07.2021,REGENERATION,WORKMAN LLP,533.62,14-20 SHAND STREET,SERVICE CHARGES,2103282430,1000063692
02.07.2021,REGENERATION,WORKMAN LLP,377.61,22 SHAND STREET,SERVICE CHARGES,2103282431,1000063692
02.07.2021,REGENERATION,WORKMAN LLP,550.73,22 SHAND STREET,SERVICE CHARGES,2103282432,1000063692
02.07.2021,REGENERATION,WORKMAN LLP,"1,698.05",22 SHAND STREET,SERVICE CHARGES,2103282433,1000063692
02.07.2021,REGENERATION,WORKMAN LLP,"-2,524.67",7 HOLYROOD STREET,SERVICE CHARGES,2103282334,1000063692
02.07.2021,REGENERATION,WORKMAN LLP,"-2,288.18",7 HOLYROOD STREET,SERVICE CHARGES,2103282338,1000063692
02.07.2021,REGENERATION,WORKMAN LLP,"-1,846.85",9 HOLYROOD STREET,SERVICE CHARGES,2103282348,1000063692
02.07.2021,REGENERATION,WORKMAN LLP,"-1,054.81",9 HOLYROOD STREET,SERVICE CHARGES,2103282345,1000063692
02.07.2021,REGENERATION,WORKMAN LLP,-865.08,9 HOLYROOD STREET,SERVICE CHARGES,2103282341,1000063692
02.07.2021,REGENERATION,WORKMAN LLP,"-9,214.72","COURAGE YARD, SHAD THAMES",SERVICE CHARGES,2103282366,1000063692
02.07.2021,REGENERATION,WORKMAN LLP,"-8,968.46","COURAGE YARD, SHAD THAMES",SERVICE CHARGES,2103282363,1000063692
02.07.2021,REGENERATION,WORKMAN LLP,"-1,406.55","COURAGE YARD, SHAD THAMES",SERVICE CHARGES,2103282351,1000063692
02.07.2021,REGENERATION,WORKMAN LLP,"-1,188.55","COURAGE YARD, SHAD THAMES",SERVICE CHARGES,2103282354,1000063692
02.07.2021,REGENERATION,WORKMAN LLP,325.8,"COURAGE YARD, SHAD THAMES",SERVICE CHARGES,2103282429,1000063692
02.07.2021,REGENERATION,CBS MAINTENANCE SERVICES LTD,"9,000.00",CPHA  MANAGED PROPERTIES,BUILDING R&M,2103286198,3000001518
02.07.2021,REGENERATION,C P T EVENTS,500,REGENERATION SOUTH - M & A,TRAINING,5902475419,1000052044
02.07.2021,REGENERATION,STANBURY BUILDING SERVICES LTD,500,TOWER WORKSHOPS,BUILDING R&M,2103284583,3000001967
02.07.2021,RESIDENT SERVICES,BRITISH GAS TRADING LTD,-960.05,OPERATIONS/OFFICES ACCOMMODATION,ELECTRICITY,5902475934,1000055977
02.07.2021,RESIDENT SERVICES,BRITISH GAS TRADING LTD,308.16,OPERATIONS/OFFICES ACCOMMODATION,ELECTRICITY,5902476236,1000055977
02.07.2021,RESIDENT SERVICES,BRITISH GAS TRADING LTD,316,OPERATIONS/OFFICES ACCOMMODATION,ELECTRICITY,5902474711,1000055977
02.07.2021,RESIDENT SERVICES,BRITISH GAS TRADING LTD,"2,799.13",OPERATIONS/OFFICES ACCOMMODATION,ELECTRICITY,5902476236,1000055977
02.07.2021,RESIDENT SERVICES,BRITISH GAS TRADING LTD,307.34,TA HOSTELS,ELECTRICITY,5902476042,1000055977
02.07.2021,RESIDENT SERVICES HGF,KAIYANA LTD,"4,000.00",HOMELESS PROJECTS,GRANTS,5902476227,1000086920
02.07.2021,RESIDENT SERVICES HGF,PHOENIX FRY,"2,117.28",HOMELESS PROJECTS,GRANTS,5902476225,1000086938
02.07.2021,RESIDENT SERVICES HGF,STENFORD PROPERTY LTD,"48,157.15",NIGHTLY TA (NSC),EXTERNAL AGENCIES AND BODIES,5902476143,1000074759
02.07.2021,RESIDENT SERVICES HGF,ZFA ACCOMMODATION LTD,"23,930.50",NIGHTLY TA (NSC),EXTERNAL AGENCIES AND BODIES,5902476133,1000082620
02.07.2021,SBS SUPPORT,ALLIED REMEDIAL TREATMENTS LTD,"22,548.32",SBS - HOLDING ACCOUNT,OTHER CONTRACTORS,2103286206,4000538
02.07.2021,SBS SUPPORT,E & E BUILDING SERVICES LTD,"12,521.36",SBS - HOLDING ACCOUNT,OTHER CONTRACTORS,2103284593,3000001176
02.07.2021,SBS SUPPORT,BCS (ELECTRICAL & BUILDING) LTD,"102,553.57",SBS - HOLDING ACCOUNT,OTHER CONTRACTORS,2103284592,3000001471
03.07.2021,ADULT SOCIAL CARE,REDACTED PERSONAL DATA,279.85,APPOINTEESHIPS,OTHER PAYMENTS FOR CLIENTS,REDACTED,REDACTED
03.07.2021,ADULT SOCIAL CARE,COMMUNITY BUILDING MANAGEMENT,"1,245.00",DISABILITIES LAC,EXTERNAL AGENCIES AND BODIES,2103286378,1000078932
03.07.2021,ADULT SOCIAL CARE,COMMUNITY BUILDING MANAGEMENT,"1,494.00",DISABILITIES LAC,EXTERNAL AGENCIES AND BODIES,2103286383,1000078932
03.07.2021,ADULT SOCIAL CARE,SUPREME CARE SERVICES LTD,741.63,DISCHARGE TO ACCESS,HOMECARE - C&V,2103287656,1000059416
03.07.2021,ADULT SOCIAL CARE,SUPREME CARE SERVICES LTD,"1,519.31",DISCHARGE TO ACCESS,HOMECARE - C&V,2103287649,1000059416
03.07.2021,ADULT SOCIAL CARE,THE REGARD PARTNERSHIP,-415.64,DISCHARGE TO ACCESS,"MAND STATUTORY CHARGES, RESIDENTIAL",2103287398,1823223
03.07.2021,ADULT SOCIAL CARE,PENERLEY LODGE REST HOME,-483.36,DISCHARGE TO ACCESS,"MAND STATUTORY CHARGES, RESIDENTIAL",2103286960,1958913
03.07.2021,ADULT SOCIAL CARE,COLLINGWOOD COURT (BUPA CARE HOMES),"-3,903.58",DISCHARGE TO ACCESS,NURSING PLACEMENTS FEES,2103287415,11042563
03.07.2021,ADULT SOCIAL CARE,MANLEY COURT NURSING HOME (BUPA),"3,082.08",DISCHARGE TO ACCESS,NURSING PLACEMENTS FEES,2103286733,11101434
03.07.2021,ADULT SOCIAL CARE,MANLEY COURT NURSING HOME (BUPA),"3,082.08",DISCHARGE TO ACCESS,NURSING PLACEMENTS FEES,2103287555,11101434
03.07.2021,ADULT SOCIAL CARE,LONDON RESIDENTIAL HEALTHCARE LTD,"2,664.32",DISCHARGE TO ACCESS,NURSING PLACEMENTS FEES,2103286726,1000030895
03.07.2021,ADULT SOCIAL CARE,QUEENS OAK CARE CENTRE,286,DISCHARGE TO ACCESS,NURSING PLACEMENTS FEES,2103287307,1000049621
03.07.2021,ADULT SOCIAL CARE,QUEENS OAK CARE CENTRE,"3,950.75",DISCHARGE TO ACCESS,NURSING PLACEMENTS FEES,2103286903,1000049621
03.07.2021,ADULT SOCIAL CARE,QUEENS OAK CARE CENTRE,"4,003.96",DISCHARGE TO ACCESS,NURSING PLACEMENTS FEES,2103287306,1000049621
03.07.2021,ADULT SOCIAL CARE,QUEENS OAK CARE CENTRE,"5,451.66",DISCHARGE TO ACCESS,NURSING PLACEMENTS FEES,2103287144,1000049621
03.07.2021,ADULT SOCIAL CARE,QUEENS OAK CARE CENTRE,"38,846.72",DISCHARGE TO ACCESS,NURSING PLACEMENTS FEES,2103287610,1000049621
03.07.2021,ADULT SOCIAL CARE,1ST CHOICE CARE HOMES,"2,331.68",DISCHARGE TO ACCESS,NURSING PLACEMENTS FEES,2103287200,1000056821
03.07.2021,ADULT SOCIAL CARE,"WILMINGTON MANOR NURSING HOME, BUPA",-856.39,DISCHARGE TO ACCESS,NURSING PLACEMENTS FEES,2103246243,1000064678
03.07.2021,ADULT SOCIAL CARE,HC-ONE LTD (TOWER BRIDGE CARE HOME),"-27,222.31",DISCHARGE TO ACCESS,NURSING PLACEMENTS FEES,2103287232,1000067670
03.07.2021,ADULT SOCIAL CARE,HC-ONE LTD (TOWER BRIDGE CARE HOME),"-5,752.64",DISCHARGE TO ACCESS,NURSING PLACEMENTS FEES,2103286779,1000067670
03.07.2021,ADULT SOCIAL CARE,HC-ONE LTD (TOWER BRIDGE CARE HOME),"-4,725.38",DISCHARGE TO ACCESS,NURSING PLACEMENTS FEES,2103287065,1000067670
03.07.2021,ADULT SOCIAL CARE,HC-ONE LTD (TOWER BRIDGE CARE HOME),"-2,568.14",DISCHARGE TO ACCESS,NURSING PLACEMENTS FEES,2103286384,1000067670
03.07.2021,ADULT SOCIAL CARE,HC-ONE LTD (TOWER BRIDGE CARE HOME),"-1,849.06",DISCHARGE TO ACCESS,NURSING PLACEMENTS FEES,2103286469,1000067670
03.07.2021,ADULT SOCIAL CARE,HC-ONE LTD (TOWER BRIDGE CARE HOME),-360.97,DISCHARGE TO ACCESS,NURSING PLACEMENTS FEES,2103287069,1000067670
03.07.2021,ADULT SOCIAL CARE,HC-ONE LTD (TOWER BRIDGE CARE HOME),"2,477.24",DISCHARGE TO ACCESS,NURSING PLACEMENTS FEES,2103287332,1000067670
03.07.2021,ADULT SOCIAL CARE,HC-ONE LTD (TOWER BRIDGE CARE HOME),"2,658.04",DISCHARGE TO ACCESS,NURSING PLACEMENTS FEES,2103287196,1000067670
03.07.2021,ADULT SOCIAL CARE,HC-ONE LTD (TOWER BRIDGE CARE HOME),"2,861.60",DISCHARGE TO ACCESS,NURSING PLACEMENTS FEES,2103287468,1000067670
03.07.2021,ADULT SOCIAL CARE,HC-ONE LTD (TOWER BRIDGE CARE HOME),"2,876.32",DISCHARGE TO ACCESS,NURSING PLACEMENTS FEES,2103286385,1000067670
03.07.2021,ADULT SOCIAL CARE,HC-ONE LTD (TOWER BRIDGE CARE HOME),"2,876.32",DISCHARGE TO ACCESS,NURSING PLACEMENTS FEES,2103286463,1000067670
03.07.2021,ADULT SOCIAL CARE,HC-ONE LTD (TOWER BRIDGE CARE HOME),"2,876.32",DISCHARGE TO ACCESS,NURSING PLACEMENTS FEES,2103287020,1000067670
03.07.2021,ADULT SOCIAL CARE,HC-ONE LTD (TOWER BRIDGE CARE HOME),"3,577.00",DISCHARGE TO ACCESS,NURSING PLACEMENTS FEES,2103286909,1000067670
03.07.2021,ADULT SOCIAL CARE,HC-ONE LTD (TOWER BRIDGE CARE HOME),"3,781.40",DISCHARGE TO ACCESS,NURSING PLACEMENTS FEES,2103287305,1000067670
03.07.2021,ADULT SOCIAL CARE,HC-ONE LTD (TOWER BRIDGE CARE HOME),"4,701.20",DISCHARGE TO ACCESS,NURSING PLACEMENTS FEES,2103287488,1000067670
03.07.2021,ADULT SOCIAL CARE,HC-ONE LTD (TOWER BRIDGE CARE HOME),"5,855.37",DISCHARGE TO ACCESS,NURSING PLACEMENTS FEES,2103286655,1000067670
03.07.2021,ADULT SOCIAL CARE,ST MARY'S CARE HOMES,"3,600.00",DISCHARGE TO ACCESS,NURSING PLACEMENTS FEES,2103286758,1000079984
03.07.2021,ADULT SOCIAL CARE,SURREY HILLS & HEIGHTS - CHD LIVING,"3,064.32",DISCHARGE TO ACCESS,NURSING PLACEMENTS FEES,2103286433,1000085188
03.07.2021,ADULT SOCIAL CARE,COLLINGWOOD COURT (BUPA CARE HOMES),"-1,018.40",DISCHARGE TO ACCESS,RECOVERABLE COSTS INCL. HEALTH,2103287414,11042563
03.07.2021,ADULT SOCIAL CARE,COLLINGWOOD COURT (BUPA CARE HOMES),"1,018.40",DISCHARGE TO ACCESS,RECOVERABLE COSTS INCL. HEALTH,2103287732,11042563
03.07.2021,ADULT SOCIAL CARE,THE REGARD PARTNERSHIP,"18,403.88",DISCHARGE TO ACCESS,RESIDENTIAL CARE,2103287397,1823223
03.07.2021,ADULT SOCIAL CARE,ANCHOR TRUST,"-1,934.93",DISCHARGE TO ACCESS,RESIDENTIAL CARE,2103287283,11257534
03.07.2021,ADULT SOCIAL CARE,ANCHOR TRUST,"2,167.12",DISCHARGE TO ACCESS,RESIDENTIAL CARE,2103287284,11257534
03.07.2021,ADULT SOCIAL CARE,ANCHOR TRUST,"2,241.00",DISCHARGE TO ACCESS,RESIDENTIAL CARE,2103286964,11257534
03.07.2021,ADULT SOCIAL CARE,ANCHOR TRUST,"2,241.04",DISCHARGE TO ACCESS,RESIDENTIAL CARE,2103287115,11257534
03.07.2021,ADULT SOCIAL CARE,ANCHOR TRUST,"3,361.56",DISCHARGE TO ACCESS,RESIDENTIAL CARE,2103287492,11257534
03.07.2021,ADULT SOCIAL CARE,SEEABILITY,"11,026.68",DISCHARGE TO ACCESS,RESIDENTIAL CARE,2103286945,1000043641
03.07.2021,ADULT SOCIAL CARE,STRATHMORE CARE HOME LTD,"3,070.00",DISCHARGE TO ACCESS,RESIDENTIAL CARE,2103287108,1000086918
03.07.2021,ADULT SOCIAL CARE,CHOICE SUPPORT,"7,406.96",DISCHARGE TO ACCESS,SUPPORTED LIVING,2103286667,1104183
03.07.2021,ADULT SOCIAL CARE,CARE O LINE,"12,096.00",DISCHARGE TO ACCESS,SUPPORTED LIVING,2103286870,11241743
03.07.2021,ADULT SOCIAL CARE,PLUS SERVICES,"7,372.56",DISCHARGE TO ACCESS,SUPPORTED LIVING,2103287259,1000021241
03.07.2021,ADULT SOCIAL CARE,BRANDON TRUST,"9,036.24",DISCHARGE TO ACCESS,SUPPORTED LIVING,2103286965,1000042417
03.07.2021,ADULT SOCIAL CARE,BEECHCROFT SUPPORT LIMITED,"6,000.00",DISCHARGE TO ACCESS,SUPPORTED LIVING,2103286634,1000085412
03.07.2021,ADULT SOCIAL CARE,BEECHCROFT SUPPORT LIMITED,"6,980.00",DISCHARGE TO ACCESS,SUPPORTED LIVING,2103287547,1000085412
03.07.2021,ADULT SOCIAL CARE,SAFFRONLAND HOMES (HESTIA),462.36,LD LTS 18-64,DAYCARE,2103286912,1000021616
03.07.2021,ADULT SOCIAL CARE,SAFFRONLAND HOMES (HESTIA),750.76,LD LTS 18-64,DAYCARE,2103287349,1000021616
03.07.2021,ADULT SOCIAL CARE,SAFFRONLAND HOMES (HESTIA),946.32,LD LTS 18-64,DAYCARE,2103286607,1000021616
03.07.2021,ADULT SOCIAL CARE,SHARE COMMUNITY LTD,780,LD LTS 18-64,DAYCARE,2103287687,1000062408
03.07.2021,ADULT SOCIAL CARE,SHARE COMMUNITY LTD,780,LD LTS 18-64,DAYCARE,2103287688,1000062408
03.07.2021,ADULT SOCIAL CARE,RYDE HOUSE,-423,LD LTS 18-64,"MAND STATUTORY CHARGES, RESIDENTIAL",2103286869,1022373
03.07.2021,ADULT SOCIAL CARE,CHOICE SUPPORT,-355.76,LD LTS 18-64,"MAND STATUTORY CHARGES, RESIDENTIAL",2103286715,1104183
03.07.2021,ADULT SOCIAL CARE,CRAEGMOOR HEALTHCARE,-379.68,LD LTS 18-64,"MAND STATUTORY CHARGES, RESIDENTIAL",2103287390,1323845
03.07.2021,ADULT SOCIAL CARE,CHOICE CARE GROUP,-423,LD LTS 18-64,"MAND STATUTORY CHARGES, RESIDENTIAL",2103287102,1572506
03.07.2021,ADULT SOCIAL CARE,CHOICE CARE GROUP,-410.12,LD LTS 18-64,"MAND STATUTORY CHARGES, RESIDENTIAL",2103287214,1572506
03.07.2021,ADULT SOCIAL CARE,CHOICE CARE GROUP,-386.6,LD LTS 18-64,"MAND STATUTORY CHARGES, RESIDENTIAL",2103286690,1572506
03.07.2021,ADULT SOCIAL CARE,CHOICE CARE GROUP,-354.6,LD LTS 18-64,"MAND STATUTORY CHARGES, RESIDENTIAL",2103287528,1572506
03.07.2021,ADULT SOCIAL CARE,THE REGARD PARTNERSHIP,-416.6,LD LTS 18-64,"MAND STATUTORY CHARGES, RESIDENTIAL",2103286933,1823223
03.07.2021,ADULT SOCIAL CARE,THE REGARD PARTNERSHIP,-416.6,LD LTS 18-64,"MAND STATUTORY CHARGES, RESIDENTIAL",2103287206,1823223
03.07.2021,ADULT SOCIAL CARE,THE REGARD PARTNERSHIP,-407,LD LTS 18-64,"MAND STATUTORY CHARGES, RESIDENTIAL",2103287392,1823223
03.07.2021,ADULT SOCIAL CARE,INSIGHT,-402.44,LD LTS 18-64,"MAND STATUTORY CHARGES, RESIDENTIAL",2103286622,1825618
03.07.2021,ADULT SOCIAL CARE,INSIGHT,-350.36,LD LTS 18-64,"MAND STATUTORY CHARGES, RESIDENTIAL",2103287402,1825618
03.07.2021,ADULT SOCIAL CARE,OGILVIE COURT,"-1,202.60",LD LTS 18-64,"MAND STATUTORY CHARGES, RESIDENTIAL",2103286390,1910302
03.07.2021,ADULT SOCIAL CARE,OGILVIE COURT,-423,LD LTS 18-64,"MAND STATUTORY CHARGES, RESIDENTIAL",2103286639,1910302
03.07.2021,ADULT SOCIAL CARE,OGILVIE COURT,-421.88,LD LTS 18-64,"MAND STATUTORY CHARGES, RESIDENTIAL",2103286443,1910302
03.07.2021,ADULT SOCIAL CARE,THE AVENUES TRUST,-423,LD LTS 18-64,"MAND STATUTORY CHARGES, RESIDENTIAL",2103286874,1981708
03.07.2021,ADULT SOCIAL CARE,THE PADDOCK (THE SWALLOW GROUP),-595.4,LD LTS 18-64,"MAND STATUTORY CHARGES, RESIDENTIAL",2103286725,11153854
03.07.2021,ADULT SOCIAL CARE,THE PADDOCK (THE SWALLOW GROUP),-591.4,LD LTS 18-64,"MAND STATUTORY CHARGES, RESIDENTIAL",2103286941,11153854
03.07.2021,ADULT SOCIAL CARE,ACHIEVE TOGETHER,-408.08,LD LTS 18-64,"MAND STATUTORY CHARGES, RESIDENTIAL",2103286450,11307451
03.07.2021,ADULT SOCIAL CARE,THE DRIVE CARE HOMES LTD,-423,LD LTS 18-64,"MAND STATUTORY CHARGES, RESIDENTIAL",2103287002,1000003889
03.07.2021,ADULT SOCIAL CARE,THE FRANCES TAYLOR FOUNDATION,-410.12,LD LTS 18-64,"MAND STATUTORY CHARGES, RESIDENTIAL",2103287223,1000007274
03.07.2021,ADULT SOCIAL CARE,THE ROYAL INSTITUTE FOR DEAF PEOPLE,-423,LD LTS 18-64,"MAND STATUTORY CHARGES, RESIDENTIAL",2103287384,1000014488
03.07.2021,ADULT SOCIAL CARE,ASHINGHAM HOUSE LIMITED,-363,LD LTS 18-64,"MAND STATUTORY CHARGES, RESIDENTIAL",2103287190,1000016504
03.07.2021,ADULT SOCIAL CARE,NATIONAL AUTISTIC SOCIETY CARE PACK,-421.87,LD LTS 18-64,"MAND STATUTORY CHARGES, RESIDENTIAL",2103287736,1000020538
03.07.2021,ADULT SOCIAL CARE,ASHDENE HOUSE LIMITED,-407.84,LD LTS 18-64,"MAND STATUTORY CHARGES, RESIDENTIAL",2103286456,1000021007
03.07.2021,ADULT SOCIAL CARE,SAFFRONLAND HOMES (HESTIA),-423,LD LTS 18-64,"MAND STATUTORY CHARGES, RESIDENTIAL",2103286427,1000021616
03.07.2021,ADULT SOCIAL CARE,SAFFRONLAND HOMES (HESTIA),-423,LD LTS 18-64,"MAND STATUTORY CHARGES, RESIDENTIAL",2103286606,1000021616
03.07.2021,ADULT SOCIAL CARE,SAFFRONLAND HOMES (HESTIA),-423,LD LTS 18-64,"MAND STATUTORY CHARGES, RESIDENTIAL",2103286911,1000021616
03.07.2021,ADULT SOCIAL CARE,SAFFRONLAND HOMES (HESTIA),-423,LD LTS 18-64,"MAND STATUTORY CHARGES, RESIDENTIAL",2103287348,1000021616
03.07.2021,ADULT SOCIAL CARE,SAFFRONLAND HOMES (HESTIA),-354.6,LD LTS 18-64,"MAND STATUTORY CHARGES, RESIDENTIAL",2103286995,1000021616
03.07.2021,ADULT SOCIAL CARE,NEXUS PROGRAMME LTD,-410.12,LD LTS 18-64,"MAND STATUTORY CHARGES, RESIDENTIAL",2103287361,1000025336
03.07.2021,ADULT SOCIAL CARE,CHOICE SUPPORT,-392.04,LD LTS 18-64,"MAND STATUTORY CHARGES, RESIDENTIAL",2103287208,1000031156
03.07.2021,ADULT SOCIAL CARE,STEPPING STONES RESETTLEMENT UNIT,-423,LD LTS 18-64,"MAND STATUTORY CHARGES, RESIDENTIAL",2103287522,1000032806
03.07.2021,ADULT SOCIAL CARE,ROYAL MENCAP SOCIETY,-416.6,LD LTS 18-64,"MAND STATUTORY CHARGES, RESIDENTIAL",2103286447,1000034706
03.07.2021,ADULT SOCIAL CARE,ASD UNIQUE SERVICES LTD,-423,LD LTS 18-64,"MAND STATUTORY CHARGES, RESIDENTIAL",2103286439,1000038819
03.07.2021,ADULT SOCIAL CARE,CARE MANAGEMENT GROUP,-595.4,LD LTS 18-64,"MAND STATUTORY CHARGES, RESIDENTIAL",2103287216,1000040475
03.07.2021,ADULT SOCIAL CARE,CARE MANAGEMENT GROUP,-593.6,LD LTS 18-64,"MAND STATUTORY CHARGES, RESIDENTIAL",2103287229,1000040475
03.07.2021,ADULT SOCIAL CARE,CARE MANAGEMENT GROUP,-350.44,LD LTS 18-64,"MAND STATUTORY CHARGES, RESIDENTIAL",2103286707,1000040475
03.07.2021,ADULT SOCIAL CARE,VOYAGE LTD (EVESLEIGH KENT),-423,LD LTS 18-64,"MAND STATUTORY CHARGES, RESIDENTIAL",2103287376,1000041320
03.07.2021,ADULT SOCIAL CARE,VOYAGE LTD (EVESLEIGH KENT),-416.6,LD LTS 18-64,"MAND STATUTORY CHARGES, RESIDENTIAL",2103286441,1000041320
03.07.2021,ADULT SOCIAL CARE,VOYAGE LTD (EVESLEIGH KENT),-356.12,LD LTS 18-64,"MAND STATUTORY CHARGES, RESIDENTIAL",2103286935,1000041320
03.07.2021,ADULT SOCIAL CARE,FERRY CARE LTD,-423,LD LTS 18-64,"MAND STATUTORY CHARGES, RESIDENTIAL",2103287202,1000041775
03.07.2021,ADULT SOCIAL CARE,VALUE IN CARE LTD,"2,677.59",LD LTS 18-64,"MAND STATUTORY CHARGES, RESIDENTIAL",2103287151,1000041975
03.07.2021,ADULT SOCIAL CARE,SEEABILITY,-539,LD LTS 18-64,"MAND STATUTORY CHARGES, RESIDENTIAL",2103286944,1000043641
03.07.2021,ADULT SOCIAL CARE,SENSE,-410.12,LD LTS 18-64,"MAND STATUTORY CHARGES, RESIDENTIAL",2103286618,1000046797
03.07.2021,ADULT SOCIAL CARE,GLEN CARE GROUP,-417.12,LD LTS 18-64,"MAND STATUTORY CHARGES, RESIDENTIAL",2103286705,1000050223
03.07.2021,ADULT SOCIAL CARE,FIR TREE LODGE (SEE ABILITY),-355.32,LD LTS 18-64,"MAND STATUTORY CHARGES, RESIDENTIAL",2103286588,1000052257
03.07.2021,ADULT SOCIAL CARE,GROVE CARE PARTNERSHIP,-362.12,LD LTS 18-64,"MAND STATUTORY CHARGES, RESIDENTIAL",2103287396,1000052893
03.07.2021,ADULT SOCIAL CARE,THE MEATH,-434.28,LD LTS 18-64,"MAND STATUTORY CHARGES, RESIDENTIAL",2103286709,1000056796
03.07.2021,ADULT SOCIAL CARE,THE MEATH,-367.68,LD LTS 18-64,"MAND STATUTORY CHARGES, RESIDENTIAL",2103286931,1000056796
03.07.2021,ADULT SOCIAL CARE,BROADHAM CARE LIMITED,-508.24,LD LTS 18-64,"MAND STATUTORY CHARGES, RESIDENTIAL",2103286586,1000057411
03.07.2021,ADULT SOCIAL CARE,GLENPAT HOMES,-354.6,LD LTS 18-64,"MAND STATUTORY CHARGES, RESIDENTIAL",2103286999,1000059312
03.07.2021,ADULT SOCIAL CARE,31 WOODBOURNE (FRANCES TAYLOR FOUNDATION),-410.12,LD LTS 18-64,"MAND STATUTORY CHARGES, RESIDENTIAL",2103286454,1000063870
03.07.2021,ADULT SOCIAL CARE,CRAEGMOOR WHEELHOUSE PRIORY,-421.68,LD LTS 18-64,"MAND STATUTORY CHARGES, RESIDENTIAL",2103286711,1000068452
03.07.2021,ADULT SOCIAL CARE,CRAEGMOOR DEVONSHIRE ROAD PRIORY,-421.88,LD LTS 18-64,"MAND STATUTORY CHARGES, RESIDENTIAL",2103287004,1000068453
03.07.2021,ADULT SOCIAL CARE,CARLTON NURSING HOMES LTD,-327,LD LTS 18-64,"MAND STATUTORY CHARGES, RESIDENTIAL",2103287507,1000070431
03.07.2021,ADULT SOCIAL CARE,CLEARWATER CARE (HACKNEY) LTD,-371,LD LTS 18-64,"MAND STATUTORY CHARGES, RESIDENTIAL",2103287001,1000070479
03.07.2021,ADULT SOCIAL CARE,SAFFRONLAND HOMES,-583.4,LD LTS 18-64,"MAND STATUTORY CHARGES, RESIDENTIAL",2103286937,1000072152
03.07.2021,ADULT SOCIAL CARE,SAFFRONLAND HOMES,-399,LD LTS 18-64,"MAND STATUTORY CHARGES, RESIDENTIAL",2103286428,1000072152
03.07.2021,ADULT SOCIAL CARE,SAFFRONLAND HOMES,-375,LD LTS 18-64,"MAND STATUTORY CHARGES, RESIDENTIAL",2103287195,1000072152
03.07.2021,ADULT SOCIAL CARE,SAFFRONLAND HOMES,-416.6,LD LTS 18-64,"MAND STATUTORY CHARGES, RESIDENTIAL",2103287540,1000072153
03.07.2021,ADULT SOCIAL CARE,CRAEGMOOR WILLOWS HYTHE PRIORY,-421.88,LD LTS 18-64,"MAND STATUTORY CHARGES, RESIDENTIAL",2103287219,1000072287
03.07.2021,ADULT SOCIAL CARE,CRAEGMOOR (WINDSOR HOUSE),-421.88,LD LTS 18-64,"MAND STATUTORY CHARGES, RESIDENTIAL",2103286713,1000072462
03.07.2021,ADULT SOCIAL CARE,DIAGRAMA HEALTH CARE,-423,LD LTS 18-64,"MAND STATUTORY CHARGES, RESIDENTIAL",2103287188,1000075492
03.07.2021,ADULT SOCIAL CARE,DIAGRAMA HEALTH CARE,-423,LD LTS 18-64,"MAND STATUTORY CHARGES, RESIDENTIAL",2103287388,1000075492
03.07.2021,ADULT SOCIAL CARE,DIAGRAMA HEALTH CARE,-367.68,LD LTS 18-64,"MAND STATUTORY CHARGES, RESIDENTIAL",2103287531,1000075492
03.07.2021,ADULT SOCIAL CARE,DIAGRAMA HEALTH CARE,-354.6,LD LTS 18-64,"MAND STATUTORY CHARGES, RESIDENTIAL",2103287378,1000075492
03.07.2021,ADULT SOCIAL CARE,THE WHITE HOUSE CARE HOME,-402.25,LD LTS 18-64,"MAND STATUTORY CHARGES, RESIDENTIAL",2103287106,1000076369
03.07.2021,ADULT SOCIAL CARE,VOYAGE CARE (MOUNTEARL),-423,LD LTS 18-64,"MAND STATUTORY CHARGES, RESIDENTIAL",2103286958,1000078173
03.07.2021,ADULT SOCIAL CARE,LOVING CARE LTD,-295,LD LTS 18-64,"MAND STATUTORY CHARGES, RESIDENTIAL",2103286562,1000082873
03.07.2021,ADULT SOCIAL CARE,PARKCARE HOMES (NO.2) LTD T/A MARSHLANDS,-414.6,LD LTS 18-64,"MAND STATUTORY CHARGES, RESIDENTIAL",2103287171,1000083487
03.07.2021,ADULT SOCIAL CARE,ZERO THREE CARE LIMITED,-321.8,LD LTS 18-64,"MAND STATUTORY CHARGES, RESIDENTIAL",2103286629,1000085367
03.07.2021,ADULT SOCIAL CARE,BEAUMONT COURT CARE HOMES LTD,-423,LD LTS 18-64,"MAND STATUTORY CHARGES, RESIDENTIAL",2103287459,1000086413
03.07.2021,ADULT SOCIAL CARE,ST ELIZABETH SCHOOL,-738.4,LD LTS 18-64,"MAND STATUTORY CHARGES, RESIDENTIAL",2103287546,1000014407
03.07.2021,ADULT SOCIAL CARE,NATIONAL AUTISTIC SOCIETY CARE PACK,"2,698.92",LD LTS 18-64,OTHER PAYMENTS FOR CLIENTS,2103287454,1000020538
03.07.2021,ADULT SOCIAL CARE,ROYAL MENCAP SOCIETY,772.92,LD LTS 18-64,OTHER PAYMENTS FOR CLIENTS,2103286448,1000034706
03.07.2021,ADULT SOCIAL CARE,FIR TREE LODGE (SEE ABILITY),332.88,LD LTS 18-64,OTHER PAYMENTS FOR CLIENTS,2103287267,1000052257
03.07.2021,ADULT SOCIAL CARE,CRAEGMOOR WHEELHOUSE PRIORY,896.08,LD LTS 18-64,OTHER PAYMENTS FOR CLIENTS,2103286502,1000068452
03.07.2021,ADULT SOCIAL CARE,BRITISH HOME & HOSPITAL FOR INCURABLES,"6,303.60",LD LTS 18-64,RESIDENTIAL CARE,2103287602,1001606
03.07.2021,ADULT SOCIAL CARE,RYDE HOUSE,"4,143.56",LD LTS 18-64,RESIDENTIAL CARE,2103286868,1022373
03.07.2021,ADULT SOCIAL CARE,CHOICE SUPPORT,"4,680.72",LD LTS 18-64,RESIDENTIAL CARE,2103287103,1104183
03.07.2021,ADULT SOCIAL CARE,CHOICE SUPPORT,"6,016.92",LD LTS 18-64,RESIDENTIAL CARE,2103286714,1104183
03.07.2021,ADULT SOCIAL CARE,CHOICE SUPPORT,"6,937.44",LD LTS 18-64,RESIDENTIAL CARE,2103287461,1104183
03.07.2021,ADULT SOCIAL CARE,CRAEGMOOR HEALTHCARE,"6,611.56",LD LTS 18-64,RESIDENTIAL CARE,2103287389,1323845
03.07.2021,ADULT SOCIAL CARE,CHOICE CARE GROUP,"8,050.60",LD LTS 18-64,RESIDENTIAL CARE,2103287213,1572506
03.07.2021,ADULT SOCIAL CARE,CHOICE CARE GROUP,"8,365.48",LD LTS 18-64,RESIDENTIAL CARE,2103287527,1572506
03.07.2021,ADULT SOCIAL CARE,CHOICE CARE GROUP,"8,467.64",LD LTS 18-64,RESIDENTIAL CARE,2103287101,1572506
03.07.2021,ADULT SOCIAL CARE,CHOICE CARE GROUP,"8,829.16",LD LTS 18-64,RESIDENTIAL CARE,2103286689,1572506
03.07.2021,ADULT SOCIAL CARE,THE REGARD PARTNERSHIP,"5,098.36",LD LTS 18-64,RESIDENTIAL CARE,2103286932,1823223
03.07.2021,ADULT SOCIAL CARE,THE REGARD PARTNERSHIP,"7,109.24",LD LTS 18-64,RESIDENTIAL CARE,2103287391,1823223
03.07.2021,ADULT SOCIAL CARE,THE REGARD PARTNERSHIP,"7,639.96",LD LTS 18-64,RESIDENTIAL CARE,2103287205,1823223
03.07.2021,ADULT SOCIAL CARE,THE REGARD PARTNERSHIP,"9,378.08",LD LTS 18-64,RESIDENTIAL CARE,2103286611,1823223
03.07.2021,ADULT SOCIAL CARE,INSIGHT,"5,712.44",LD LTS 18-64,RESIDENTIAL CARE,2103286735,1825618
